Workbook

Sheet 1. INFORMACION ACUMULADA
A2: VEEDURIA DISTRITAL - INFORMACIÓN GESTION CONTRACTUAL
A3: DEL 1 DE ENERO AL 31 DE DICIEMBRE DE 2023
A5: 1. Entidad | E5: Alcaldia Local de Engativá | H5: 2. Sector
A6: 3. Presupuesto Disponible Inversión Directa PREDIS (BOGDATA) | H6: 5. Presupuesto Disponible Funcionamiento PREDIS (BOGDATA) | AI6: 7. Nombre de quien diligencia el formato | AK6: Marlong Fernando Portela Gaitan - Yeny Paola San Martin Rincón
A7: 4. Presupuesto Comprometido de Inversión Directa según PREDIS (BOGDATA) | H7: 6. Presupuesto Comprometido Funcionamiento según PREDIS (BOGDATA) | AI7: Cargo | AK7: Profesional de apoyo Contratación - Profesional de apoyo Planeación
AI8: Dependencia | AK8: Contratación - Planeación
AI9: Teléfono | AK9: (571) 3820660 - 3387000
AI10: Correo Electrónico | AK10: marlong.portela@gobiernobogota.gov.co - yeny.rincon@gobiernobogota.gov.co
A11: 1- INFORMACION GENERAL | V11: 2- INFORMACION FINANCIERA | AC11: 3 - PLAZOS | AI11: 4. CESION | AM11: 5. ESTADO | AN11: 6. % Avance y/o cumplimiento
A12: 1 | B12: 2 | C12: 3 | E12: 4 | F12: 5 | G12: 6 | H12: 7 | I12: 8 | N12: 9 | O12: 10 | P12: 11 | V12: 12 | W12: 13 | X12: 14 | Y12: 15 | Z12: 16 | AA12: 17 | AB12: 18 | AC12: 19 | AD12: 20 | AE12: 21 | AF12: 22 | AG12: 23 | AH12: 24 | AI12: 25 | AJ12: 26 | AK12: 27 | AL12: 28 | AM12: 29 | AN12: 30
A13: Número Contrato | B13: Año | C13: Número de proceso contractual SECOP | D13: Link proceso SECOP | E13: Tipo de contrato | F13: Descripcion Mod. Selec | G13: Procedimiento o causal | H13: Objeto | I13: Afectación | J13: Plan de Desarrollo Distrital | K13: Número Programa | L13: Equivalencia número de programa | M13: Propósito | N13: Número Proyecto | O13: Número de proponentes | P13: Número de Identificación del contratista (Cédula o NIT sin puntos, comas ni caracteres especiales y sin digito de verificación) | Q13: Nombre del contratista (según el caso: nombres y apellidos o Razón social y Tipo societario) | R13: Naturaleza Jurídica | S13: Número de Identificación del integrante del Consorcio o U.T. (Cédula o NIT sin puntos, comas ni caracteres especiales y sin digito de verificación) | T13: Nombre del Integrante del Consorcio o U.T. y Tipo societario (Según el caso: nombres y apellidos o razón social y tipo societario) | U13: % Participación (indicar solo el numero del porcentaje, sin caracteres especiales) | V13: Vigencias futuras | W13: Valor Inicial del contrato | X13: Valor total reducciones (En valor negativo) | Y13: Número de adiciones | Z13: Valor total de adiciones | AA13: Valor Final | AB13: Giros (Valor en pesos) | AC13: Fecha de suscripción (DD/MM/AAAA) | AD13: Fecha de inicio (DD/MM/AAAA) | AE13: Fecha de terminación (DD/MM/AAAA) | AF13: Plazo en días | AG13: Número de prórrogas | AH13: Prorroga en días | AI13: Número de Identificación del cesionario (NIT sin digito de verificación) | AJ13: Nombre cesionario | AK13: Fecha cesión (DD/MM/AAAA) | AL13: Valor cesión | AM13: Estado | AN13: % Avance y/o Cumplimiento
A14: 004 | B14: 2023 | C14: FDLE-CD-004-2023 | D14: https://community.secop.gov.co/Public/Tendering/OpportunityDetail/Index?noticeUID=CO1.NTC.3840910&isFromPublicArea=True&isModal=False | E14: Contratos de prestación de servicios | F14: Contratación directa | G14: Prestación de servicios profesionales y de apoyo a la gestión, o para la ejecución de trabajos artísticos que sólo puedan encomendarse a determinadas personas naturales | H14: LA PRESTACIÓN DE SERVICIOS PROFESIONALES DE APOYO AL ÁREA DE GESTIÓN DE DESARROLLO LOCAL, EN INFRAESTRUCTURA, EN LAS ACTIVIDADES RELACIONADAS CON LA FORMULACIÓN, EJECUCIÓN, SEGUIMIENTO Y EVALUACIÓN DE LOS PROYECTOS RELACIONADOS CON MALLA VIAL, ESPACIO PÚBLICO, PARQUES, OBRAS Y/O INFRAESTRUCTURA QUE LE SEAN ASIGNADOS. | I14: Inversión | J14: Un nuevo contrato social y ambiental para la Bogotá del Siglo XXI | K14: 49 | L14: =IF(ISERROR(VLOOKUP(K14,Proposito_programa!$C$2:$E$59,2,FALSE))," ",VLOOKUP(K14,Proposito_programa!$C$2:$E$59,2,FALSE)) -> Movilidad segura, sostenible y accesible | M14: =IF(ISERROR(VLOOKUP(K14,Proposito_programa!$C$2:$E$59,3,FALSE))," ",VLOOKUP(K14,Proposito_programa!$C$2:$E$59,3,FALSE)) -> Propósito 4: Hacer de Bogotá Región un modelo de movilidad multimodal, incluyente y sostenible | N14: 1621 | O14: 3 | P14: 79813234 | Q14: WILLINTON NAPOLEON MUÑOZ BOLAÑOS | R14: Persona Natural | W14: 66000000 | Y14: 1 | Z14: 30000000 | AA14: =+W14+X14+Z14 -> 96000000 | AB14: =+X14+Y14+AA14 -> 96000001 | AC14: 2023-01-27 | AD14: 2023-01-30 | AE14: 2024-05-29 | AF14: 480 | AG14: 1 | AH14: 150 | AM14: En ejecución | AN14: =IF(ISERROR(AB14/AA14),"-",(AB14/AA14)) -> 1.00000001
A15: 005 | B15: 2023 | C15: FDLE-CD-005-2023 | D15: https://community.secop.gov.co/Public/Tendering/OpportunityDetail/Index?noticeUID=CO1.NTC.3894312&isFromPublicArea=True&isModal=False | E15: Contratos de prestación de servicios | F15: Contratación directa | G15: Prestación de servicios profesionales y de apoyo a la gestión, o para la ejecución de trabajos artísticos que sólo puedan encomendarse a determinadas personas naturales | H15: LA PRESTACIÓN DE SERVICIOS TÉCNICOS DE APOYO LOGÍSTICO AL ÁREA DE GESTIÓN DE DESARROLLO LOCAL, EN LAS ACTIVIDADES CULTURALES QUE SE REQUIERAN EN LA LOCALIDAD DE ENGATIVÁ. | I15: Inversión | J15: Un nuevo contrato social y ambiental para la Bogotá del Siglo XXI | K15: 24 | L15: =IF(ISERROR(VLOOKUP(K15,Proposito_programa!$C$2:$E$59,2,FALSE))," ",VLOOKUP(K15,Proposito_programa!$C$2:$E$59,2,FALSE)) -> Bogotá región emprendedora e innovadora | M15: =IF(ISERROR(VLOOKUP(K15,Proposito_programa!$C$2:$E$59,3,FALSE))," ",VLOOKUP(K15,Proposito_programa!$C$2:$E$59,3,FALSE)) -> Propósito 1: Hacer un nuevo contrato social para incrementar la inclusión social, productiva y política | N15: 1597 | O15: 3 | P15: 1077967232 | Q15: JAIRO ANDRES SACRISTAN VELANDIA | R15: Persona Natural | W15: 28782000 | Y15: 1 | Z15: 12792000 | AA15: 41574000 | AB15: 41574001 | AC15: 2023-02-06 | AD15: 2023-02-07 | AE15: 2024-03-06 | AF15: 390 | AG15: 1 | AH15: 120 | AM15: En ejecución | AN15: 1.000000024
A16: 006 | B16: 2023 | C16: FDLE-CD-006-2023 | D16: https://community.secop.gov.co/Public/Tendering/OpportunityDetail/Index?noticeUID=CO1.NTC.3875115&isFromPublicArea=True&isModal=False | E16: Contratos de prestación de servicios | F16: Contratación directa | G16: Prestación de servicios profesionales y de apoyo a la gestión, o para la ejecución de trabajos artísticos que sólo puedan encomendarse a determinadas personas naturales | H16: LA PRESTACIÓN DE SERVICIOS TÉCNICOS DE APOYO LOGÍSTICO AL ÁREA DE GESTIÓN DE DESARROLLO LOCAL, EN LAS ACTIVIDADES CULTURALES QUE SE REQUIERAN EN LA LOCALIDAD DE ENGATIVÁ. | I16: Inversión | J16: Un nuevo contrato social y ambiental para la Bogotá del Siglo XXI | K16: 24 | L16: =IF(ISERROR(VLOOKUP(K16,Proposito_programa!$C$2:$E$59,2,FALSE))," ",VLOOKUP(K16,Proposito_programa!$C$2:$E$59,2,FALSE)) -> Bogotá región emprendedora e innovadora | M16: =IF(ISERROR(VLOOKUP(K16,Proposito_programa!$C$2:$E$59,3,FALSE))," ",VLOOKUP(K16,Proposito_programa!$C$2:$E$59,3,FALSE)) -> Propósito 1: Hacer un nuevo contrato social para incrementar la inclusión social, productiva y política | N16: 1597 | O16: 1 | P16: 80404261 | Q16: MIGUEL ANGEL VASQUEZ NARANJO | R16: Persona Natural | W16: 28782000 | AA16: 28782000 | AB16: 28782000 | AC16: 2023-01-30 | AD16: 2023-02-02 | AE16: 2023-11-01 | AF16: 270 | AM16: Terminado | AN16: 1
A17: 007 | B17: 2023 | C17: FDLE-CD-007-2023 | D17: https://community.secop.gov.co/Public/Tendering/OpportunityDetail/Index?noticeUID=CO1.NTC.3893759&isFromPublicArea=True&isModal=False | E17: Contratos de prestación de servicios | F17: Contratación directa | G17: Prestación de servicios profesionales y de apoyo a la gestión, o para la ejecución de trabajos artísticos que sólo puedan encomendarse a determinadas personas naturales | H17: LA PRESTACIÓN DE SERVICIOS PROFESIONALES DE APOYO AL ÁREA DE GESTIÓN DE DESARROLLO LOCAL, EN LA PLANIFICACIÓN DE LOS PROCESOS DE PARTICIPACIÓN SOCIAL Y EN EL ACOMPAÑAMIENTO DE LAS ESTRATEGIAS Y ACTIVIDADES QUE DE ALLÍ SE DERIVEN. | I17: Inversión | J17: Un nuevo contrato social y ambiental para la Bogotá del Siglo XXI | K17: 55 | L17: =IF(ISERROR(VLOOKUP(K17,Proposito_programa!$C$2:$E$59,2,FALSE))," ",VLOOKUP(K17,Proposito_programa!$C$2:$E$59,2,FALSE)) -> Fortalecimiento de cultura ciudadana y su institucionalidad | M17: =IF(ISERROR(VLOOKUP(K17,Proposito_programa!$C$2:$E$59,3,FALSE))," ",VLOOKUP(K17,Proposito_programa!$C$2:$E$59,3,FALSE)) -> Propósito 5: Construir Bogotá - Región con gobierno abierto, transparente y ciudadanía consciente | N17: 1622 | O17: 6 | P17: 1010180982 | Q17: IVAN DARIO GUTIERREZ GUTIERREZ | R17: Persona Natural | W17: 41130000 | Y17: 1 | Z17: 13710000 | AA17: 54840000 | AB17: 54840001 | AC17: 2023-02-07 | AD17: 2023-02-13 | AE17: 2024-02-12 | AF17: 360 | AG17: 1 | AH17: 90 | AM17: En ejecución | AN17: 1.000000018
A18: 008 | B18: 2023 | C18: FDLE-CD-008-2023 | D18: https://community.secop.gov.co/Public/Tendering/OpportunityDetail/Index?noticeUID=CO1.NTC.3954021&isFromPublicArea=True&isModal=False | E18: Contratos de prestación de servicios | F18: Contratación directa | G18: Prestación de servicios profesionales y de apoyo a la gestión, o para la ejecución de trabajos artísticos que sólo puedan encomendarse a determinadas personas naturales | H18: LA PRESTACIÓN DE SERVICIOS PROFESIONALES DE APOYO AL ÁREA DE GESTIÓN DE DESARROLLO LOCAL, EN LA PLANIFICACIÓN DE LOS PROCESOS DE PARTICIPACIÓN SOCIAL Y EN EL ACOMPAÑAMIENTO DE LAS ESTRATEGIAS Y ACTIVIDADES QUE DE ALLÍ SE DERIVEN. | I18: Inversión | J18: Un nuevo contrato social y ambiental para la Bogotá del Siglo XXI | K18: 55 | L18: =IF(ISERROR(VLOOKUP(K18,Proposito_programa!$C$2:$E$59,2,FALSE))," ",VLOOKUP(K18,Proposito_programa!$C$2:$E$59,2,FALSE)) -> Fortalecimiento de cultura ciudadana y su institucionalidad | M18: =IF(ISERROR(VLOOKUP(K18,Proposito_programa!$C$2:$E$59,3,FALSE))," ",VLOOKUP(K18,Proposito_programa!$C$2:$E$59,3,FALSE)) -> Propósito 5: Construir Bogotá - Región con gobierno abierto, transparente y ciudadanía consciente | N18: 1622 | O18: 0 | P18: 52727771 | Q18: SULAY YAMILE BARON MENDEZ | R18: Persona Natural | W18: 41130000 | Y18: 1 | Z18: 4570000 | AA18: 45700000 | AB18: 45700001 | AC18: 2023-02-09 | AD18: 2023-02-21 | AE18: 2023-12-20 | AF18: 300 | AG18: 1 | AH18: 30 | AM18: Terminado | AN18: 1.000000022
A19: 009 | B19: 2023 | C19: FDLE-CD-009-2023 | D19: https://community.secop.gov.co/Public/Tendering/OpportunityDetail/Index?noticeUID=CO1.NTC.3914618&isFromPublicArea=True&isModal=False | E19: Contratos de prestación de servicios | F19: Contratación directa | G19: Prestación de servicios profesionales y de apoyo a la gestión, o para la ejecución de trabajos artísticos que sólo puedan encomendarse a determinadas personas naturales | H19: LA PRESTACIÓN DE SERVICIOS PROFESIONALES DE APOYO AL ÁREA DE GESTIÓN DE DESARROLLO LOCAL, EN LA PLANIFICACIÓN DE LOS PROCESOS DE PARTICIPACIÓN SOCIAL Y EN EL ACOMPAÑAMIENTO DE LAS ESTRATEGIAS Y ACTIVIDADES QUE DE ALLÍ SE DERIVEN. | I19: Inversión | J19: Un nuevo contrato social y ambiental para la Bogotá del Siglo XXI | K19: 55 | L19: =IF(ISERROR(VLOOKUP(K19,Proposito_programa!$C$2:$E$59,2,FALSE))," ",VLOOKUP(K19,Proposito_programa!$C$2:$E$59,2,FALSE)) -> Fortalecimiento de cultura ciudadana y su institucionalidad | M19: =IF(ISERROR(VLOOKUP(K19,Proposito_programa!$C$2:$E$59,3,FALSE))," ",VLOOKUP(K19,Proposito_programa!$C$2:$E$59,3,FALSE)) -> Propósito 5: Construir Bogotá - Región con gobierno abierto, transparente y ciudadanía consciente | N19: 1622 | O19: 4 | P19: 1144095400 | Q19: ANDREZ FELIPE GUERRERO TORRES | R19: Persona Natural | W19: 41130000 | Y19: 1 | Z19: 18280000 | AA19: 59410000 | AB19: 59410001 | AC19: 2023-02-08 | AD19: 2023-02-21 | AE19: 2024-03-20 | AF19: 390 | AG19: 1 | AH19: 120 | AI19: 1144095400 | AJ19: ANDREZ FELIPE GUERRERO TORRES | AK19: 2023-11-23 | AL19: 17670667 | AM19: En ejecución | AN19: 1.000000017
A20: 010 | B20: 2023 | C20: FDLE-CD-010-2023 | D20: https://community.secop.gov.co/Public/Tendering/OpportunityDetail/Index?noticeUID=CO1.NTC.3894498&isFromPublicArea=True&isModal=False | E20: Contratos de prestación de servicios | F20: Contratación directa | G20: Prestación de servicios profesionales y de apoyo a la gestión, o para la ejecución de trabajos artísticos que sólo puedan encomendarse a determinadas personas naturales | H20: LA PRESTACIÓN DE SERVICIOS PROFESIONALES DE APOYO AL ÁREA DE GESTIÓN DE DESARROLLO LOCAL, EN LA PLANIFICACIÓN DE LOS PROCESOS DE PARTICIPACIÓN SOCIAL Y EN EL ACOMPAÑAMIENTO DE LAS ESTRATEGIAS Y ACTIVIDADES QUE DE ALLÍ SE DERIVEN. | I20: Inversión | J20: Un nuevo contrato social y ambiental para la Bogotá del Siglo XXI | K20: 55 | L20: =IF(ISERROR(VLOOKUP(K20,Proposito_programa!$C$2:$E$59,2,FALSE))," ",VLOOKUP(K20,Proposito_programa!$C$2:$E$59,2,FALSE)) -> Fortalecimiento de cultura ciudadana y su institucionalidad | M20: =IF(ISERROR(VLOOKUP(K20,Proposito_programa!$C$2:$E$59,3,FALSE))," ",VLOOKUP(K20,Proposito_programa!$C$2:$E$59,3,FALSE)) -> Propósito 5: Construir Bogotá - Región con gobierno abierto, transparente y ciudadanía consciente | N20: 1622 | O20: 8 | P20: 51937981 | Q20: ADRIANA SORAIDA DUARTE RODRIGUEZ | R20: Persona Natural | W20: 41130000 | AA20: 41130000 | AB20: 41130000 | AC20: 2023-02-07 | AD20: 2023-02-08 | AE20: 2023-07-17 | AF20: 270 | AM20: Terminado | AN20: 1
A21: 011 | B21: 2023 | C21: FDLE-CD-011-2023 | D21: https://community.secop.gov.co/Public/Tendering/OpportunityDetail/Index?noticeUID=CO1.NTC.3909254&isFromPublicArea=True&isModal=False | E21: Contratos de prestación de servicios | F21: Contratación directa | G21: Prestación de servicios profesionales y de apoyo a la gestión, o para la ejecución de trabajos artísticos que sólo puedan encomendarse a determinadas personas naturales | H21: LA PRESTACIÓN DE SERVICIOS PROFESIONALES DE APOYO AL ÁREA DE GESTIÓN DE DESARROLLO LOCAL, EN LA PLANIFICACIÓN DE LOS PROCESOS DE PARTICIPACIÓN SOCIAL Y EN EL ACOMPAÑAMIENTO DE LAS ESTRATEGIAS Y ACTIVIDADES QUE DE ALLÍ SE DERIVEN. | I21: Inversión | J21: Un nuevo contrato social y ambiental para la Bogotá del Siglo XXI | K21: 55 | L21: =IF(ISERROR(VLOOKUP(K21,Proposito_programa!$C$2:$E$59,2,FALSE))," ",VLOOKUP(K21,Proposito_programa!$C$2:$E$59,2,FALSE)) -> Fortalecimiento de cultura ciudadana y su institucionalidad | M21: =IF(ISERROR(VLOOKUP(K21,Proposito_programa!$C$2:$E$59,3,FALSE))," ",VLOOKUP(K21,Proposito_programa!$C$2:$E$59,3,FALSE)) -> Propósito 5: Construir Bogotá - Región con gobierno abierto, transparente y ciudadanía consciente | N21: 1622 | O21: 3 | P21: 80262642 | Q21: EDGAR OROMAIRO RAMIREZ | R21: Persona Natural | W21: 41130000 | Y21: 1 | Z21: 4570000 | AA21: 45700000 | AB21: 45700001 | AC21: 2023-02-07 | AD21: 2023-02-13 | AE21: 2023-12-12 | AF21: 300 | AG21: 1 | AH21: 30 | AM21: Terminado | AN21: 1.000000022
A22: 012 | B22: 2023 | C22: FDLE-CD-012-2023 | D22: https://community.secop.gov.co/Public/Tendering/OpportunityDetail/Index?noticeUID=CO1.NTC.3894388&isFromPublicArea=True&isModal=False | E22: Contratos de prestación de servicios | F22: Contratación directa | G22: Prestación de servicios profesionales y de apoyo a la gestión, o para la ejecución de trabajos artísticos que sólo puedan encomendarse a determinadas personas naturales | H22: LA PRESTACIÓN DE SERVICIOS PROFESIONALES DE APOYO AL ÁREA DE GESTIÓN DE DESARROLLO LOCAL, EN LA PLANIFICACIÓN DE LOS PROCESOS DE PARTICIPACIÓN SOCIAL Y EN EL ACOMPAÑAMIENTO DE LAS ESTRATEGIAS Y ACTIVIDADES QUE DE ALLÍ SE DERIVEN. | I22: Inversión | J22: Un nuevo contrato social y ambiental para la Bogotá del Siglo XXI | K22: 55 | L22: =IF(ISERROR(VLOOKUP(K22,Proposito_programa!$C$2:$E$59,2,FALSE))," ",VLOOKUP(K22,Proposito_programa!$C$2:$E$59,2,FALSE)) -> Fortalecimiento de cultura ciudadana y su institucionalidad | M22: =IF(ISERROR(VLOOKUP(K22,Proposito_programa!$C$2:$E$59,3,FALSE))," ",VLOOKUP(K22,Proposito_programa!$C$2:$E$59,3,FALSE)) -> Propósito 5: Construir Bogotá - Región con gobierno abierto, transparente y ciudadanía consciente | N22: 1622 | O22: 7 | P22: 1014222182 | Q22: JOAN DAVID FERRER JIMENEZ | R22: Persona Natural | W22: 41130000 | Y22: 1 | Z22: 20565000 | AA22: 61695000 | AB22: 61695001 | AC22: 2023-02-07 | AD22: 2023-02-13 | AE22: 2024-03-27 | AF22: 405 | AG22: 1 | AH22: 135 | AM22: Terminado | AN22: 1.000000016
A23: 013 | B23: 2023 | C23: FDLE-CD-013-2023 | D23: https://community.secop.gov.co/Public/Tendering/OpportunityDetail/Index?noticeUID=CO1.NTC.3899484&isFromPublicArea=True&isModal=False | E23: Contratos de prestación de servicios | F23: Contratación directa | G23: Prestación de servicios profesionales y de apoyo a la gestión, o para la ejecución de trabajos artísticos que sólo puedan encomendarse a determinadas personas naturales | H23: LA PRESTACIÓN DE SERVICIOS TÉCNICOS DE APOYO LOGÍSTICO AL ÁREA DE GESTIÓN DE DESARROLLO LOCAL, EN LAS ACTIVIDADES CULTURALES QUE SE REQUIERAN EN LA LOCALIDAD DE ENGATIVÁ. | I23: Inversión | J23: Un nuevo contrato social y ambiental para la Bogotá del Siglo XXI | K23: 24 | L23: =IF(ISERROR(VLOOKUP(K23,Proposito_programa!$C$2:$E$59,2,FALSE))," ",VLOOKUP(K23,Proposito_programa!$C$2:$E$59,2,FALSE)) -> Bogotá región emprendedora e innovadora | M23: =IF(ISERROR(VLOOKUP(K23,Proposito_programa!$C$2:$E$59,3,FALSE))," ",VLOOKUP(K23,Proposito_programa!$C$2:$E$59,3,FALSE)) -> Propósito 1: Hacer un nuevo contrato social para incrementar la inclusión social, productiva y política | N23: 1597 | O23: 9 | P23: 1014191294 | Q23: JUAN MANUEL SALAMANCA MARTINEZ | R23: Persona Natural | W23: 28782000 | Y23: 1 | Z23: 5543200 | AA23: 34325200 | AB23: 34325201 | AC23: 2023-02-03 | AD23: 2023-02-07 | AE23: 2023-12-28 | AF23: 322 | AG23: 1 | AH23: 52 | AM23: Terminado | AN23: 1.000000029
A24: 014 | B24: 2023 | C24: FDLE-CD-014-2023 | D24: https://community.secop.gov.co/Public/Tendering/OpportunityDetail/Index?noticeUID=CO1.NTC.3898924&isFromPublicArea=True&isModal=False | E24: Contratos de prestación de servicios | F24: Contratación directa | G24: Prestación de servicios profesionales y de apoyo a la gestión, o para la ejecución de trabajos artísticos que sólo puedan encomendarse a determinadas personas naturales | H24: LA PRESTACIÓN DE SERVICIOS PROFESIONALES DE APOYO AL ÁREA DE GESTIÓN DE DESARROLLO LOCAL EN LA PLANIFICACIÓN DE LOS PROCESOS CULTURALES Y EN EL ACOMPAÑAMIENTO DE LAS ESTRATEGIAS Y ACTIVIDADES QUE DE ALLÍ SE DERIVEN. | I24: Inversión | J24: Un nuevo contrato social y ambiental para la Bogotá del Siglo XXI | K24: 24 | L24: =IF(ISERROR(VLOOKUP(K24,Proposito_programa!$C$2:$E$59,2,FALSE))," ",VLOOKUP(K24,Proposito_programa!$C$2:$E$59,2,FALSE)) -> Bogotá región emprendedora e innovadora | M24: =IF(ISERROR(VLOOKUP(K24,Proposito_programa!$C$2:$E$59,3,FALSE))," ",VLOOKUP(K24,Proposito_programa!$C$2:$E$59,3,FALSE)) -> Propósito 1: Hacer un nuevo contrato social para incrementar la inclusión social, productiva y política | N24: 1597 | O24: 0 | P24: 1018485697 | Q24: IVAN FELIPE SEPULVEDA CALLEJAS | R24: Persona Natural | W24: 41130000 | Y24: 1 | Z24: 7007333 | AA24: 48137333 | AB24: 48137334 | AC24: 2023-02-08 | AD24: 2023-02-13 | AE24: 2023-12-28 | AF24: 316 | AG24: 1 | AH24: 46 | AM24: Terminado | AN24: 1.000000021
A25: 015 | B25: 2023 | C25: FDLE-CD-15-2023 | D25: https://community.secop.gov.co/Public/Tendering/OpportunityDetail/Index?noticeUID=CO1.NTC.3899066&isFromPublicArea=True&isModal=False | E25: Contratos de prestación de servicios | F25: Contratación directa | G25: Prestación de servicios profesionales y de apoyo a la gestión, o para la ejecución de trabajos artísticos que sólo puedan encomendarse a determinadas personas naturales | H25: LA PRESTACIÓN DE SERVICIOS PROFESIONALES DE APOYO AL ÁREA DE GESTIÓN DE DESARROLLO LOCAL EN LA PLANIFICACIÓN DE LOS PROCESOS CULTURALES Y EN EL ACOMPAÑAMIENTO DE LAS ESTRATEGIAS Y ACTIVIDADES QUE DE ALLÍ SE DERIVEN. | I25: Inversión | J25: Un nuevo contrato social y ambiental para la Bogotá del Siglo XXI | K25: 24 | L25: =IF(ISERROR(VLOOKUP(K25,Proposito_programa!$C$2:$E$59,2,FALSE))," ",VLOOKUP(K25,Proposito_programa!$C$2:$E$59,2,FALSE)) -> Bogotá región emprendedora e innovadora | M25: =IF(ISERROR(VLOOKUP(K25,Proposito_programa!$C$2:$E$59,3,FALSE))," ",VLOOKUP(K25,Proposito_programa!$C$2:$E$59,3,FALSE)) -> Propósito 1: Hacer un nuevo contrato social para incrementar la inclusión social, productiva y política | N25: 1597 | O25: 4 | P25: 53105703 | Q25: ANGELA VIVIANA SARMIENTO SUAREZ | R25: Persona Natural | W25: 41130000 | Y25: 1 | Z25: 20565000 | AA25: 61695000 | AB25: 61695001 | AC25: 2023-02-06 | AD25: 2023-02-13 | AE25: 2024-03-27 | AF25: 405 | AG25: 1 | AH25: 135 | AM25: En ejecución | AN25: 1.000000016
A26: 016 | B26: 2023 | C26: FDLE-CD-016-2023 | D26: https://community.secop.gov.co/Public/Tendering/OpportunityDetail/Index?noticeUID=CO1.NTC.3894948&isFromPublicArea=True&isModal=False | E26: Contratos de prestación de servicios | F26: Contratación directa | G26: Prestación de servicios profesionales y de apoyo a la gestión, o para la ejecución de trabajos artísticos que sólo puedan encomendarse a determinadas personas naturales | H26: LA PRESTACIÓN DE SERVICIOS PROFESIONALES DE APOYO AL ÁREA DE GESTIÓN DE DESARROLLO LOCAL EN LA PLANIFICACIÓN DE LOS PROCESOS CULTURALES Y EN EL ACOMPAÑAMIENTO DE LAS ESTRATEGIAS Y ACTIVIDADES QUE DE ALLÍ SE DERIVEN. | I26: Inversión | J26: Un nuevo contrato social y ambiental para la Bogotá del Siglo XXI | K26: 24 | L26: =IF(ISERROR(VLOOKUP(K26,Proposito_programa!$C$2:$E$59,2,FALSE))," ",VLOOKUP(K26,Proposito_programa!$C$2:$E$59,2,FALSE)) -> Bogotá región emprendedora e innovadora | M26: =IF(ISERROR(VLOOKUP(K26,Proposito_programa!$C$2:$E$59,3,FALSE))," ",VLOOKUP(K26,Proposito_programa!$C$2:$E$59,3,FALSE)) -> Propósito 1: Hacer un nuevo contrato social para incrementar la inclusión social, productiva y política | N26: 1597 | O26: 4 | P26: 1015447038 | Q26: PAULA ANDREA ARIAS GOMEZ | R26: Persona Natural | W26: 41130000 | Y26: 1 | Z26: 20565000 | AA26: 61695000 | AB26: 61695001 | AC26: 2023-02-06 | AD26: 2023-02-07 | AE26: 2024-03-21 | AF26: 405 | AG26: 1 | AH26: 135 | AM26: En ejecución | AN26: 1.000000016
A27: 017 | B27: 2023 | C27: FDLE-CD-017-2023 | D27: https://community.secop.gov.co/Public/Tendering/OpportunityDetail/Index?noticeUID=CO1.NTC.3906186&isFromPublicArea=True&isModal=False | E27: Contratos de prestación de servicios | F27: Contratación directa | G27: Prestación de servicios profesionales y de apoyo a la gestión, o para la ejecución de trabajos artísticos que sólo puedan encomendarse a determinadas personas naturales | H27: LA PRESTACIÓN DE SERVICIOS PROFESIONALES DE APOYO AL ÁREA DE GESTIÓN DE DESARROLLO LOCAL EN LA PLANIFICACIÓN DE LOS PROCESOS CULTURALES Y EN EL ACOMPAÑAMIENTO DE LAS ESTRATEGIAS Y ACTIVIDADES QUE DE ALLÍ SE DERIVEN. | I27: Inversión | J27: Un nuevo contrato social y ambiental para la Bogotá del Siglo XXI | K27: 24 | L27: =IF(ISERROR(VLOOKUP(K27,Proposito_programa!$C$2:$E$59,2,FALSE))," ",VLOOKUP(K27,Proposito_programa!$C$2:$E$59,2,FALSE)) -> Bogotá región emprendedora e innovadora | M27: =IF(ISERROR(VLOOKUP(K27,Proposito_programa!$C$2:$E$59,3,FALSE))," ",VLOOKUP(K27,Proposito_programa!$C$2:$E$59,3,FALSE)) -> Propósito 1: Hacer un nuevo contrato social para incrementar la inclusión social, productiva y política | N27: 1597 | O27: 7 | P27: 1022352280 | Q27: HERNAN RODRIGO PIEDRA CAICEDO | R27: Persona Natural | W27: 41130000 | AA27: 41130000 | AB27: 41130000 | AC27: 2023-02-06 | AD27: 2023-02-07 | AE27: 2023-11-06 | AF27: 270 | AM27: Terminado | AN27: 1
A28: 018 | B28: 2023 | C28: FDLE-CD-018-2023 | D28: https://community.secop.gov.co/Public/Tendering/OpportunityDetail/Index?noticeUID=CO1.NTC.3897966&isFromPublicArea=True&isModal=False | E28: Contratos de prestación de servicios | F28: Contratación directa | G28: Prestación de servicios profesionales y de apoyo a la gestión, o para la ejecución de trabajos artísticos que sólo puedan encomendarse a determinadas personas naturales | H28: LA PRESTACIÓN DE SERVICIOS PROFESIONALES DE APOYO AL ÁREA DE GESTIÓN DE DESARROLLO LOCAL EN LA PLANIFICACIÓN DE LOS PROCESOS CULTURALES Y EN EL ACOMPAÑAMIENTO DE LAS ESTRATEGIAS Y ACTIVIDADES QUE DE ALLÍ SE DERIVEN. | I28: Inversión | J28: Un nuevo contrato social y ambiental para la Bogotá del Siglo XXI | K28: 24 | L28: =IF(ISERROR(VLOOKUP(K28,Proposito_programa!$C$2:$E$59,2,FALSE))," ",VLOOKUP(K28,Proposito_programa!$C$2:$E$59,2,FALSE)) -> Bogotá región emprendedora e innovadora | M28: =IF(ISERROR(VLOOKUP(K28,Proposito_programa!$C$2:$E$59,3,FALSE))," ",VLOOKUP(K28,Proposito_programa!$C$2:$E$59,3,FALSE)) -> Propósito 1: Hacer un nuevo contrato social para incrementar la inclusión social, productiva y política | N28: 1597 | O28: 4 | P28: 1014194889 | Q28: JENNY ALEXANDRA GARZON MORENO | R28: Persona Natural | W28: 41130000 | AA28: 41130000 | AB28: 41130000 | AC28: 2023-02-06 | AD28: 2023-02-08 | AE28: 2023-11-07 | AF28: 270 | AM28: Terminado | AN28: 1
A29: 019 | B29: 2023 | C29: FDLE-CD-019-2023 | D29: https://community.secop.gov.co/Public/Tendering/OpportunityDetail/Index?noticeUID=CO1.NTC.3786332&isFromPublicArea=True&isModal=False | E29: Contratos de prestación de servicios | F29: Contratación directa | G29: Prestación de servicios profesionales y de apoyo a la gestión, o para la ejecución de trabajos artísticos que sólo puedan encomendarse a determinadas personas naturales | H29: LA PRESTACIÓN DE SERVICIOS PROFESIONALES AL ÁREA DE GESTIÓN DE DESARROLLO LOCAL DE ENGATIVÁ, EN LOS TRÁMITES RELACIONADOS CON LOS PROCESOS PRECONTRACTUALES, CONTRACTUALES Y POS CONTRACTUALES Y EN LAS DEMÁS ACTIVIDADES QUE ALLÍ SE REQUIERAN | I29: Inversión | J29: Un nuevo contrato social y ambiental para la Bogotá del Siglo XXI | K29: 57 | L29: =IF(ISERROR(VLOOKUP(K29,Proposito_programa!$C$2:$E$59,2,FALSE))," ",VLOOKUP(K29,Proposito_programa!$C$2:$E$59,2,FALSE)) -> Gestión pública local | M29: =IF(ISERROR(VLOOKUP(K29,Proposito_programa!$C$2:$E$59,3,FALSE))," ",VLOOKUP(K29,Proposito_programa!$C$2:$E$59,3,FALSE)) -> Propósito 5: Construir Bogotá - Región con gobierno abierto, transparente y ciudadanía consciente | N29: 1623 | O29: 4 | P29: 1032440271 | Q29: MARIANGELA ZUÑIGA SALAZAR | R29: Persona Natural | W29: 63000000 | Y29: 1 | Z29: 21000000 | AA29: 84000000 | AB29: 84000001 | AC29: 2023-01-18 | AD29: 2023-01-18 | AE29: 2024-01-17 | AF29: 360 | AG29: 1 | AH29: 90 | AM29: En ejecución | AN29: 1.000000012
A30: 020 | B30: 2023 | C30: FDLE-CD-020-2023 | D30: https://community.secop.gov.co/Public/Tendering/OpportunityDetail/Index?noticeUID=CO1.NTC.3895366&isFromPublicArea=True&isModal=False | E30: Contratos de prestación de servicios | F30: Contratación directa | G30: Prestación de servicios profesionales y de apoyo a la gestión, o para la ejecución de trabajos artísticos que sólo puedan encomendarse a determinadas personas naturales | H30: LA PRESTACIÓN DE SERVICIOS PROFESIONALES AL ÁREA DE GESTIÓN DE DESARROLLO LOCAL, APOYANDO LAS ESTRATEGIAS Y ACTIVIDADES RELACIONADAS CON LA EJECUCION Y SEGUIMIENTO DE LAS INSTANCIAS DE COORDINACIÓN INTERINSTITUCIONALES Y LAS INSTANCIAS DE PARTICIPACIÓN DE LA LOCALIDA DE ENGATIVA, DE CONFORMIDAD CON LOS ESTUDIOS PREVIOS. | I30: Inversión | J30: Un nuevo contrato social y ambiental para la Bogotá del Siglo XXI | K30: 6 | L30: =IF(ISERROR(VLOOKUP(K30,Proposito_programa!$C$2:$E$59,2,FALSE))," ",VLOOKUP(K30,Proposito_programa!$C$2:$E$59,2,FALSE)) -> Sistema Distrital de Cuidado | M30: =IF(ISERROR(VLOOKUP(K30,Proposito_programa!$C$2:$E$59,3,FALSE))," ",VLOOKUP(K30,Proposito_programa!$C$2:$E$59,3,FALSE)) -> Propósito 1: Hacer un nuevo contrato social para incrementar la inclusión social, productiva y política | N30: 1599 | O30: 1 | P30: 1024523409 | Q30: NATALIA CAROLINA ZARATE TORRES | R30: Persona Natural | W30: 77000000 | Y30: 1 | Z30: 35000000 | AA30: 112000000 | AB30: 112000001 | AC30: 2023-02-02 | AD30: 2023-02-02 | AE30: 2024-06-01 | AF30: 480 | AG30: 1 | AH30: 150 | AM30: En ejecución | AN30: 1.000000009
A31: 022 | B31: 2023 | C31: FDLE-CD-022-2023 | D31: https://community.secop.gov.co/Public/Tendering/OpportunityDetail/Index?noticeUID=CO1.NTC.3807390&isFromPublicArea=True&isModal=False | E31: Contratos de prestación de servicios | F31: Contratación directa | G31: Prestación de servicios profesionales y de apoyo a la gestión, o para la ejecución de trabajos artísticos que sólo puedan encomendarse a determinadas personas naturales | H31: LA PRESTACIÓN DE SERVICIOS PROFESIONALES DE APOYO EN LA PLANIFICACIÓN DE LOS PROCESOS DEPORTIVOS Y RECREO DEPORTIVOS Y EN EL ACOMPAÑAMIENTO DE LAS ESTRATEGIAS Y ACTIVIDADES QUE DE ALLÍ SE DERIVEN. | I31: Inversión | J31: Un nuevo contrato social y ambiental para la Bogotá del Siglo XXI | K31: 20 | L31: =IF(ISERROR(VLOOKUP(K31,Proposito_programa!$C$2:$E$59,2,FALSE))," ",VLOOKUP(K31,Proposito_programa!$C$2:$E$59,2,FALSE)) -> Bogotá, referente en cultura, deporte, recreación y actividad física, con parques para el desarrollo y la salud | M31: =IF(ISERROR(VLOOKUP(K31,Proposito_programa!$C$2:$E$59,3,FALSE))," ",VLOOKUP(K31,Proposito_programa!$C$2:$E$59,3,FALSE)) -> Propósito 1: Hacer un nuevo contrato social para incrementar la inclusión social, productiva y política | N31: 1594 | O31: 2 | P31: 1073669269 | Q31: ALIX MELIZA GARCÍA BOHÓRQUEZ | R31: Persona Natural | W31: 41130000 | Y31: 1 | Z31: 18280000 | AA31: 59410000 | AB31: 59410001 | AC31: 2023-01-30 | AD31: 2023-01-31 | AE31: 2024-02-29 | AF31: 390 | AG31: 1 | AH31: 120 | AM31: En ejecución | AN31: 1.000000017
A32: 023 | B32: 2023 | C32: FDLE-CD-023-2023 | D32: https://community.secop.gov.co/Public/Tendering/OpportunityDetail/Index?noticeUID=CO1.NTC.3807387&isFromPublicArea=True&isModal=False | E32: Contratos de prestación de servicios | F32: Contratación directa | G32: Prestación de servicios profesionales y de apoyo a la gestión, o para la ejecución de trabajos artísticos que sólo puedan encomendarse a determinadas personas naturales | H32: LA PRESTACIÓN DE SERVICIOS PROFESIONALES DE APOYO EN LA PLANIFICACIÓN DE LOS PROCESOS DEPORTIVOS Y RECREO DEPORTIVOS Y EN EL ACOMPAÑAMIENTO DE LAS ESTRATEGIAS Y ACTIVIDADES QUE DE ALLÍ SE DERIVEN. | I32: Inversión | J32: Un nuevo contrato social y ambiental para la Bogotá del Siglo XXI | K32: 20 | L32: =IF(ISERROR(VLOOKUP(K32,Proposito_programa!$C$2:$E$59,2,FALSE))," ",VLOOKUP(K32,Proposito_programa!$C$2:$E$59,2,FALSE)) -> Bogotá, referente en cultura, deporte, recreación y actividad física, con parques para el desarrollo y la salud | M32: =IF(ISERROR(VLOOKUP(K32,Proposito_programa!$C$2:$E$59,3,FALSE))," ",VLOOKUP(K32,Proposito_programa!$C$2:$E$59,3,FALSE)) -> Propósito 1: Hacer un nuevo contrato social para incrementar la inclusión social, productiva y política | N32: 1594 | O32: 1 | P32: 80191442 | Q32: ANDRES FELIPE CONTRERAS MURCIA | R32: Persona Natural | W32: 41130000 | Y32: 1 | Z32: 9140000 | AA32: 50270000 | AB32: 50270001 | AC32: 2023-01-30 | AD32: 2023-01-31 | AE32: 2023-12-30 | AF32: 330 | AG32: 1 | AH32: 60 | AM32: Terminado | AN32: 1.00000002
A33: 024 | B33: 2023 | C33: FDLE-CD-024-2023 | D33: https://community.secop.gov.co/Public/Tendering/OpportunityDetail/Index?noticeUID=CO1.NTC.3913441&isFromPublicArea=True&isModal=False | E33: Contratos de prestación de servicios | F33: Contratación directa | G33: Prestación de servicios profesionales y de apoyo a la gestión, o para la ejecución de trabajos artísticos que sólo puedan encomendarse a determinadas personas naturales | H33: PRESTACIÓN DE SERVICIOS PROFESIONALES PARA APOYAR LA COORDINACIÓN Y PROGRAMACIÓN DE LOS CONDUCTORES DE MAQUINARIA AMARILLA Y/O MAQUINARIA PESADA PROPIEDAD DEL FONDO DE DESARROLLO LOCAL DE ENGATIVÁ. | I33: Inversión | J33: Un nuevo contrato social y ambiental para la Bogotá del Siglo XXI | K33: 49 | L33: =IF(ISERROR(VLOOKUP(K33,Proposito_programa!$C$2:$E$59,2,FALSE))," ",VLOOKUP(K33,Proposito_programa!$C$2:$E$59,2,FALSE)) -> Movilidad segura, sostenible y accesible | M33: =IF(ISERROR(VLOOKUP(K33,Proposito_programa!$C$2:$E$59,3,FALSE))," ",VLOOKUP(K33,Proposito_programa!$C$2:$E$59,3,FALSE)) -> Propósito 4: Hacer de Bogotá Región un modelo de movilidad multimodal, incluyente y sostenible | N33: 1621 | O33: 5 | P33: 80206657 | Q33: LEONARDO ALBERTO HERNÁNDEZ PENAGOS | R33: Persona Natural | W33: 71500000 | Y33: 2 | Z33: 17550000 | AA33: 89050000 | AB33: 89050002 | AC33: 2023-02-08 | AD33: 2023-02-09 | AE33: 2024-03-29 | AF33: 411 | AG33: 1 | AH33: 30 | AI33: 80206657 | AJ33: LEONARDO ALBERTO HERNÁNDEZ PENAGOS | AK33: 2023-09-21 | AL33: 11044167 | AM33: En ejecución | AN33: 1.000000022
A34: 025 | B34: 2023 | C34: FDLE-CD-025-2023 | D34: https://community.secop.gov.co/Public/Tendering/OpportunityDetail/Index?noticeUID=CO1.NTC.4089976&isFromPublicArea=True&isModal=False | E34: Contratos de prestación de servicios | F34: Contratación directa | G34: Prestación de servicios profesionales y de apoyo a la gestión, o para la ejecución de trabajos artísticos que sólo puedan encomendarse a determinadas personas naturales | H34: LA PRESTACIÓN DE SERVICIOS PROFESIONALES AL ÁREA DE GESTIÓN DE DESARROLLO LOCAL, APOYANDO LAS ESTRATEGIAS DE PROMOCIÓN DE LA PARTICIPACIÓN DE LAS MUJERES Y DE LA EQUIDAD DE GÉNERO Y TRANSVERSALIZACIÓN DE LA POLÍTICA PÚBLICA DE MUJERES Y EQUIDAD DE GÉNERO - PPMyEG, EN LA LOCALIDAD DE ENGATIVÁ. | I34: Inversión | J34: Un nuevo contrato social y ambiental para la Bogotá del Siglo XXI | K34: 40 | L34: =IF(ISERROR(VLOOKUP(K34,Proposito_programa!$C$2:$E$59,2,FALSE))," ",VLOOKUP(K34,Proposito_programa!$C$2:$E$59,2,FALSE)) -> Más mujeres viven una vida libre de violencias, se sienten seguras y acceden con confianza al sistema de justicia | M34: =IF(ISERROR(VLOOKUP(K34,Proposito_programa!$C$2:$E$59,3,FALSE))," ",VLOOKUP(K34,Proposito_programa!$C$2:$E$59,3,FALSE)) -> Propósito 3: Inspirar confianza y legitimidad para vivir sin miedo y ser epicentro de cultura ciudadana, paz y reconciliación | N34: 1616 | O34: 8 | P34: 52790790 | Q34: MILY JOHANNA ROJAS UÑATE | R34: Persona Natural | W34: 41130000 | Y34: 1 | Z34: 18280000 | AA34: 59410000 | AB34: 59410001 | AC34: 2023-03-01 | AD34: 2023-03-06 | AE34: 2024-04-05 | AF34: 390 | AG34: 1 | AH34: 120 | AM34: En ejecución | AN34: 1.000000017
A35: 026 | B35: 2023 | C35: FDLE-CD-026-2023 | D35: https://community.secop.gov.co/Public/Tendering/OpportunityDetail/Index?noticeUID=CO1.NTC.3954018&isFromPublicArea=True&isModal=False | E35: Contratos de prestación de servicios | F35: Contratación directa | G35: Prestación de servicios profesionales y de apoyo a la gestión, o para la ejecución de trabajos artísticos que sólo puedan encomendarse a determinadas personas naturales | H35: LA PRESTACIÓN DE SERVICIOS PROFESIONALES DE APOYO AL ÁREA DE GESTIÓN DE DESARROLLO LOCAL, EN INFRAESTRUCTURA, EN LAS ACTIVIDADES RELACIONADAS CON LA FORMULACIÓN, EJECUCIÓN, SEGUIMIENTO Y EVALUACIÓN DE LOS PROYECTOS RELACIONADOS CON MALLA VIAL, ESPACIO PÚBLICO, PARQUES, OBRAS Y/O INFRAESTRUCTURA QUE LE SEAN ASIGNADOS. | I35: Inversión | J35: Un nuevo contrato social y ambiental para la Bogotá del Siglo XXI | K35: 49 | L35: =IF(ISERROR(VLOOKUP(K35,Proposito_programa!$C$2:$E$59,2,FALSE))," ",VLOOKUP(K35,Proposito_programa!$C$2:$E$59,2,FALSE)) -> Movilidad segura, sostenible y accesible | M35: =IF(ISERROR(VLOOKUP(K35,Proposito_programa!$C$2:$E$59,3,FALSE))," ",VLOOKUP(K35,Proposito_programa!$C$2:$E$59,3,FALSE)) -> Propósito 4: Hacer de Bogotá Región un modelo de movilidad multimodal, incluyente y sostenible | N35: 1621 | O35: 8 | P35: 1070011139 | Q35: LAURA CAMILA VINCHERY RUBIANO | R35: Persona Natural | W35: 49500000 | AA35: 49500000 | AB35: 49500000 | AC35: 2023-02-16 | AD35: 2023-02-21 | AE35: 2023-11-20 | AF35: 270 | AM35: Terminado | AN35: 1
A36: 027 | B36: 2023 | C36: FDLE-CD-027-2023 | D36: https://community.secop.gov.co/Public/Tendering/OpportunityDetail/Index?noticeUID=CO1.NTC.3939570&isFromPublicArea=True&isModal=False | E36: Contratos de prestación de servicios | F36: Contratación directa | G36: Prestación de servicios profesionales y de apoyo a la gestión, o para la ejecución de trabajos artísticos que sólo puedan encomendarse a determinadas personas naturales | H36: LA PRESTACIÓN DE SERVICIOS PROFESIONALES DE APOYO AL ÁREA DE GESTIÓN DE DESARROLLO LOCAL, EN INFRAESTRUCTURA, EN LAS ACTIVIDADES RELACIONADAS CON LA FORMULACIÓN, EJECUCIÓN, SEGUIMIENTO Y EVALUACIÓN DE LOS PROYECTOS RELACIONADOS CON MALLA VIAL, ESPACIO PÚBLICO, PARQUES, OBRAS Y/O INFRAESTRUCTURA QUE LE SEAN ASIGNADOS. | I36: Inversión | J36: Un nuevo contrato social y ambiental para la Bogotá del Siglo XXI | K36: 49 | L36: =IF(ISERROR(VLOOKUP(K36,Proposito_programa!$C$2:$E$59,2,FALSE))," ",VLOOKUP(K36,Proposito_programa!$C$2:$E$59,2,FALSE)) -> Movilidad segura, sostenible y accesible | M36: =IF(ISERROR(VLOOKUP(K36,Proposito_programa!$C$2:$E$59,3,FALSE))," ",VLOOKUP(K36,Proposito_programa!$C$2:$E$59,3,FALSE)) -> Propósito 4: Hacer de Bogotá Región un modelo de movilidad multimodal, incluyente y sostenible | N36: 1621 | O36: 2 | P36: 1073426077 | Q36: CATHERIN DAYANA AMADO SOPO | R36: Persona Natural | W36: 49500000 | AA36: 49500000 | AB36: 49500000 | AC36: 2023-02-06 | AD36: 2023-02-07 | AE36: 2023-03-15 | AF36: 270 | AM36: Terminado | AN36: 1
A37: 028 | B37: 2023 | C37: FDLE-CD-028-2023 | D37: https://community.secop.gov.co/Public/Tendering/OpportunityDetail/Index?noticeUID=CO1.NTC.3953920&isFromPublicArea=True&isModal=False | E37: Contratos de prestación de servicios | F37: Contratación directa | G37: Prestación de servicios profesionales y de apoyo a la gestión, o para la ejecución de trabajos artísticos que sólo puedan encomendarse a determinadas personas naturales | H37: LA PRESTACIÓN DE SERVICIOS PROFESIONALES DE APOYO AL ÁREA DE GESTIÓN DE DESARROLLO LOCAL, EN INFRAESTRUCTURA, EN LAS ACTIVIDADES RELACIONADAS CON LA FORMULACIÓN, EJECUCIÓN, SEGUIMIENTO Y EVALUACIÓN DE LOS PROYECTOS RELACIONADOS CON MALLA VIAL, ESPACIO PÚBLICO, PARQUES, OBRAS Y/O INFRAESTRUCTURA QUE LE SEAN ASIGNADOS. | I37: Inversión | J37: Un nuevo contrato social y ambiental para la Bogotá del Siglo XXI | K37: 49 | L37: =IF(ISERROR(VLOOKUP(K37,Proposito_programa!$C$2:$E$59,2,FALSE))," ",VLOOKUP(K37,Proposito_programa!$C$2:$E$59,2,FALSE)) -> Movilidad segura, sostenible y accesible | M37: =IF(ISERROR(VLOOKUP(K37,Proposito_programa!$C$2:$E$59,3,FALSE))," ",VLOOKUP(K37,Proposito_programa!$C$2:$E$59,3,FALSE)) -> Propósito 4: Hacer de Bogotá Región un modelo de movilidad multimodal, incluyente y sostenible | N37: 1621 | O37: 4 | P37: 51864992 | Q37: YOLANDA AMPARO RIAÑO GARCIA | R37: Persona Natural | W37: 49500000 | Y37: 1 | Z37: 22000000 | AA37: 71500000 | AB37: 71500001 | AC37: 2023-02-13 | AD37: 2023-02-15 | AE37: 2024-03-14 | AF37: 390 | AG37: 1 | AH37: 120 | AM37: En ejecución | AN37: 1.000000014
A38: 029 | B38: 2023 | C38: FDLE-CD-029-2023 | D38: https://community.secop.gov.co/Public/Tendering/OpportunityDetail/Index?noticeUID=CO1.NTC.3953918&isFromPublicArea=True&isModal=False | E38: Contratos de prestación de servicios | F38: Contratación directa | G38: Prestación de servicios profesionales y de apoyo a la gestión, o para la ejecución de trabajos artísticos que sólo puedan encomendarse a determinadas personas naturales | H38: LA PRESTACIÓN DE SERVICIOS PROFESIONALES DE APOYO AL ÁREA DE GESTIÓN DE DESARROLLO LOCAL, EN INFRAESTRUCTURA, EN LAS ACTIVIDADES RELACIONADAS CON LA FORMULACIÓN, EJECUCIÓN, SEGUIMIENTO Y EVALUACIÓN DE LOS PROYECTOS RELACIONADOS CON MALLA VIAL, ESPACIO PÚBLICO, PARQUES, OBRAS Y/O INFRAESTRUCTURA QUE LE SEAN ASIGNADOS. | I38: Inversión | J38: Un nuevo contrato social y ambiental para la Bogotá del Siglo XXI | K38: 49 | L38: =IF(ISERROR(VLOOKUP(K38,Proposito_programa!$C$2:$E$59,2,FALSE))," ",VLOOKUP(K38,Proposito_programa!$C$2:$E$59,2,FALSE)) -> Movilidad segura, sostenible y accesible | M38: =IF(ISERROR(VLOOKUP(K38,Proposito_programa!$C$2:$E$59,3,FALSE))," ",VLOOKUP(K38,Proposito_programa!$C$2:$E$59,3,FALSE)) -> Propósito 4: Hacer de Bogotá Región un modelo de movilidad multimodal, incluyente y sostenible | N38: 1621 | O38: 2 | P38: 1010222335 | Q38: NATALIA LORENA BELTRAN GARCIA | R38: Persona Natural | W38: 49500000 | Y38: 1 | Z38: 22000000 | AA38: 71500000 | AB38: 71500001 | AC38: 2023-02-08 | AD38: 2023-02-14 | AE38: 2024-03-13 | AF38: 390 | AG38: 1 | AH38: 120 | AM38: En ejecución | AN38: 1.000000014
A39: 030 | B39: 2023 | C39: FDLE-CD-030-2023 | D39: https://community.secop.gov.co/Public/Tendering/OpportunityDetail/Index?noticeUID=CO1.NTC.3937517&isFromPublicArea=True&isModal=False | E39: Contratos de prestación de servicios | F39: Contratación directa | G39: Prestación de servicios profesionales y de apoyo a la gestión, o para la ejecución de trabajos artísticos que sólo puedan encomendarse a determinadas personas naturales | H39: LA PRESTACIÓN DE SERVICIOS PROFESIONALES DE APOYO AL ÁREA DE GESTIÓN DE DESARROLLO LOCAL, EN INFRAESTRUCTURA, EN LAS ACTIVIDADES RELACIONADAS CON LA FORMULACIÓN, EJECUCIÓN, SEGUIMIENTO Y EVALUACIÓN DE LOS PROYECTOS RELACIONADOS CON MALLA VIAL, ESPACIO PÚBLICO, PARQUES, OBRAS Y/O INFRAESTRUCTURA QUE LE SEAN ASIGNADOS. | I39: Inversión | J39: Un nuevo contrato social y ambiental para la Bogotá del Siglo XXI | K39: 49 | L39: =IF(ISERROR(VLOOKUP(K39,Proposito_programa!$C$2:$E$59,2,FALSE))," ",VLOOKUP(K39,Proposito_programa!$C$2:$E$59,2,FALSE)) -> Movilidad segura, sostenible y accesible | M39: =IF(ISERROR(VLOOKUP(K39,Proposito_programa!$C$2:$E$59,3,FALSE))," ",VLOOKUP(K39,Proposito_programa!$C$2:$E$59,3,FALSE)) -> Propósito 4: Hacer de Bogotá Región un modelo de movilidad multimodal, incluyente y sostenible | N39: 1621 | O39: 0 | P39: 1070613514 | Q39: MELISSA MARIA ANDRADE BRICEÑO | R39: Persona Natural | W39: 60500000 | AA39: 60500000 | AB39: 60500000 | AC39: 2023-02-06 | AD39: 2023-02-08 | AE39: 2024-01-15 | AF39: 330 | AM39: En ejecución | AN39: 1
A40: 031 | B40: 2023 | C40: FDLE-CD-031-2023 | D40: https://community.secop.gov.co/Public/Tendering/OpportunityDetail/Index?noticeUID=CO1.NTC.3908749&isFromPublicArea=True&isModal=False | E40: Contratos de prestación de servicios | F40: Contratación directa | G40: Prestación de servicios profesionales y de apoyo a la gestión, o para la ejecución de trabajos artísticos que sólo puedan encomendarse a determinadas personas naturales | H40: LA PRESTACIÓN DE SERVICIOS PROFESIONALES DE APOYO AL ÁREA DE GESTIÓN DE DESARROLLO LOCAL, EN INFRAESTRUCTURA, EN LAS ACTIVIDADES RELACIONADAS CON LA FORMULACIÓN, EJECUCIÓN, SEGUIMIENTO Y EVALUACIÓN DE LOS PROYECTOS RELACIONADOS CON MALLA VIAL, ESPACIO PÚBLICO, PARQUES, OBRAS Y/O INFRAESTRUCTURA QUE LE SEAN ASIGNADOS. | I40: Inversión | J40: Un nuevo contrato social y ambiental para la Bogotá del Siglo XXI | K40: 49 | L40: =IF(ISERROR(VLOOKUP(K40,Proposito_programa!$C$2:$E$59,2,FALSE))," ",VLOOKUP(K40,Proposito_programa!$C$2:$E$59,2,FALSE)) -> Movilidad segura, sostenible y accesible | M40: =IF(ISERROR(VLOOKUP(K40,Proposito_programa!$C$2:$E$59,3,FALSE))," ",VLOOKUP(K40,Proposito_programa!$C$2:$E$59,3,FALSE)) -> Propósito 4: Hacer de Bogotá Región un modelo de movilidad multimodal, incluyente y sostenible | N40: 1621 | O40: 4 | P40: 1013639789 | Q40: CHRISTIAN ORLANDO ENCISO SUAREZ | R40: Persona Natural | W40: 60500000 | Y40: 1 | Z40: 27500000 | AA40: 88000000 | AB40: 88000001 | AC40: 2023-02-02 | AD40: 2023-02-07 | AE40: 2024-06-06 | AF40: 480 | AG40: 1 | AH40: 150 | AM40: En ejecución | AN40: 1.000000011
A41: 032 | B41: 2023 | C41: FDLE-CD-032-2023 | D41: https://community.secop.gov.co/Public/Tendering/OpportunityDetail/Index?noticeUID=CO1.NTC.3908608&isFromPublicArea=True&isModal=False | E41: Contratos de prestación de servicios | F41: Contratación directa | G41: Prestación de servicios profesionales y de apoyo a la gestión, o para la ejecución de trabajos artísticos que sólo puedan encomendarse a determinadas personas naturales | H41: LA PRESTACIÓN DE SERVICIOS PROFESIONALES DE APOYO AL ÁREA DE GESTIÓN DE DESARROLLO LOCAL, EN INFRAESTRUCTURA, EN LAS ACTIVIDADES RELACIONADAS CON LA FORMULACIÓN, EJECUCIÓN, SEGUIMIENTO Y EVALUACIÓN DE LOS PROYECTOS RELACIONADOS CON MALLA VIAL, ESPACIO PÚBLICO, PARQUES, OBRAS Y/O INFRAESTRUCTURA QUE LE SEAN ASIGNADOS. | I41: Inversión | J41: Un nuevo contrato social y ambiental para la Bogotá del Siglo XXI | K41: 49 | L41: =IF(ISERROR(VLOOKUP(K41,Proposito_programa!$C$2:$E$59,2,FALSE))," ",VLOOKUP(K41,Proposito_programa!$C$2:$E$59,2,FALSE)) -> Movilidad segura, sostenible y accesible | M41: =IF(ISERROR(VLOOKUP(K41,Proposito_programa!$C$2:$E$59,3,FALSE))," ",VLOOKUP(K41,Proposito_programa!$C$2:$E$59,3,FALSE)) -> Propósito 4: Hacer de Bogotá Región un modelo de movilidad multimodal, incluyente y sostenible | N41: 1621 | O41: 2 | P41: 1118552792 | Q41: JOSE MAURICIO PLAZAS HIGUERA | R41: Persona Natural | W41: 60500000 | Y41: 1 | Z41: 27500000 | AA41: 88000000 | AB41: 88000001 | AC41: 2023-02-02 | AD41: 2023-02-07 | AE41: 2024-06-06 | AF41: 480 | AG41: 1 | AH41: 150 | AM41: En ejecución | AN41: 1.000000011
A42: 033 | B42: 2023 | C42: FDLE-CD-033-2023 | D42: https://community.secop.gov.co/Public/Tendering/OpportunityDetail/Index?noticeUID=CO1.NTC.3908185&isFromPublicArea=True&isModal=False | E42: Contratos de prestación de servicios | F42: Contratación directa | G42: Prestación de servicios profesionales y de apoyo a la gestión, o para la ejecución de trabajos artísticos que sólo puedan encomendarse a determinadas personas naturales | H42: LA PRESTACIÓN DE SERVICIOS PROFESIONALES DE APOYO AL ÁREA DE GESTIÓN DE DESARROLLO LOCAL, EN INFRAESTRUCTURA, EN LAS ACTIVIDADES RELACIONADAS CON LA FORMULACIÓN, EJECUCIÓN, SEGUIMIENTO Y EVALUACIÓN DE LOS PROYECTOS RELACIONADOS CON MALLA VIAL, ESPACIO PÚBLICO, PARQUES, OBRAS Y/O INFRAESTRUCTURA QUE LE SEAN ASIGNADOS. | I42: Inversión | J42: Un nuevo contrato social y ambiental para la Bogotá del Siglo XXI | K42: 49 | L42: =IF(ISERROR(VLOOKUP(K42,Proposito_programa!$C$2:$E$59,2,FALSE))," ",VLOOKUP(K42,Proposito_programa!$C$2:$E$59,2,FALSE)) -> Movilidad segura, sostenible y accesible | M42: =IF(ISERROR(VLOOKUP(K42,Proposito_programa!$C$2:$E$59,3,FALSE))," ",VLOOKUP(K42,Proposito_programa!$C$2:$E$59,3,FALSE)) -> Propósito 4: Hacer de Bogotá Región un modelo de movilidad multimodal, incluyente y sostenible | N42: 1621 | O42: 3 | P42: 1015412019 | Q42: GABRIEL ANDRES BONILLA VILLARAGA | R42: Persona Natural | W42: 60500000 | Y42: 1 | Z42: 27500000 | AA42: 88000000 | AB42: 88000001 | AC42: 2023-02-02 | AD42: 2023-02-07 | AE42: 2024-06-06 | AF42: 480 | AG42: 1 | AH42: 150 | AM42: En ejecución | AN42: 1.000000011
A43: 034 | B43: 2023 | C43: FDLE-CD-034-2023 | D43: https://community.secop.gov.co/Public/Tendering/OpportunityDetail/Index?noticeUID=CO1.NTC.3908059&isFromPublicArea=True&isModal=False | E43: Contratos de prestación de servicios | F43: Contratación directa | G43: Prestación de servicios profesionales y de apoyo a la gestión, o para la ejecución de trabajos artísticos que sólo puedan encomendarse a determinadas personas naturales | H43: LA PRESTACIÓN DE SERVICIOS PROFESIONALES DE APOYO AL ÁREA DE GESTIÓN DE DESARROLLO LOCAL, EN INFRAESTRUCTURA, EN LAS ACTIVIDADES RELACIONADAS CON LA FORMULACIÓN, EJECUCIÓN, SEGUIMIENTO Y EVALUACIÓN DE LOS PROYECTOS RELACIONADOS CON MALLA VIAL, ESPACIO PÚBLICO, PARQUES, OBRAS Y/O INFRAESTRUCTURA QUE LE SEAN ASIGNADOS. | I43: Inversión | J43: Un nuevo contrato social y ambiental para la Bogotá del Siglo XXI | K43: 49 | L43: =IF(ISERROR(VLOOKUP(K43,Proposito_programa!$C$2:$E$59,2,FALSE))," ",VLOOKUP(K43,Proposito_programa!$C$2:$E$59,2,FALSE)) -> Movilidad segura, sostenible y accesible | M43: =IF(ISERROR(VLOOKUP(K43,Proposito_programa!$C$2:$E$59,3,FALSE))," ",VLOOKUP(K43,Proposito_programa!$C$2:$E$59,3,FALSE)) -> Propósito 4: Hacer de Bogotá Región un modelo de movilidad multimodal, incluyente y sostenible | N43: 1621 | O43: 5 | P43: 80206657 | Q43: LEONARDO ALBERTO HERNÁNDEZ PENAGOS | R43: Persona Natural | W43: 60500000 | Y43: 1 | Z43: 27500000 | AA43: 88000000 | AB43: 88000001 | AC43: 2023-02-02 | AD43: 2023-02-07 | AE43: 2023-09-20 | AF43: 480 | AG43: 1 | AH43: 150 | AM43: Terminado | AN43: 1.000000011
A44: 035 | B44: 2023 | C44: FDLE-CD-035-2023 | D44: https://community.secop.gov.co/Public/Tendering/OpportunityDetail/Index?noticeUID=CO1.NTC.3908135&isFromPublicArea=True&isModal=False | E44: Contratos de prestación de servicios | F44: Contratación directa | G44: Prestación de servicios profesionales y de apoyo a la gestión, o para la ejecución de trabajos artísticos que sólo puedan encomendarse a determinadas personas naturales | H44: LA PRESTACIÓN DE SERVICIOS PROFESIONALES DE APOYO AL ÁREA DE GESTIÓN DE DESARROLLO LOCAL, EN INFRAESTRUCTURA, EN LAS ACTIVIDADES RELACIONADAS CON LA FORMULACIÓN, EJECUCIÓN, SEGUIMIENTO Y EVALUACIÓN DE LOS PROYECTOS RELACIONADOS CON MALLA VIAL, ESPACIO PÚBLICO, PARQUES, OBRAS Y/O INFRAESTRUCTURA QUE LE SEAN ASIGNADOS. | I44: Inversión | J44: Un nuevo contrato social y ambiental para la Bogotá del Siglo XXI | K44: 49 | L44: =IF(ISERROR(VLOOKUP(K44,Proposito_programa!$C$2:$E$59,2,FALSE))," ",VLOOKUP(K44,Proposito_programa!$C$2:$E$59,2,FALSE)) -> Movilidad segura, sostenible y accesible | M44: =IF(ISERROR(VLOOKUP(K44,Proposito_programa!$C$2:$E$59,3,FALSE))," ",VLOOKUP(K44,Proposito_programa!$C$2:$E$59,3,FALSE)) -> Propósito 4: Hacer de Bogotá Región un modelo de movilidad multimodal, incluyente y sostenible | N44: 1621 | O44: 2 | P44: 1077972847 | Q44: RAFAEL ANDRES ENCISO VARGAS | R44: Persona Natural | W44: 60500000 | Y44: 1 | Z44: 27500000 | AA44: 88000000 | AB44: 88000001 | AC44: 2023-02-02 | AD44: 2023-02-07 | AE44: 2024-06-06 | AF44: 480 | AG44: 1 | AH44: 150 | AM44: En ejecución | AN44: 1.000000011
A45: 036 | B45: 2023 | C45: FDLE-CD-036-2023 | D45: https://community.secop.gov.co/Public/Tendering/OpportunityDetail/Index?noticeUID=CO1.NTC.3824236&isFromPublicArea=True&isModal=False | E45: Contratos de prestación de servicios | F45: Contratación directa | G45: Prestación de servicios profesionales y de apoyo a la gestión, o para la ejecución de trabajos artísticos que sólo puedan encomendarse a determinadas personas naturales | H45: APOYAR JURÍDICAMENTE LA EJECUCIÓN DE LAS ACCIONES REQUERIDAS PARA LA DEPURACIÓN DE LAS ACTUACIONES ADMINISTRATIVAS QUE CURSAN EN LA ALCALDÍA LOCAL. | I45: Inversión | J45: Un nuevo contrato social y ambiental para la Bogotá del Siglo XXI | K45: 57 | L45: =IF(ISERROR(VLOOKUP(K45,Proposito_programa!$C$2:$E$59,2,FALSE))," ",VLOOKUP(K45,Proposito_programa!$C$2:$E$59,2,FALSE)) -> Gestión pública local | M45: =IF(ISERROR(VLOOKUP(K45,Proposito_programa!$C$2:$E$59,3,FALSE))," ",VLOOKUP(K45,Proposito_programa!$C$2:$E$59,3,FALSE)) -> Propósito 5: Construir Bogotá - Región con gobierno abierto, transparente y ciudadanía consciente | N45: 1624 | O45: 7 | P45: 1214730841 | Q45: ANDRES FELIPE MARTINEZ MERLANO | R45: Persona Natural | W45: 41130000 | Y45: 1 | Z45: 20565000 | AA45: 61695000 | AB45: 61695001 | AC45: 2023-01-23 | AD45: 2023-01-25 | AE45: 2024-03-10 | AF45: 405 | AG45: 1 | AH45: 135 | AM45: En ejecución | AN45: 1.000000016
A46: 037 | B46: 2023 | C46: FDLE-CD-037-2023 | D46: https://community.secop.gov.co/Public/Tendering/OpportunityDetail/Index?noticeUID=CO1.NTC.3807383&isFromPublicArea=True&isModal=False | E46: Contratos de prestación de servicios | F46: Contratación directa | G46: Prestación de servicios profesionales y de apoyo a la gestión, o para la ejecución de trabajos artísticos que sólo puedan encomendarse a determinadas personas naturales | H46: LA PRESTACIÓN DE SERVICIOS TÉCNICOS DE APOYO EN LA GESTIÓN Y PROMOCIÓN DE LOS PROCESOS DEPORTIVOS Y RECREATIVOS DE LA LOCALIDAD Y EN EL ACOMPAÑAMIENTO DE LAS ESTRATEGIAS Y ACTIVIDADES QUE DE ALLÍ SE DERIVEN. | I46: Inversión | J46: Un nuevo contrato social y ambiental para la Bogotá del Siglo XXI | K46: 20 | L46: =IF(ISERROR(VLOOKUP(K46,Proposito_programa!$C$2:$E$59,2,FALSE))," ",VLOOKUP(K46,Proposito_programa!$C$2:$E$59,2,FALSE)) -> Bogotá, referente en cultura, deporte, recreación y actividad física, con parques para el desarrollo y la salud | M46: =IF(ISERROR(VLOOKUP(K46,Proposito_programa!$C$2:$E$59,3,FALSE))," ",VLOOKUP(K46,Proposito_programa!$C$2:$E$59,3,FALSE)) -> Propósito 1: Hacer un nuevo contrato social para incrementar la inclusión social, productiva y política | N46: 1594 | O46: 4 | P46: 1030570374 | Q46: GENY PAOLA BELTRAN PALACIOS | R46: Persona Natural | W46: 28782000 | Y46: 1 | Z46: 12792000 | AA46: 41574000 | AB46: 41574001 | AC46: 2023-01-20 | AD46: 2023-01-23 | AE46: 2024-02-22 | AF46: 390 | AG46: 1 | AH46: 120 | AM46: En ejecución | AN46: 1.000000024
A47: 038 | B47: 2023 | C47: FDLE-CD-038-2023 | D47: https://community.secop.gov.co/Public/Tendering/OpportunityDetail/Index?noticeUID=CO1.NTC.3832883&isFromPublicArea=True&isModal=False | E47: Contratos de prestación de servicios | F47: Contratación directa | G47: Prestación de servicios profesionales y de apoyo a la gestión, o para la ejecución de trabajos artísticos que sólo puedan encomendarse a determinadas personas naturales | H47: PRESTAR SERVICIOS DE APOYO TÉCNICO AL ÁREA DE GESTIÓN POLICIVA JURIDICA DE ENGATIVÁ, EN EL DESARROLLO DE LAS ACTIVIDADES PROPIAS DEL ÁREA. | I47: Inversión | J47: Un nuevo contrato social y ambiental para la Bogotá del Siglo XXI | K47: 57 | L47: =IF(ISERROR(VLOOKUP(K47,Proposito_programa!$C$2:$E$59,2,FALSE))," ",VLOOKUP(K47,Proposito_programa!$C$2:$E$59,2,FALSE)) -> Gestión pública local | M47: =IF(ISERROR(VLOOKUP(K47,Proposito_programa!$C$2:$E$59,3,FALSE))," ",VLOOKUP(K47,Proposito_programa!$C$2:$E$59,3,FALSE)) -> Propósito 5: Construir Bogotá - Región con gobierno abierto, transparente y ciudadanía consciente | N47: 1624 | O47: 8 | P47: 1077971202 | Q47: SARA CATALINA FANDIÑO MONROY | R47: Persona Natural | W47: 28782000 | Y47: 1 | Z47: 14284400 | AA47: 43066400 | AB47: 43066401 | AC47: 2023-01-24 | AD47: 2023-01-30 | AE47: 2024-03-14 | AF47: 404 | AG47: 1 | AH47: 134 | AM47: En ejecución | AN47: 1.000000023
A48: 039 | B48: 2023 | C48: FDLE-CD-039-2023 | D48: https://community.secop.gov.co/Public/Tendering/OpportunityDetail/Index?noticeUID=CO1.NTC.3821249&isFromPublicArea=True&isModal=False | E48: Contratos de prestación de servicios | F48: Contratación directa | G48: Prestación de servicios profesionales y de apoyo a la gestión, o para la ejecución de trabajos artísticos que sólo puedan encomendarse a determinadas personas naturales | H48: LA PRESTACIÓN DE SERVICIOS PROFESIONALES DE APOYO EN LA PLANIFICACIÓN DE LOS PROCESOS DEPORTIVOS Y RECREO DEPORTIVOS Y EN EL ACOMPAÑAMIENTO DE LAS ESTRATEGIAS Y ACTIVIDADES QUE DE ALLÍ SE DERIVEN. | I48: Inversión | J48: Un nuevo contrato social y ambiental para la Bogotá del Siglo XXI | K48: 20 | L48: =IF(ISERROR(VLOOKUP(K48,Proposito_programa!$C$2:$E$59,2,FALSE))," ",VLOOKUP(K48,Proposito_programa!$C$2:$E$59,2,FALSE)) -> Bogotá, referente en cultura, deporte, recreación y actividad física, con parques para el desarrollo y la salud | M48: =IF(ISERROR(VLOOKUP(K48,Proposito_programa!$C$2:$E$59,3,FALSE))," ",VLOOKUP(K48,Proposito_programa!$C$2:$E$59,3,FALSE)) -> Propósito 1: Hacer un nuevo contrato social para incrementar la inclusión social, productiva y política | N48: 1594 | O48: 1 | P48: 11442281 | Q48: HOLLMAN ADRIAN GOMEZ PULIDO | R48: Persona Natural | W48: 41130000 | Y48: 1 | Z48: 18280000 | AA48: 59410000 | AB48: 59410001 | AC48: 2023-01-30 | AD48: 2023-01-31 | AE48: 2024-02-29 | AF48: 390 | AG48: 1 | AH48: 120 | AM48: En ejecución | AN48: 1.000000017
A49: 040 | B49: 2023 | C49: FDLE-CD-040-2023 | D49: https://community.secop.gov.co/Public/Tendering/OpportunityDetail/Index?noticeUID=CO1.NTC.3906493&isFromPublicArea=True&isModal=False | E49: Contratos de prestación de servicios | F49: Contratación directa | G49: Prestación de servicios profesionales y de apoyo a la gestión, o para la ejecución de trabajos artísticos que sólo puedan encomendarse a determinadas personas naturales | H49: LA PRESTACIÓN DE SERVICIOS PROFESIONALES ESPECIALIZADOS AL ÁREA DE GESTIÓN DE DESARROLLO LOCAL, APOYANDO A LIDERAR ESTRATEGIAS Y ACTIVIDADES RELACIONADAS CON LA EJECUCION Y SEGUIMIENTO DE PROCESOS DE INFRAESTRUCTURA Y MOVILIDAD EN LA LOCALIDAD DE ENGATIVÁ. | I49: Inversión | J49: Un nuevo contrato social y ambiental para la Bogotá del Siglo XXI | K49: 49 | L49: =IF(ISERROR(VLOOKUP(K49,Proposito_programa!$C$2:$E$59,2,FALSE))," ",VLOOKUP(K49,Proposito_programa!$C$2:$E$59,2,FALSE)) -> Movilidad segura, sostenible y accesible | M49: =IF(ISERROR(VLOOKUP(K49,Proposito_programa!$C$2:$E$59,3,FALSE))," ",VLOOKUP(K49,Proposito_programa!$C$2:$E$59,3,FALSE)) -> Propósito 4: Hacer de Bogotá Región un modelo de movilidad multimodal, incluyente y sostenible | N49: 1621 | O49: 6 | P49: 1077969994 | Q49: ANDERSON LEONARDO LAVERDE GONGORA | R49: Persona Natural | W49: 97900000 | Y49: 1 | Z49: 26700000 | AA49: 124600000 | AB49: 124600001 | AC49: 2023-02-02 | AD49: 2023-02-02 | AE49: 2024-04-01 | AF49: 420 | AG49: 1 | AH49: 90 | AM49: En ejecución | AN49: 1.000000008
A50: 041 | B50: 2023 | C50: FDLE-CD-041-2023 | D50: https://community.secop.gov.co/Public/Tendering/OpportunityDetail/Index?noticeUID=CO1.NTC.3836427&isFromPublicArea=True&isModal=False | E50: Contratos de prestación de servicios | F50: Contratación directa | G50: Prestación de servicios profesionales y de apoyo a la gestión, o para la ejecución de trabajos artísticos que sólo puedan encomendarse a determinadas personas naturales | H50: LA PRESTACIÓN DE SERVICIOS PROFESIONALES DE APOYO AL ÁREA DE GESTIÓN DE DESARROLLO LOCAL EN LAS ACTIVIDADES DE SISTEMAS, PARA LA ADMINISTRACIÓN DE LA RED LOCAL Y DE LOS RECURSOS TECNOLÓGICOS EXISTENTES EN LA ALCALDÍA LOCAL DE ENGATIVÁ Y DEMÁS ACTIVIDADES QUE ALLÍ SE GENEREN. | I50: Inversión | J50: Un nuevo contrato social y ambiental para la Bogotá del Siglo XXI | K50: 57 | L50: =IF(ISERROR(VLOOKUP(K50,Proposito_programa!$C$2:$E$59,2,FALSE))," ",VLOOKUP(K50,Proposito_programa!$C$2:$E$59,2,FALSE)) -> Gestión pública local | M50: =IF(ISERROR(VLOOKUP(K50,Proposito_programa!$C$2:$E$59,3,FALSE))," ",VLOOKUP(K50,Proposito_programa!$C$2:$E$59,3,FALSE)) -> Propósito 5: Construir Bogotá - Región con gobierno abierto, transparente y ciudadanía consciente | N50: 1623 | O50: 6 | P50: 42893442 | Q50: ADRIANA GARCES RUIZ | R50: Persona Natural | W50: 50270000 | Y50: 1 | Z50: 18280000 | AA50: 68550000 | AB50: 68550001 | AC50: 2023-02-13 | AD50: 2023-02-15 | AE50: 2024-01-14 | AF50: 449 | AG50: 1 | AH50: 119 | AI50: 42893442 | AJ50: ADRIANA GARCES RUIZ | AK50: 2023-11-03 | AL50: 14956364 | AM50: En ejecución | AN50: 1.000000015
A51: 042 | B51: 2023 | C51: FDLE-CD-042-2023 | D51: https://community.secop.gov.co/Public/Tendering/OpportunityDetail/Index?noticeUID=CO1.NTC.3810436&isFromPublicArea=True&isModal=False | E51: Contratos de prestación de servicios | F51: Contratación directa | G51: Prestación de servicios profesionales y de apoyo a la gestión, o para la ejecución de trabajos artísticos que sólo puedan encomendarse a determinadas personas naturales | H51: PRESTAR LOS SERVICIOS DE APOYO A LA GESTIÓN LOCAL Y TERRITORIAL DE LOS TEMAS DE CONVIVENCIA CIUDADANA, DE CONFORMIDAD CON EL MARCO NORMATIVO APLICABLE PARA LA MATERIA. | I51: Inversión | J51: Un nuevo contrato social y ambiental para la Bogotá del Siglo XXI | K51: 43 | L51: =IF(ISERROR(VLOOKUP(K51,Proposito_programa!$C$2:$E$59,2,FALSE))," ",VLOOKUP(K51,Proposito_programa!$C$2:$E$59,2,FALSE)) -> Cultura ciudadana para la confianza, la convivencia y la participación desde la vida cotidiana | M51: =IF(ISERROR(VLOOKUP(K51,Proposito_programa!$C$2:$E$59,3,FALSE))," ",VLOOKUP(K51,Proposito_programa!$C$2:$E$59,3,FALSE)) -> Propósito 3: Inspirar confianza y legitimidad para vivir sin miedo y ser epicentro de cultura ciudadana, paz y reconciliación | N51: 1617 | O51: 3 | P51: 63434515 | Q51: YORLEN PALOMINO VELASCO | R51: Persona Natural | W51: 20700000 | Y51: 1 | Z51: 4600000 | AA51: 25300000 | AB51: 25300001 | AC51: 2023-01-23 | AD51: 2023-01-25 | AE51: 2023-12-24 | AF51: 330 | AG51: 1 | AH51: 60 | AM51: Terminado | AN51: 1.00000004
A52: 043 | B52: 2023 | C52: FDLE-CD-043-2023 | D52: https://community.secop.gov.co/Public/Tendering/OpportunityDetail/Index?noticeUID=CO1.NTC.3914643&isFromPublicArea=True&isModal=False | E52: Contratos de prestación de servicios | F52: Contratación directa | G52: Prestación de servicios profesionales y de apoyo a la gestión, o para la ejecución de trabajos artísticos que sólo puedan encomendarse a determinadas personas naturales | H52: PRESTAR LOS SERVICIOS TÉCNICOS AL ÁREA DE GESTIÓN POLICIVA JURÍDICA Y/O ÁREA DE GESTIÓN DE DESARROLLO LOCAL, EN TEMAS DE SEGURIDAD, PREVENCIÓN Y CONVIVENCIA CIUDADANA EN LA LOCALIDAD, DE CONFORMIDAD CON EL MARCO NORMATIVO APLICABLE PARA LA MATERIA | I52: Inversión | J52: Un nuevo contrato social y ambiental para la Bogotá del Siglo XXI | K52: 48 | L52: =IF(ISERROR(VLOOKUP(K52,Proposito_programa!$C$2:$E$59,2,FALSE))," ",VLOOKUP(K52,Proposito_programa!$C$2:$E$59,2,FALSE)) -> Plataforma institucional para la seguridad y justicia | M52: =IF(ISERROR(VLOOKUP(K52,Proposito_programa!$C$2:$E$59,3,FALSE))," ",VLOOKUP(K52,Proposito_programa!$C$2:$E$59,3,FALSE)) -> Propósito 3: Inspirar confianza y legitimidad para vivir sin miedo y ser epicentro de cultura ciudadana, paz y reconciliación | N52: 1619 | O52: 4 | P52: 80168988 | Q52: JOHAN ALEXANDER RAMIREZ RINCON | R52: Persona Natural | W52: 28782000 | Y52: 1 | Z52: 6396000 | AA52: 35178000 | AB52: 35178001 | AC52: 2023-02-02 | AD52: 2023-02-06 | AE52: 2024-01-05 | AF52: 330 | AG52: 1 | AH52: 60 | AM52: Terminado | AN52: 1.000000028
A53: 044 | B53: 2023 | C53: FDLE-CD-044-2023 | D53: https://community.secop.gov.co/Public/Tendering/OpportunityDetail/Index?noticeUID=CO1.NTC.3860526&isFromPublicArea=True&isModal=False | E53: Contratos de prestación de servicios | F53: Contratación directa | G53: Prestación de servicios profesionales y de apoyo a la gestión, o para la ejecución de trabajos artísticos que sólo puedan encomendarse a determinadas personas naturales | H53: PRESTAR LOS SERVICIOS TÉCNICOS AL ÁREA DE GESTIÓN POLICIVA JURÍDICA Y/O ÁREA DE GESTIÓN DE DESARROLLO LOCAL, EN TEMAS DE SEGURIDAD, PREVENCIÓN Y CONVIVENCIA CIUDADANA EN LA LOCALIDAD, DE CONFORMIDAD CON EL MARCO NORMATIVO APLICABLE PARA LA MATERIA | I53: Inversión | J53: Un nuevo contrato social y ambiental para la Bogotá del Siglo XXI | K53: 48 | L53: =IF(ISERROR(VLOOKUP(K53,Proposito_programa!$C$2:$E$59,2,FALSE))," ",VLOOKUP(K53,Proposito_programa!$C$2:$E$59,2,FALSE)) -> Plataforma institucional para la seguridad y justicia | M53: =IF(ISERROR(VLOOKUP(K53,Proposito_programa!$C$2:$E$59,3,FALSE))," ",VLOOKUP(K53,Proposito_programa!$C$2:$E$59,3,FALSE)) -> Propósito 3: Inspirar confianza y legitimidad para vivir sin miedo y ser epicentro de cultura ciudadana, paz y reconciliación | N53: 1619 | O53: 8 | P53: 1019014673 | Q53: HECTOR ESNEYDER ENCISO FLOREZ | R53: Persona Natural | W53: 28782000 | AA53: 28782000 | AB53: 28782000 | AC53: 2023-02-14 | AD53: 2023-02-20 | AE53: 2023-11-19 | AF53: 270 | AM53: Terminado | AN53: 1
A54: 045 | B54: 2023 | C54: FDLE-CD-045-2023 | D54: https://community.secop.gov.co/Public/Tendering/OpportunityDetail/Index?noticeUID=CO1.NTC.3857203&isFromPublicArea=True&isModal=False | E54: Contratos de prestación de servicios | F54: Contratación directa | G54: Prestación de servicios profesionales y de apoyo a la gestión, o para la ejecución de trabajos artísticos que sólo puedan encomendarse a determinadas personas naturales | H54: LA PRESTACIÓN DE SERVICIOS DE APOYO AL ÁREA DE GESTIÓN DE DESARROLLO LOCAL EN LAS ACTIVIDADES DE MENSAJERÍA Y MANEJO DE CORRESPONDENCIA DE LA DOCUMENTACIÓN PROCEDENTE DEL ÁREA DE GESTION DE DESARROLLO Y ÁREA DE GESTION POLICIVA JURIDICA DE LA ALCALDÍA LOCAL, HACIA LAS DISTINTAS ENTIDADES PÚBLICAS, PRIVADAS Y A LA COMUNIDAD EN GENERAL | I54: Inversión | J54: Un nuevo contrato social y ambiental para la Bogotá del Siglo XXI | K54: 57 | L54: =IF(ISERROR(VLOOKUP(K54,Proposito_programa!$C$2:$E$59,2,FALSE))," ",VLOOKUP(K54,Proposito_programa!$C$2:$E$59,2,FALSE)) -> Gestión pública local | M54: =IF(ISERROR(VLOOKUP(K54,Proposito_programa!$C$2:$E$59,3,FALSE))," ",VLOOKUP(K54,Proposito_programa!$C$2:$E$59,3,FALSE)) -> Propósito 5: Construir Bogotá - Región con gobierno abierto, transparente y ciudadanía consciente | N54: 1623 | O54: 8 | P54: 1010172942 | Q54: JUAN NORBERTO BERNAL FARIETTA | R54: Persona Natural | W54: 22500000 | Y54: 1 | Z54: 7500000 | AA54: 30000000 | AB54: 30000001 | AC54: 2023-01-27 | AD54: 2023-01-30 | AE54: 2024-01-29 | AF54: 360 | AG54: 1 | AH54: 90 | AM54: En ejecución | AN54: 1.000000033
A55: 046 | B55: 2023 | C55: FDLE-CD-046-2023 | D55: https://community.secop.gov.co/Public/Tendering/OpportunityDetail/Index?noticeUID=CO1.NTC.3888174&isFromPublicArea=True&isModal=False | E55: Contratos de prestación de servicios | F55: Contratación directa | G55: Prestación de servicios profesionales y de apoyo a la gestión, o para la ejecución de trabajos artísticos que sólo puedan encomendarse a determinadas personas naturales | H55: LA PRESTACIÓN DE SERVICIOS AUXILIARES DE APOYO A LA GESTIÓN AL ÁREA DE GESTIÓN DE DESARROLLO LOCAL EN LA EJECUCIÓN DEL PROCESO DE CORRESPONDENCIA QUE SE GENERA EN CDI DE LA ALCALDÍA LOCAL DE ENGATIVÁ | I55: Inversión | J55: Un nuevo contrato social y ambiental para la Bogotá del Siglo XXI | K55: 57 | L55: =IF(ISERROR(VLOOKUP(K55,Proposito_programa!$C$2:$E$59,2,FALSE))," ",VLOOKUP(K55,Proposito_programa!$C$2:$E$59,2,FALSE)) -> Gestión pública local | M55: =IF(ISERROR(VLOOKUP(K55,Proposito_programa!$C$2:$E$59,3,FALSE))," ",VLOOKUP(K55,Proposito_programa!$C$2:$E$59,3,FALSE)) -> Propósito 5: Construir Bogotá - Región con gobierno abierto, transparente y ciudadanía consciente | N55: 1623 | O55: 6 | P55: 1010018947 | Q55: NICOLAS LOPEZ BELLO | R55: Persona Natural | W55: 22500000 | Y55: 1 | Z55: 7500000 | AA55: 30000000 | AB55: 30000001 | AC55: 2023-01-31 | AD55: 2023-02-01 | AE55: 2024-01-31 | AF55: 360 | AG55: 1 | AH55: 90 | AM55: En ejecución | AN55: 1.000000033
A56: 047 | B56: 2023 | C56: FDLE-CD-047-2023 | D56: https://community.secop.gov.co/Public/Tendering/OpportunityDetail/Index?noticeUID=CO1.NTC.3853131&isFromPublicArea=True&isModal=False | E56: Contratos de prestación de servicios | F56: Contratación directa | G56: Prestación de servicios profesionales y de apoyo a la gestión, o para la ejecución de trabajos artísticos que sólo puedan encomendarse a determinadas personas naturales | H56: APOYAR JURÍDICAMENTE LA EJECUCIÓN DE LAS ACCIONES REQUERIDAS PARA EL TRÁMITE E IMPULSO PROCESAL DE LAS ACTUACIONES CONTRAVENCIONALES Y/O QUERELLAS QUE CURSEN EN LAS INSPECCIONES DE POLICÍA DE LA LOCALIDAD DE ENGATIVÁ. | I56: Inversión | J56: Un nuevo contrato social y ambiental para la Bogotá del Siglo XXI | K56: 57 | L56: =IF(ISERROR(VLOOKUP(K56,Proposito_programa!$C$2:$E$59,2,FALSE))," ",VLOOKUP(K56,Proposito_programa!$C$2:$E$59,2,FALSE)) -> Gestión pública local | M56: =IF(ISERROR(VLOOKUP(K56,Proposito_programa!$C$2:$E$59,3,FALSE))," ",VLOOKUP(K56,Proposito_programa!$C$2:$E$59,3,FALSE)) -> Propósito 5: Construir Bogotá - Región con gobierno abierto, transparente y ciudadanía consciente | N56: 1624 | O56: 5 | P56: 79695677 | Q56: GABRIEL ARTURO FIGUEROA GUEVARA | R56: Persona Natural | W56: 41130000 | Y56: 1 | Z56: 13710000 | AA56: 54840000 | AB56: 54840001 | AC56: 2023-01-26 | AD56: 2023-01-30 | AE56: 2024-01-29 | AF56: 360 | AG56: 1 | AH56: 90 | AM56: En ejecución | AN56: 1.000000018
A57: 048 | B57: 2023 | C57: FDLE-CD-048-2023 | D57: https://community.secop.gov.co/Public/Tendering/OpportunityDetail/Index?noticeUID=CO1.NTC.3896951&isFromPublicArea=True&isModal=False | E57: Contratos de prestación de servicios | F57: Contratación directa | G57: Prestación de servicios profesionales y de apoyo a la gestión, o para la ejecución de trabajos artísticos que sólo puedan encomendarse a determinadas personas naturales | H57: APOYAR LA GESTIÓN DOCUMENTAL DE LA ALCALDÍA LOCAL EN LA IMPLEMENTACIÓN DE LOS PROCESOS DE CLASIFICACIÓN, ORDENACIÓN, SELECCIÓN NATURAL, FOLIACIÓN, IDENTIFICACIÓN, LEVANTAMIENTO DE INVENTARIOS, ALMACENAMIENTO Y APLICACIÓN DE PROTOCOLOS DE ELIMINACIÓN Y TRANSFERENCIAS DOCUMENTALES | I57: Inversión | J57: Un nuevo contrato social y ambiental para la Bogotá del Siglo XXI | K57: 57 | L57: =IF(ISERROR(VLOOKUP(K57,Proposito_programa!$C$2:$E$59,2,FALSE))," ",VLOOKUP(K57,Proposito_programa!$C$2:$E$59,2,FALSE)) -> Gestión pública local | M57: =IF(ISERROR(VLOOKUP(K57,Proposito_programa!$C$2:$E$59,3,FALSE))," ",VLOOKUP(K57,Proposito_programa!$C$2:$E$59,3,FALSE)) -> Propósito 5: Construir Bogotá - Región con gobierno abierto, transparente y ciudadanía consciente | N57: 1623 | O57: 9 | P57: 1067907313 | Q57: KEYLA ESTEFANIA JIMENEZ FLOREZ | R57: Persona Natural | W57: 22500000 | Y57: 1 | Z57: 11166667 | AA57: 33666667 | AB57: 33666668 | AC57: 2023-02-07 | AD57: 2023-02-08 | AE57: 2024-03-21 | AF57: 404 | AG57: 1 | AH57: 134 | AM57: En ejecución | AN57: 1.00000003
A58: 049 | B58: 2023 | C58: FDLE-CD-049-2023 | D58: https://community.secop.gov.co/Public/Tendering/OpportunityDetail/Index?noticeUID=CO1.NTC.3888665&isFromPublicArea=True&isModal=False | E58: Contratos de prestación de servicios | F58: Contratación directa | G58: Prestación de servicios profesionales y de apoyo a la gestión, o para la ejecución de trabajos artísticos que sólo puedan encomendarse a determinadas personas naturales | H58: APOYAR LA GESTIÓN DOCUMENTAL DE LA ALCALDÍA LOCAL EN LA IMPLEMENTACIÓN DE LOS PROCESOS DE CLASIFICACIÓN, ORDENACIÓN, SELECCIÓN NATURAL, FOLIACIÓN, IDENTIFICACIÓN, LEVANTAMIENTO DE INVENTARIOS, ALMACENAMIENTO Y APLICACIÓN DE PROTOCOLOS DE ELIMINACIÓN Y TRANSFERENCIAS DOCUMENTALES | I58: Inversión | J58: Un nuevo contrato social y ambiental para la Bogotá del Siglo XXI | K58: 57 | L58: =IF(ISERROR(VLOOKUP(K58,Proposito_programa!$C$2:$E$59,2,FALSE))," ",VLOOKUP(K58,Proposito_programa!$C$2:$E$59,2,FALSE)) -> Gestión pública local | M58: =IF(ISERROR(VLOOKUP(K58,Proposito_programa!$C$2:$E$59,3,FALSE))," ",VLOOKUP(K58,Proposito_programa!$C$2:$E$59,3,FALSE)) -> Propósito 5: Construir Bogotá - Región con gobierno abierto, transparente y ciudadanía consciente | N58: 1623 | O58: 0 | P58: 1014235947 | Q58: ANYI LORENA NIÑO TAMBO | R58: Persona Natural | W58: 22500000 | Y58: 1 | Z58: 11166667 | AA58: 33666667 | AB58: 33666668 | AC58: 2023-01-31 | AD58: 2023-02-01 | AE58: 2024-03-14 | AF58: 404 | AG58: 1 | AH58: 134 | AM58: En ejecución | AN58: 1.00000003
A59: 050 | B59: 2023 | C59: FDLE-CD-050-2023 | D59: https://community.secop.gov.co/Public/Tendering/OpportunityDetail/Index?noticeUID=CO1.NTC.3983824&isFromPublicArea=True&isModal=False | E59: Contratos de prestación de servicios | F59: Contratación directa | G59: Prestación de servicios profesionales y de apoyo a la gestión, o para la ejecución de trabajos artísticos que sólo puedan encomendarse a determinadas personas naturales | H59: APOYAR LA GESTIÓN DOCUMENTAL DE LA ALCALDÍA LOCAL EN LA IMPLEMENTACIÓN DE LOS PROCESOS DE CLASIFICACIÓN, ORDENACIÓN, SELECCIÓN NATURAL, FOLIACIÓN, IDENTIFICACIÓN, LEVANTAMIENTO DE INVENTARIOS, ALMACENAMIENTO Y APLICACIÓN DE PROTOCOLOS DE ELIMINACIÓN Y TRANSFERENCIAS DOCUMENTALES | I59: Inversión | J59: Un nuevo contrato social y ambiental para la Bogotá del Siglo XXI | K59: 57 | L59: =IF(ISERROR(VLOOKUP(K59,Proposito_programa!$C$2:$E$59,2,FALSE))," ",VLOOKUP(K59,Proposito_programa!$C$2:$E$59,2,FALSE)) -> Gestión pública local | M59: =IF(ISERROR(VLOOKUP(K59,Proposito_programa!$C$2:$E$59,3,FALSE))," ",VLOOKUP(K59,Proposito_programa!$C$2:$E$59,3,FALSE)) -> Propósito 5: Construir Bogotá - Región con gobierno abierto, transparente y ciudadanía consciente | N59: 1623 | O59: 9 | P59: 1069873763 | Q59: YURI KATERIN ROJAS GUERRA | R59: Persona Natural | W59: 22500000 | Y59: 1 | Z59: 11166667 | AA59: 33666667 | AB59: 33666668 | AC59: 2023-02-14 | AD59: 2023-02-20 | AE59: 2024-04-03 | AF59: 405 | AG59: 1 | AH59: 135 | AM59: En ejecución | AN59: 1.00000003
A60: 051 | B60: 2023 | C60: FDLE-CD-051-2023 | D60: https://community.secop.gov.co/Public/Tendering/OpportunityDetail/Index?noticeUID=CO1.NTC.3896493&isFromPublicArea=True&isModal=False | E60: Contratos de prestación de servicios | F60: Contratación directa | G60: Prestación de servicios profesionales y de apoyo a la gestión, o para la ejecución de trabajos artísticos que sólo puedan encomendarse a determinadas personas naturales | H60: APOYAR LA GESTIÓN DOCUMENTAL DE LA ALCALDÍA LOCAL EN LA IMPLEMENTACIÓN DE LOS PROCESOS DE CLASIFICACIÓN, ORDENACIÓN, SELECCIÓN NATURAL, FOLIACIÓN, IDENTIFICACIÓN, LEVANTAMIENTO DE INVENTARIOS, ALMACENAMIENTO Y APLICACIÓN DE PROTOCOLOS DE ELIMINACIÓN Y TRANSFERENCIAS DOCUMENTALES | I60: Inversión | J60: Un nuevo contrato social y ambiental para la Bogotá del Siglo XXI | K60: 57 | L60: =IF(ISERROR(VLOOKUP(K60,Proposito_programa!$C$2:$E$59,2,FALSE))," ",VLOOKUP(K60,Proposito_programa!$C$2:$E$59,2,FALSE)) -> Gestión pública local | M60: =IF(ISERROR(VLOOKUP(K60,Proposito_programa!$C$2:$E$59,3,FALSE))," ",VLOOKUP(K60,Proposito_programa!$C$2:$E$59,3,FALSE)) -> Propósito 5: Construir Bogotá - Región con gobierno abierto, transparente y ciudadanía consciente | N60: 1623 | O60: 3 | P60: 79351679 | Q60: HECTOR RICARDO AZA | R60: Persona Natural | W60: 22500000 | Y60: 1 | Z60: 11250000 | AA60: 33750000 | AB60: 33750001 | AC60: 2023-02-03 | AD60: 2023-02-06 | AE60: 2024-03-20 | AF60: 405 | AG60: 1 | AH60: 135 | AM60: En ejecución | AN60: 1.00000003
A61: 052 | B61: 2023 | C61: FDLE-CD-052-2023 | D61: https://community.secop.gov.co/Public/Tendering/OpportunityDetail/Index?noticeUID=CO1.NTC.3860093&isFromPublicArea=True&isModal=False | E61: Contratos de prestación de servicios | F61: Contratación directa | G61: Prestación de servicios profesionales y de apoyo a la gestión, o para la ejecución de trabajos artísticos que sólo puedan encomendarse a determinadas personas naturales | H61: PRESTAR LOS SERVICIOS DE APOYO A LA GESTIÓN LOCAL Y TERRITORIAL DE LOS TEMAS DE CONVIVENCIA CIUDADANA, DE CONFORMIDAD CON EL MARCO NORMATIVO APLICABLE PARA LA MATERIA. | I61: Inversión | J61: Un nuevo contrato social y ambiental para la Bogotá del Siglo XXI | K61: 43 | L61: =IF(ISERROR(VLOOKUP(K61,Proposito_programa!$C$2:$E$59,2,FALSE))," ",VLOOKUP(K61,Proposito_programa!$C$2:$E$59,2,FALSE)) -> Cultura ciudadana para la confianza, la convivencia y la participación desde la vida cotidiana | M61: =IF(ISERROR(VLOOKUP(K61,Proposito_programa!$C$2:$E$59,3,FALSE))," ",VLOOKUP(K61,Proposito_programa!$C$2:$E$59,3,FALSE)) -> Propósito 3: Inspirar confianza y legitimidad para vivir sin miedo y ser epicentro de cultura ciudadana, paz y reconciliación | N61: 1617 | O61: 1 | P61: 1003968792 | Q61: WILHEN ANDRES LOZANO VELASQUEZ | R61: Persona Natural | W61: 20700000 | Y61: 1 | Z61: 4600000 | AA61: 25300000 | AB61: 25300001 | AC61: 2023-01-27 | AD61: 2023-01-30 | AE61: 2023-12-29 | AF61: 330 | AG61: 1 | AH61: 60 | AM61: Terminado | AN61: 1.00000004
A62: 053 | B62: 2023 | C62: FDLE-CD-053-2023 | D62: https://community.secop.gov.co/Public/Tendering/OpportunityDetail/Index?noticeUID=CO1.NTC.4023191&isFromPublicArea=True&isModal=False | E62: Contratos de prestación de servicios | F62: Contratación directa | G62: Prestación de servicios profesionales y de apoyo a la gestión, o para la ejecución de trabajos artísticos que sólo puedan encomendarse a determinadas personas naturales | H62: PRESTAR LOS SERVICIOS DE APOYO A LA GESTIÓN LOCAL Y TERRITORIAL DE LOS TEMAS DE CONVIVENCIA CIUDADANA, DE CONFORMIDAD CON EL MARCO NORMATIVO APLICABLE PARA LA MATERIA. | I62: Inversión | J62: Un nuevo contrato social y ambiental para la Bogotá del Siglo XXI | K62: 43 | L62: =IF(ISERROR(VLOOKUP(K62,Proposito_programa!$C$2:$E$59,2,FALSE))," ",VLOOKUP(K62,Proposito_programa!$C$2:$E$59,2,FALSE)) -> Cultura ciudadana para la confianza, la convivencia y la participación desde la vida cotidiana | M62: =IF(ISERROR(VLOOKUP(K62,Proposito_programa!$C$2:$E$59,3,FALSE))," ",VLOOKUP(K62,Proposito_programa!$C$2:$E$59,3,FALSE)) -> Propósito 3: Inspirar confianza y legitimidad para vivir sin miedo y ser epicentro de cultura ciudadana, paz y reconciliación | N62: 1617 | O62: 3 | P62: 1014196840 | Q62: MAYERLI CAROLINA MARTINEZ ROMERO | R62: Persona Natural | W62: 20700000 | AA62: 20700000 | AB62: 20700000 | AC62: 2023-02-17 | AD62: 2023-02-20 | AE62: 2023-06-22 | AF62: 270 | AM62: Terminado | AN62: 1
A63: 054 | B63: 2023 | C63: FDLE-CD-054-2023 | D63: https://community.secop.gov.co/Public/Tendering/OpportunityDetail/Index?noticeUID=CO1.NTC.3983827&isFromPublicArea=True&isModal=False | E63: Contratos de prestación de servicios | F63: Contratación directa | G63: Prestación de servicios profesionales y de apoyo a la gestión, o para la ejecución de trabajos artísticos que sólo puedan encomendarse a determinadas personas naturales | H63: PRESTAR LOS SERVICIOS DE APOYO A LA GESTIÓN LOCAL Y TERRITORIAL DE LOS TEMAS DE CONVIVENCIA CIUDADANA, DE CONFORMIDAD CON EL MARCO NORMATIVO APLICABLE PARA LA MATERIA. | I63: Inversión | J63: Un nuevo contrato social y ambiental para la Bogotá del Siglo XXI | K63: 43 | L63: =IF(ISERROR(VLOOKUP(K63,Proposito_programa!$C$2:$E$59,2,FALSE))," ",VLOOKUP(K63,Proposito_programa!$C$2:$E$59,2,FALSE)) -> Cultura ciudadana para la confianza, la convivencia y la participación desde la vida cotidiana | M63: =IF(ISERROR(VLOOKUP(K63,Proposito_programa!$C$2:$E$59,3,FALSE))," ",VLOOKUP(K63,Proposito_programa!$C$2:$E$59,3,FALSE)) -> Propósito 3: Inspirar confianza y legitimidad para vivir sin miedo y ser epicentro de cultura ciudadana, paz y reconciliación | N63: 1617 | O63: 8 | P63: 1007322550 | Q63: ANLLY LORENA HENAO BUITRAGO | R63: Persona Natural | W63: 20700000 | Y63: 1 | Z63: 2300000 | AA63: 23000000 | AB63: 23000001 | AC63: 2023-02-13 | AD63: 2023-02-15 | AE63: 2023-12-14 | AF63: 300 | AG63: 1 | AH63: 30 | AM63: Terminado | AN63: 1.000000043
A64: 055 | B64: 2023 | C64: FDLE-CD-055-2023 | D64: https://community.secop.gov.co/Public/Tendering/OpportunityDetail/Index?noticeUID=CO1.NTC.4377096&isFromPublicArea=True&isModal=False | E64: Contratos de prestación de servicios | F64: Contratación directa | G64: Prestación de servicios profesionales y de apoyo a la gestión, o para la ejecución de trabajos artísticos que sólo puedan encomendarse a determinadas personas naturales | H64: PRESTAR LOS SERVICIOS DE APOYO A LA GESTIÓN LOCAL Y TERRITORIAL DE LOS TEMAS DE CONVIVENCIA CIUDADANA, DE CONFORMIDAD CON EL MARCO NORMATIVO APLICABLE PARA LA MATERIA. | I64: Inversión | J64: Un nuevo contrato social y ambiental para la Bogotá del Siglo XXI | K64: 43 | L64: =IF(ISERROR(VLOOKUP(K64,Proposito_programa!$C$2:$E$59,2,FALSE))," ",VLOOKUP(K64,Proposito_programa!$C$2:$E$59,2,FALSE)) -> Cultura ciudadana para la confianza, la convivencia y la participación desde la vida cotidiana | M64: =IF(ISERROR(VLOOKUP(K64,Proposito_programa!$C$2:$E$59,3,FALSE))," ",VLOOKUP(K64,Proposito_programa!$C$2:$E$59,3,FALSE)) -> Propósito 3: Inspirar confianza y legitimidad para vivir sin miedo y ser epicentro de cultura ciudadana, paz y reconciliación | N64: 1617 | O64: 1 | P64: 39707702 | Q64: SANDRA JACQUELINE PACHON GOMEZ | R64: Persona Natural | W64: 20700000 | AA64: 20700000 | AB64: 20700000 | AC64: 2023-05-08 | AD64: 2023-05-09 | AE64: 2024-02-08 | AF64: 270 | AM64: En ejecución | AN64: 1
A65: 056 | B65: 2023 | C65: FDLE-CD-056-2023 | D65: https://community.secop.gov.co/Public/Tendering/OpportunityDetail/Index?noticeUID=CO1.NTC.3927253&isFromPublicArea=True&isModal=False | E65: Contratos de prestación de servicios | F65: Contratación directa | G65: Prestación de servicios profesionales y de apoyo a la gestión, o para la ejecución de trabajos artísticos que sólo puedan encomendarse a determinadas personas naturales | H65: PRESTAR LOS SERVICIOS DE APOYO A LA GESTIÓN LOCAL Y TERRITORIAL DE LOS TEMAS DE CONVIVENCIA CIUDADANA, DE CONFORMIDAD CON EL MARCO NORMATIVO APLICABLE PARA LA MATERIA. | I65: Inversión | J65: Un nuevo contrato social y ambiental para la Bogotá del Siglo XXI | K65: 43 | L65: =IF(ISERROR(VLOOKUP(K65,Proposito_programa!$C$2:$E$59,2,FALSE))," ",VLOOKUP(K65,Proposito_programa!$C$2:$E$59,2,FALSE)) -> Cultura ciudadana para la confianza, la convivencia y la participación desde la vida cotidiana | M65: =IF(ISERROR(VLOOKUP(K65,Proposito_programa!$C$2:$E$59,3,FALSE))," ",VLOOKUP(K65,Proposito_programa!$C$2:$E$59,3,FALSE)) -> Propósito 3: Inspirar confianza y legitimidad para vivir sin miedo y ser epicentro de cultura ciudadana, paz y reconciliación | N65: 1617 | O65: 8 | P65: 80815012 | Q65: JUAN CARLOS NOVOA SALAMANCA | R65: Persona Natural | W65: 20700000 | Y65: 1 | Z65: 2300000 | AA65: 23000000 | AB65: 23000001 | AC65: 2023-02-03 | AD65: 2023-02-06 | AE65: 2023-12-05 | AF65: 300 | AG65: 1 | AH65: 30 | AM65: Terminado | AN65: 1.000000043
A66: 057 | B66: 2023 | C66: FDLE-CD-057-2023 | D66: https://community.secop.gov.co/Public/Tendering/OpportunityDetail/Index?noticeUID=CO1.NTC.3983291&isFromPublicArea=True&isModal=False | E66: Contratos de prestación de servicios | F66: Contratación directa | G66: Prestación de servicios profesionales y de apoyo a la gestión, o para la ejecución de trabajos artísticos que sólo puedan encomendarse a determinadas personas naturales | H66: PRESTAR LOS SERVICIOS DE APOYO A LA GESTIÓN LOCAL Y TERRITORIAL DE LOS TEMAS DE CONVIVENCIA CIUDADANA, DE CONFORMIDAD CON EL MARCO NORMATIVO APLICABLE PARA LA MATERIA. | I66: Inversión | J66: Un nuevo contrato social y ambiental para la Bogotá del Siglo XXI | K66: 43 | L66: =IF(ISERROR(VLOOKUP(K66,Proposito_programa!$C$2:$E$59,2,FALSE))," ",VLOOKUP(K66,Proposito_programa!$C$2:$E$59,2,FALSE)) -> Cultura ciudadana para la confianza, la convivencia y la participación desde la vida cotidiana | M66: =IF(ISERROR(VLOOKUP(K66,Proposito_programa!$C$2:$E$59,3,FALSE))," ",VLOOKUP(K66,Proposito_programa!$C$2:$E$59,3,FALSE)) -> Propósito 3: Inspirar confianza y legitimidad para vivir sin miedo y ser epicentro de cultura ciudadana, paz y reconciliación | N66: 1617 | O66: 3 | P66: 1022971883 | Q66: LUISA FERNANDA ROJAS GOMEZ | R66: Persona Natural | W66: 20700000 | Y66: 1 | Z66: 9200000 | AA66: 29900000 | AB66: 29900001 | AC66: 2023-02-13 | AD66: 2023-02-14 | AE66: 2024-03-13 | AF66: 390 | AG66: 1 | AH66: 120 | AM66: En ejecución | AN66: 1.000000033
A67: 058 | B67: 2023 | C67: FDLE-CD-058-2023 | D67: https://community.secop.gov.co/Public/Tendering/OpportunityDetail/Index?noticeUID=CO1.NTC.4072965&isFromPublicArea=True&isModal=False | E67: Contratos de prestación de servicios | F67: Contratación directa | G67: Prestación de servicios profesionales y de apoyo a la gestión, o para la ejecución de trabajos artísticos que sólo puedan encomendarse a determinadas personas naturales | H67: PRESTAR LOS SERVICIOS DE APOYO A LA GESTIÓN LOCAL Y TERRITORIAL DE LOS TEMAS DE CONVIVENCIA CIUDADANA, DE CONFORMIDAD CON EL MARCO NORMATIVO APLICABLE PARA LA MATERIA. | I67: Inversión | J67: Un nuevo contrato social y ambiental para la Bogotá del Siglo XXI | K67: 43 | L67: =IF(ISERROR(VLOOKUP(K67,Proposito_programa!$C$2:$E$59,2,FALSE))," ",VLOOKUP(K67,Proposito_programa!$C$2:$E$59,2,FALSE)) -> Cultura ciudadana para la confianza, la convivencia y la participación desde la vida cotidiana | M67: =IF(ISERROR(VLOOKUP(K67,Proposito_programa!$C$2:$E$59,3,FALSE))," ",VLOOKUP(K67,Proposito_programa!$C$2:$E$59,3,FALSE)) -> Propósito 3: Inspirar confianza y legitimidad para vivir sin miedo y ser epicentro de cultura ciudadana, paz y reconciliación | N67: 1617 | O67: 6 | P67: 1000593186 | Q67: DANIEL FELIPE VEGA RICO | R67: Persona Natural | W67: 20700000 | Y67: 1 | Z67: 2300000 | AA67: 23000000 | AB67: 23000001 | AC67: 2023-02-24 | AD67: 2023-02-28 | AE67: 2023-12-27 | AF67: 300 | AG67: 1 | AH67: 30 | AM67: Terminado | AN67: 1.000000043
A68: 059 | B68: 2023 | C68: FDLE-CD-059-2023 | D68: https://community.secop.gov.co/Public/Tendering/OpportunityDetail/Index?noticeUID=CO1.NTC.3878152&isFromPublicArea=True&isModal=False | E68: Contratos de prestación de servicios | F68: Contratación directa | G68: Prestación de servicios profesionales y de apoyo a la gestión, o para la ejecución de trabajos artísticos que sólo puedan encomendarse a determinadas personas naturales | H68: PRESTAR LOS SERVICIOS DE APOYO A LA GESTIÓN LOCAL Y TERRITORIAL DE LOS TEMAS DE CONVIVENCIA CIUDADANA, DE CONFORMIDAD CON EL MARCO NORMATIVO APLICABLE PARA LA MATERIA. | I68: Inversión | J68: Un nuevo contrato social y ambiental para la Bogotá del Siglo XXI | K68: 43 | L68: =IF(ISERROR(VLOOKUP(K68,Proposito_programa!$C$2:$E$59,2,FALSE))," ",VLOOKUP(K68,Proposito_programa!$C$2:$E$59,2,FALSE)) -> Cultura ciudadana para la confianza, la convivencia y la participación desde la vida cotidiana | M68: =IF(ISERROR(VLOOKUP(K68,Proposito_programa!$C$2:$E$59,3,FALSE))," ",VLOOKUP(K68,Proposito_programa!$C$2:$E$59,3,FALSE)) -> Propósito 3: Inspirar confianza y legitimidad para vivir sin miedo y ser epicentro de cultura ciudadana, paz y reconciliación | N68: 1617 | O68: 3 | P68: 52438556 | Q68: MARIA MERCEDES RICO MARTINEZ | R68: Persona Natural | W68: 20700000 | Y68: 1 | Z68: 9200000 | AA68: 29900000 | AB68: 29900001 | AC68: 2023-01-31 | AD68: 2023-02-01 | AE68: 2024-02-29 | AF68: 390 | AG68: 1 | AH68: 120 | AM68: En ejecución | AN68: 1.000000033
A69: 060 | B69: 2023 | C69: FDLE-CD-060-2023 | D69: https://community.secop.gov.co/Public/Tendering/OpportunityDetail/Index?noticeUID=CO1.NTC.3983780&isFromPublicArea=True&isModal=False | E69: Contratos de prestación de servicios | F69: Contratación directa | G69: Prestación de servicios profesionales y de apoyo a la gestión, o para la ejecución de trabajos artísticos que sólo puedan encomendarse a determinadas personas naturales | H69: PRESTAR LOS SERVICIOS DE APOYO A LA GESTIÓN LOCAL Y TERRITORIAL DE LOS TEMAS DE CONVIVENCIA CIUDADANA, DE CONFORMIDAD CON EL MARCO NORMATIVO APLICABLE PARA LA MATERIA. | I69: Inversión | J69: Un nuevo contrato social y ambiental para la Bogotá del Siglo XXI | K69: 43 | L69: =IF(ISERROR(VLOOKUP(K69,Proposito_programa!$C$2:$E$59,2,FALSE))," ",VLOOKUP(K69,Proposito_programa!$C$2:$E$59,2,FALSE)) -> Cultura ciudadana para la confianza, la convivencia y la participación desde la vida cotidiana | M69: =IF(ISERROR(VLOOKUP(K69,Proposito_programa!$C$2:$E$59,3,FALSE))," ",VLOOKUP(K69,Proposito_programa!$C$2:$E$59,3,FALSE)) -> Propósito 3: Inspirar confianza y legitimidad para vivir sin miedo y ser epicentro de cultura ciudadana, paz y reconciliación | N69: 1617 | O69: 2 | P69: 19462988 | Q69: OMAR JOSE MUÑOZ CORREDOR | R69: Persona Natural | W69: 20700000 | Y69: 1 | Z69: 9200000 | AA69: 29900000 | AB69: 29900001 | AC69: 2023-02-13 | AD69: 2023-02-14 | AE69: 2024-03-13 | AF69: 390 | AG69: 1 | AH69: 120 | AM69: En ejecución | AN69: 1.000000033
A70: 061 | B70: 2023 | C70: FDLE-CD-061-2023 | D70: https://community.secop.gov.co/Public/Tendering/ContractNoticePhases/View?PPI=CO1.PPI.22838659&isFromPublicArea=True&isModal=False | E70: Contratos de prestación de servicios | F70: Contratación directa | G70: Prestación de servicios profesionales y de apoyo a la gestión, o para la ejecución de trabajos artísticos que sólo puedan encomendarse a determinadas personas naturales | H70: PRESTAR LOS SERVICIOS DE APOYO A LA GESTIÓN LOCAL Y TERRITORIAL DE LOS TEMAS DE CONVIVENCIA CIUDADANA, DE CONFORMIDAD CON EL MARCO NORMATIVO APLICABLE PARA LA MATERIA. | I70: Inversión | J70: Un nuevo contrato social y ambiental para la Bogotá del Siglo XXI | K70: 43 | L70: =IF(ISERROR(VLOOKUP(K70,Proposito_programa!$C$2:$E$59,2,FALSE))," ",VLOOKUP(K70,Proposito_programa!$C$2:$E$59,2,FALSE)) -> Cultura ciudadana para la confianza, la convivencia y la participación desde la vida cotidiana | M70: =IF(ISERROR(VLOOKUP(K70,Proposito_programa!$C$2:$E$59,3,FALSE))," ",VLOOKUP(K70,Proposito_programa!$C$2:$E$59,3,FALSE)) -> Propósito 3: Inspirar confianza y legitimidad para vivir sin miedo y ser epicentro de cultura ciudadana, paz y reconciliación | N70: 1617 | O70: 2 | P70: 1070005915 | Q70: DUBAN MANUEL MORENO CORDOBA | R70: Persona Natural | W70: 20700000 | Y70: 1 | Z70: 2300000 | AA70: 23000000 | AB70: 23000001 | AC70: 2023-02-09 | AD70: 2023-02-13 | AE70: 2023-12-12 | AF70: 300 | AG70: 1 | AH70: 30 | AM70: Terminado | AN70: 1.000000043
A71: 062 | B71: 2023 | C71: FDLE-CD-062-2023 | D71: https://community.secop.gov.co/Public/Tendering/OpportunityDetail/Index?noticeUID=CO1.NTC.3983830&isFromPublicArea=True&isModal=False | E71: Contratos de prestación de servicios | F71: Contratación directa | G71: Prestación de servicios profesionales y de apoyo a la gestión, o para la ejecución de trabajos artísticos que sólo puedan encomendarse a determinadas personas naturales | H71: PRESTAR LOS SERVICIOS DE APOYO A LA GESTIÓN LOCAL Y TERRITORIAL DE LOS TEMAS DE CONVIVENCIA CIUDADANA, DE CONFORMIDAD CON EL MARCO NORMATIVO APLICABLE PARA LA MATERIA. | I71: Inversión | J71: Un nuevo contrato social y ambiental para la Bogotá del Siglo XXI | K71: 43 | L71: =IF(ISERROR(VLOOKUP(K71,Proposito_programa!$C$2:$E$59,2,FALSE))," ",VLOOKUP(K71,Proposito_programa!$C$2:$E$59,2,FALSE)) -> Cultura ciudadana para la confianza, la convivencia y la participación desde la vida cotidiana | M71: =IF(ISERROR(VLOOKUP(K71,Proposito_programa!$C$2:$E$59,3,FALSE))," ",VLOOKUP(K71,Proposito_programa!$C$2:$E$59,3,FALSE)) -> Propósito 3: Inspirar confianza y legitimidad para vivir sin miedo y ser epicentro de cultura ciudadana, paz y reconciliación | N71: 1617 | O71: 3 | P71: 52522781 | Q71: LUZ ELENA QUIROGA RODRIGUEZ | R71: Persona Natural | W71: 20700000 | AA71: 20700000 | AB71: 20700000 | AC71: 2023-03-01 | AD71: 2023-03-06 | AE71: 2023-12-05 | AF71: 270 | AI71: 52522781 | AJ71: LUZ ELENA QUIROGA RODRIGUEZ | AK71: 2023-11-03 | AL71: 2530000 | AM71: Terminado | AN71: 1
A72: 063 | B72: 2023 | C72: FDLE-CD-063-2023 | D72: https://community.secop.gov.co/Public/Tendering/OpportunityDetail/Index?noticeUID=CO1.NTC.3987652&isFromPublicArea=True&isModal=False | E72: Contratos de prestación de servicios | F72: Contratación directa | G72: Prestación de servicios profesionales y de apoyo a la gestión, o para la ejecución de trabajos artísticos que sólo puedan encomendarse a determinadas personas naturales | H72: PRESTAR LOS SERVICIOS DE APOYO A LA GESTIÓN LOCAL Y TERRITORIAL DE LOS TEMAS DE CONVIVENCIA CIUDADANA, DE CONFORMIDAD CON EL MARCO NORMATIVO APLICABLE PARA LA MATERIA. | I72: Inversión | J72: Un nuevo contrato social y ambiental para la Bogotá del Siglo XXI | K72: 43 | L72: =IF(ISERROR(VLOOKUP(K72,Proposito_programa!$C$2:$E$59,2,FALSE))," ",VLOOKUP(K72,Proposito_programa!$C$2:$E$59,2,FALSE)) -> Cultura ciudadana para la confianza, la convivencia y la participación desde la vida cotidiana | M72: =IF(ISERROR(VLOOKUP(K72,Proposito_programa!$C$2:$E$59,3,FALSE))," ",VLOOKUP(K72,Proposito_programa!$C$2:$E$59,3,FALSE)) -> Propósito 3: Inspirar confianza y legitimidad para vivir sin miedo y ser epicentro de cultura ciudadana, paz y reconciliación | N72: 1617 | O72: 9 | P72: 80793784 | Q72: LUIS CARLOS PEÑUELA VARGAS | R72: Persona Natural | W72: 20700000 | Y72: 1 | Z72: 2300000 | AA72: 23000000 | AB72: 23000001 | AC72: 2023-02-13 | AD72: 2023-02-14 | AE72: 2023-12-13 | AF72: 300 | AG72: 1 | AH72: 30 | AM72: Terminado | AN72: 1.000000043
A73: 064 | B73: 2023 | C73: FDLE-CD-064-2023 | D73: https://community.secop.gov.co/Public/Tendering/OpportunityDetail/Index?noticeUID=CO1.NTC.3983759&isFromPublicArea=True&isModal=False | E73: Contratos de prestación de servicios | F73: Contratación directa | G73: Prestación de servicios profesionales y de apoyo a la gestión, o para la ejecución de trabajos artísticos que sólo puedan encomendarse a determinadas personas naturales | H73: PRESTAR LOS SERVICIOS DE APOYO A LA GESTIÓN LOCAL Y TERRITORIAL DE LOS TEMAS DE SEGURIDAD Y CONVIVENCIA CIUDADANA, DE CONFORMIDAD CON EL MARCO NORMATIVO APLICABLE PARA LA MATERIA. | I73: Inversión | J73: Un nuevo contrato social y ambiental para la Bogotá del Siglo XXI | K73: 43 | L73: =IF(ISERROR(VLOOKUP(K73,Proposito_programa!$C$2:$E$59,2,FALSE))," ",VLOOKUP(K73,Proposito_programa!$C$2:$E$59,2,FALSE)) -> Cultura ciudadana para la confianza, la convivencia y la participación desde la vida cotidiana | M73: =IF(ISERROR(VLOOKUP(K73,Proposito_programa!$C$2:$E$59,3,FALSE))," ",VLOOKUP(K73,Proposito_programa!$C$2:$E$59,3,FALSE)) -> Propósito 3: Inspirar confianza y legitimidad para vivir sin miedo y ser epicentro de cultura ciudadana, paz y reconciliación | N73: 1617 | O73: 9 | P73: 1023965697 | Q73: KEVIN GUEVARA SUPELANO | R73: Persona Natural | W73: 20700000 | Y73: 1 | Z73: 9200000 | AA73: 29900000 | AB73: 29900001 | AC73: 2023-02-13 | AD73: 2023-02-14 | AE73: 2024-03-13 | AF73: 390 | AG73: 1 | AH73: 120 | AI73: 1023965697 | AJ73: KEVIN GUEVARA SUPELANO | AK73: 2023-06-27 | AL73: 18211818 | AM73: En ejecución | AN73: 1.000000033
A74: 065 | B74: 2023 | C74: FDLE-CD-065-2023 | D74: https://community.secop.gov.co/Public/Tendering/OpportunityDetail/Index?noticeUID=CO1.NTC.3927475&isFromPublicArea=True&isModal=False | E74: Contratos de prestación de servicios | F74: Contratación directa | G74: Prestación de servicios profesionales y de apoyo a la gestión, o para la ejecución de trabajos artísticos que sólo puedan encomendarse a determinadas personas naturales | H74: PRESTAR LOS SERVICIOS DE APOYO A LA GESTIÓN LOCAL Y TERRITORIAL DE LOS TEMAS DE SEGURIDAD Y CONVIVENCIA CIUDADANA, DE CONFORMIDAD CON EL MARCO NORMATIVO APLICABLE PARA LA MATERIA. | I74: Inversión | J74: Un nuevo contrato social y ambiental para la Bogotá del Siglo XXI | K74: 43 | L74: =IF(ISERROR(VLOOKUP(K74,Proposito_programa!$C$2:$E$59,2,FALSE))," ",VLOOKUP(K74,Proposito_programa!$C$2:$E$59,2,FALSE)) -> Cultura ciudadana para la confianza, la convivencia y la participación desde la vida cotidiana | M74: =IF(ISERROR(VLOOKUP(K74,Proposito_programa!$C$2:$E$59,3,FALSE))," ",VLOOKUP(K74,Proposito_programa!$C$2:$E$59,3,FALSE)) -> Propósito 3: Inspirar confianza y legitimidad para vivir sin miedo y ser epicentro de cultura ciudadana, paz y reconciliación | N74: 1617 | O74: 3 | P74: 80188460 | Q74: JEFFERSON ORLANDO MARQUEZ SILVA | R74: Persona Natural | W74: 20700000 | AA74: 20700000 | AB74: 20700000 | AC74: 2023-02-03 | AD74: 2023-02-07 | AE74: 2023-11-06 | AF74: 270 | AM74: Terminado | AN74: 1
A75: 066 | B75: 2023 | C75: FDLE-CD-066-2023 | D75: https://community.secop.gov.co/Public/Tendering/OpportunityDetail/Index?noticeUID=CO1.NTC.4361911&isFromPublicArea=True&isModal=False | E75: Contratos de prestación de servicios | F75: Contratación directa | G75: Prestación de servicios profesionales y de apoyo a la gestión, o para la ejecución de trabajos artísticos que sólo puedan encomendarse a determinadas personas naturales | H75: PRESTAR LOS SERVICIOS DE APOYO A LA GESTIÓN LOCAL Y TERRITORIAL DE LOS TEMAS DE SEGURIDAD Y CONVIVENCIA CIUDADANA, DE CONFORMIDAD CON EL MARCO NORMATIVO APLICABLE PARA LA MATERIA. | I75: Inversión | J75: Un nuevo contrato social y ambiental para la Bogotá del Siglo XXI | K75: 43 | L75: =IF(ISERROR(VLOOKUP(K75,Proposito_programa!$C$2:$E$59,2,FALSE))," ",VLOOKUP(K75,Proposito_programa!$C$2:$E$59,2,FALSE)) -> Cultura ciudadana para la confianza, la convivencia y la participación desde la vida cotidiana | M75: =IF(ISERROR(VLOOKUP(K75,Proposito_programa!$C$2:$E$59,3,FALSE))," ",VLOOKUP(K75,Proposito_programa!$C$2:$E$59,3,FALSE)) -> Propósito 3: Inspirar confianza y legitimidad para vivir sin miedo y ser epicentro de cultura ciudadana, paz y reconciliación | N75: 1617 | O75: 2 | P75: 79514623 | Q75: WILLIAM PAVAS FONSECA | R75: Persona Natural | W75: 20700000 | AA75: 20700000 | AB75: 20700000 | AC75: 2023-05-05 | AD75: 2023-05-09 | AE75: 2024-02-08 | AF75: 270 | AM75: En ejecución | AN75: 1
A76: 067 | B76: 2023 | C76: FDLE-CD-067-2023 | D76: https://community.secop.gov.co/Public/Tendering/OpportunityDetail/Index?noticeUID=CO1.NTC.3946748&isFromPublicArea=True&isModal=False | E76: Contratos de prestación de servicios | F76: Contratación directa | G76: Prestación de servicios profesionales y de apoyo a la gestión, o para la ejecución de trabajos artísticos que sólo puedan encomendarse a determinadas personas naturales | H76: PRESTAR LOS SERVICIOS DE APOYO A LA GESTIÓN LOCAL Y TERRITORIAL DE LOS TEMAS DE SEGURIDAD Y CONVIVENCIA CIUDADANA, DE CONFORMIDAD CON EL MARCO NORMATIVO APLICABLE PARA LA MATERIA. | I76: Inversión | J76: Un nuevo contrato social y ambiental para la Bogotá del Siglo XXI | K76: 43 | L76: =IF(ISERROR(VLOOKUP(K76,Proposito_programa!$C$2:$E$59,2,FALSE))," ",VLOOKUP(K76,Proposito_programa!$C$2:$E$59,2,FALSE)) -> Cultura ciudadana para la confianza, la convivencia y la participación desde la vida cotidiana | M76: =IF(ISERROR(VLOOKUP(K76,Proposito_programa!$C$2:$E$59,3,FALSE))," ",VLOOKUP(K76,Proposito_programa!$C$2:$E$59,3,FALSE)) -> Propósito 3: Inspirar confianza y legitimidad para vivir sin miedo y ser epicentro de cultura ciudadana, paz y reconciliación | N76: 1617 | O76: 0 | P76: 79040060 | Q76: HENRY SANCHEZ | R76: Persona Natural | W76: 20700000 | Y76: 1 | Z76: 2300000 | AA76: 23000000 | AB76: 23000001 | AC76: 2023-02-07 | AD76: 2023-02-08 | AE76: 2023-12-07 | AF76: 300 | AG76: 1 | AH76: 30 | AM76: Terminado | AN76: 1.000000043
A77: 068 | B77: 2023 | C77: FDLE-CD-068-2023 | D77: https://community.secop.gov.co/Public/Tendering/OpportunityDetail/Index?noticeUID=CO1.NTC.3946536&isFromPublicArea=True&isModal=False | E77: Contratos de prestación de servicios | F77: Contratación directa | G77: Prestación de servicios profesionales y de apoyo a la gestión, o para la ejecución de trabajos artísticos que sólo puedan encomendarse a determinadas personas naturales | H77: PRESTAR LOS SERVICIOS DE APOYO A LA GESTIÓN LOCAL Y TERRITORIAL DE LOS TEMAS DE SEGURIDAD Y CONVIVENCIA CIUDADANA, DE CONFORMIDAD CON EL MARCO NORMATIVO APLICABLE PARA LA MATERIA. | I77: Inversión | J77: Un nuevo contrato social y ambiental para la Bogotá del Siglo XXI | K77: 43 | L77: =IF(ISERROR(VLOOKUP(K77,Proposito_programa!$C$2:$E$59,2,FALSE))," ",VLOOKUP(K77,Proposito_programa!$C$2:$E$59,2,FALSE)) -> Cultura ciudadana para la confianza, la convivencia y la participación desde la vida cotidiana | M77: =IF(ISERROR(VLOOKUP(K77,Proposito_programa!$C$2:$E$59,3,FALSE))," ",VLOOKUP(K77,Proposito_programa!$C$2:$E$59,3,FALSE)) -> Propósito 3: Inspirar confianza y legitimidad para vivir sin miedo y ser epicentro de cultura ciudadana, paz y reconciliación | N77: 1617 | O77: 7 | P77: 19322681 | Q77: FIDEL MORENO PARRA | R77: Persona Natural | W77: 20700000 | Y77: 1 | Z77: 9200000 | AA77: 29900000 | AB77: 29900001 | AC77: 2023-02-07 | AD77: 2023-02-08 | AE77: 2024-03-07 | AF77: 390 | AG77: 1 | AH77: 120 | AM77: En ejecución | AN77: 1.000000033
A78: 069 | B78: 2023 | C78: FDLE-CD-069-2023 | D78: https://community.secop.gov.co/Public/Tendering/OpportunityDetail/Index?noticeUID=CO1.NTC.3983763&isFromPublicArea=True&isModal=False | E78: Contratos de prestación de servicios | F78: Contratación directa | G78: Prestación de servicios profesionales y de apoyo a la gestión, o para la ejecución de trabajos artísticos que sólo puedan encomendarse a determinadas personas naturales | H78: PRESTAR LOS SERVICIOS DE APOYO A LA GESTIÓN LOCAL Y TERRITORIAL DE LOS TEMAS DE SEGURIDAD Y CONVIVENCIA CIUDADANA, DE CONFORMIDAD CON EL MARCO NORMATIVO APLICABLE PARA LA MATERIA. | I78: Inversión | J78: Un nuevo contrato social y ambiental para la Bogotá del Siglo XXI | K78: 43 | L78: =IF(ISERROR(VLOOKUP(K78,Proposito_programa!$C$2:$E$59,2,FALSE))," ",VLOOKUP(K78,Proposito_programa!$C$2:$E$59,2,FALSE)) -> Cultura ciudadana para la confianza, la convivencia y la participación desde la vida cotidiana | M78: =IF(ISERROR(VLOOKUP(K78,Proposito_programa!$C$2:$E$59,3,FALSE))," ",VLOOKUP(K78,Proposito_programa!$C$2:$E$59,3,FALSE)) -> Propósito 3: Inspirar confianza y legitimidad para vivir sin miedo y ser epicentro de cultura ciudadana, paz y reconciliación | N78: 1617 | O78: 9 | P78: 1015442096 | Q78: CAMILO ANDRES VARGAS VILLALOBOS | R78: Persona Natural | W78: 20700000 | Y78: 1 | Z78: 2300000 | AA78: =+W78+X78+Z78 -> 23000000 | AB78: =+X78+Y78+AA78 -> 23000001 | AC78: 2023-02-16 | AD78: 2023-02-20 | AE78: 2023-12-19 | AF78: 300 | AG78: 1 | AH78: 30 | AM78: Terminado | AN78: =IF(ISERROR(AB78/AA78),"-",(AB78/AA78)) -> 1.000000043
A79: 070 | B79: 2023 | C79: FDLE-CD-070-2023 | D79: https://community.secop.gov.co/Public/Tendering/OpportunityDetail/Index?noticeUID=CO1.NTC.3948932&isFromPublicArea=True&isModal=False | E79: Contratos de prestación de servicios | F79: Contratación directa | G79: Prestación de servicios profesionales y de apoyo a la gestión, o para la ejecución de trabajos artísticos que sólo puedan encomendarse a determinadas personas naturales | H79: PRESTAR LOS SERVICIOS DE APOYO A LA GESTIÓN LOCAL Y TERRITORIAL DE LOS TEMAS DE SEGURIDAD Y CONVIVENCIA CIUDADANA, DE CONFORMIDAD CON EL MARCO NORMATIVO APLICABLE PARA LA MATERIA. | I79: Inversión | J79: Un nuevo contrato social y ambiental para la Bogotá del Siglo XXI | K79: 43 | L79: =IF(ISERROR(VLOOKUP(K79,Proposito_programa!$C$2:$E$59,2,FALSE))," ",VLOOKUP(K79,Proposito_programa!$C$2:$E$59,2,FALSE)) -> Cultura ciudadana para la confianza, la convivencia y la participación desde la vida cotidiana | M79: =IF(ISERROR(VLOOKUP(K79,Proposito_programa!$C$2:$E$59,3,FALSE))," ",VLOOKUP(K79,Proposito_programa!$C$2:$E$59,3,FALSE)) -> Propósito 3: Inspirar confianza y legitimidad para vivir sin miedo y ser epicentro de cultura ciudadana, paz y reconciliación | N79: 1617 | O79: 6 | P79: 79048954 | Q79: JOSE MANUEL OROZCO MARTINEZ | R79: Persona Natural | W79: 20700000 | Y79: 1 | Z79: 9200000 | AA79: 29900000 | AB79: 29900001 | AC79: 2023-02-13 | AD79: 2023-02-14 | AE79: 2024-03-13 | AF79: 390 | AG79: 1 | AH79: 120 | AM79: En ejecución | AN79: 1.000000033
A80: 071 | B80: 2023 | C80: FDLE-CD-071-2023 | D80: https://community.secop.gov.co/Public/Tendering/OpportunityDetail/Index?noticeUID=CO1.NTC.3937520&isFromPublicArea=True&isModal=False | E80: Contratos de prestación de servicios | F80: Contratación directa | G80: Prestación de servicios profesionales y de apoyo a la gestión, o para la ejecución de trabajos artísticos que sólo puedan encomendarse a determinadas personas naturales | H80: PRESTAR LOS SERVICIOS TÉCNICOS AL ÁREA DE GESTIÓN POLICIVA JURÍDICA Y/O ÁREA DE GESTIÓN DE DESARROLLO LOCAL, EN TEMAS DE SEGURIDAD, PREVENCIÓN Y CONVIVENCIA CIUDADANA EN LA LOCALIDAD, DE CONFORMIDAD CON EL MARCO NORMATIVO APLICABLE PARA LA MATERIA | I80: Inversión | J80: Un nuevo contrato social y ambiental para la Bogotá del Siglo XXI | K80: 48 | L80: =IF(ISERROR(VLOOKUP(K80,Proposito_programa!$C$2:$E$59,2,FALSE))," ",VLOOKUP(K80,Proposito_programa!$C$2:$E$59,2,FALSE)) -> Plataforma institucional para la seguridad y justicia | M80: =IF(ISERROR(VLOOKUP(K80,Proposito_programa!$C$2:$E$59,3,FALSE))," ",VLOOKUP(K80,Proposito_programa!$C$2:$E$59,3,FALSE)) -> Propósito 3: Inspirar confianza y legitimidad para vivir sin miedo y ser epicentro de cultura ciudadana, paz y reconciliación | N80: 1619 | O80: 4 | P80: 1014279781 | Q80: MAXIMILIANO RINCON GARCIA | R80: Persona Natural | W80: 28782000 | Y80: 1 | Z80: 14284400 | AA80: 43066400 | AB80: 43066401 | AC80: 2023-02-07 | AD80: 2023-02-08 | AE80: 2024-03-21 | AF80: 404 | AG80: 1 | AH80: 134 | AM80: En ejecución | AN80: 1.000000023
A81: 072 | B81: 2023 | C81: FDLE-CD-072-2023 | D81: https://community.secop.gov.co/Public/Tendering/OpportunityDetail/Index?noticeUID=CO1.NTC.3982878&isFromPublicArea=True&isModal=False | E81: Contratos de prestación de servicios | F81: Contratación directa | G81: Prestación de servicios profesionales y de apoyo a la gestión, o para la ejecución de trabajos artísticos que sólo puedan encomendarse a determinadas personas naturales | H81: PRESTAR LOS SERVICIOS PROFESIONALES ÁREA DE GESTIÓN POLICIVA JURÍDICA Y/O ÁREA DE GESTIÓN DE DESARROLLO LOCAL, EN TEMAS DE SEGURIDAD Y CONVIVENCIA CIUDADANA EN LA LOCALIDAD, DE CONFORMIDAD CON EL MARCO NORMATIVO APLICABLE PARA LA MATERIA | I81: Inversión | J81: Un nuevo contrato social y ambiental para la Bogotá del Siglo XXI | K81: 43 | L81: =IF(ISERROR(VLOOKUP(K81,Proposito_programa!$C$2:$E$59,2,FALSE))," ",VLOOKUP(K81,Proposito_programa!$C$2:$E$59,2,FALSE)) -> Cultura ciudadana para la confianza, la convivencia y la participación desde la vida cotidiana | M81: =IF(ISERROR(VLOOKUP(K81,Proposito_programa!$C$2:$E$59,3,FALSE))," ",VLOOKUP(K81,Proposito_programa!$C$2:$E$59,3,FALSE)) -> Propósito 3: Inspirar confianza y legitimidad para vivir sin miedo y ser epicentro de cultura ciudadana, paz y reconciliación | N81: 1617 | O81: 8 | P81: 3081767 | Q81: JUAN CARLOS CARDENAS ARIZA | R81: Persona Natural | W81: 71500000 | Y81: 1 | Z81: 32500000 | AA81: 104000000 | AB81: 104000001 | AC81: 2023-02-13 | AD81: 2023-02-14 | AE81: 2024-06-13 | AF81: 480 | AG81: 1 | AH81: 150 | AM81: En ejecución | AN81: 1.00000001
A82: 073 | B82: 2023 | C82: FDLE-CD-073-2023 | D82: https://community.secop.gov.co/Public/Tendering/OpportunityDetail/Index?noticeUID=CO1.NTC.3905920&isFromPublicArea=True&isModal=False | E82: Contratos de prestación de servicios | F82: Contratación directa | G82: Prestación de servicios profesionales y de apoyo a la gestión, o para la ejecución de trabajos artísticos que sólo puedan encomendarse a determinadas personas naturales | H82: LA PRESTACIÓN DE SERVICIOS PROFESIONALES ESPECIALIZADOS AL ÁREA DE GESTIÓN DE DESARROLLO LOCAL, APOYANDO LAS ESTRATEGIAS Y ACTIVIDADES RELACIONADAS CON LA EJECUCIÓN Y SEGUIMIENTO DE PROCESOS DE SEGURIDAD CIUDADANA, CONVIVENCIA Y PREVENCIÓN DE CONFLICTOS, VIOLENCIAS Y DELITOS EN LA LOCALIDAD DE ENGATIVÁ. | I82: Inversión | J82: Un nuevo contrato social y ambiental para la Bogotá del Siglo XXI | K82: 48 | L82: =IF(ISERROR(VLOOKUP(K82,Proposito_programa!$C$2:$E$59,2,FALSE))," ",VLOOKUP(K82,Proposito_programa!$C$2:$E$59,2,FALSE)) -> Plataforma institucional para la seguridad y justicia | M82: =IF(ISERROR(VLOOKUP(K82,Proposito_programa!$C$2:$E$59,3,FALSE))," ",VLOOKUP(K82,Proposito_programa!$C$2:$E$59,3,FALSE)) -> Propósito 3: Inspirar confianza y legitimidad para vivir sin miedo y ser epicentro de cultura ciudadana, paz y reconciliación | N82: 1619 | O82: 5 | P82: 80740722 | Q82: HUGO FERNANDO SIERRA CUBILLOS | R82: Persona Natural | W82: 88000000 | Y82: 1 | Z82: 40000000 | AA82: 128000000 | AB82: 128000001 | AC82: 2023-02-03 | AD82: 2023-02-06 | AE82: 2024-01-09 | AF82: 480 | AG82: 1 | AH82: 150 | AM82: Terminado | AN82: 1.000000008
A83: 074 | B83: 2023 | C83: FDLE-CD-074-2023 | D83: https://community.secop.gov.co/Public/Tendering/OpportunityDetail/Index?noticeUID=CO1.NTC.3978997&isFromPublicArea=True&isModal=False | E83: Contratos de prestación de servicios | F83: Contratación directa | G83: Prestación de servicios profesionales y de apoyo a la gestión, o para la ejecución de trabajos artísticos que sólo puedan encomendarse a determinadas personas naturales | H83: LA PRESTACIÓN DE SERVICIOS DE APOYO SECRETARIAL A LA JUNTA ADMINISTRADORA LOCAL DE LA LOCALIDAD DE ENGATIVÁ | I83: Inversión | J83: Un nuevo contrato social y ambiental para la Bogotá del Siglo XXI | K83: 57 | L83: =IF(ISERROR(VLOOKUP(K83,Proposito_programa!$C$2:$E$59,2,FALSE))," ",VLOOKUP(K83,Proposito_programa!$C$2:$E$59,2,FALSE)) -> Gestión pública local | M83: =IF(ISERROR(VLOOKUP(K83,Proposito_programa!$C$2:$E$59,3,FALSE))," ",VLOOKUP(K83,Proposito_programa!$C$2:$E$59,3,FALSE)) -> Propósito 5: Construir Bogotá - Región con gobierno abierto, transparente y ciudadanía consciente | N83: 1623 | O83: 8 | P83: 53014078 | Q83: MARCELA ARDILA VIZCAINO | R83: Persona Natural | W83: 22500000 | Y83: 1 | Z83: 11166667 | AA83: 33666667 | AB83: 33666668 | AC83: 2023-02-14 | AD83: 2023-02-15 | AE83: 2024-03-28 | AF83: 404 | AG83: 1 | AH83: 134 | AM83: En ejecución | AN83: 1.00000003
A84: 075 | B84: 2023 | C84: FDLE-CD-075-2023 | D84: https://community.secop.gov.co/Public/Tendering/OpportunityDetail/Index?noticeUID=CO1.NTC.3983201&isFromPublicArea=True&isModal=False | E84: Contratos de prestación de servicios | F84: Contratación directa | G84: Prestación de servicios profesionales y de apoyo a la gestión, o para la ejecución de trabajos artísticos que sólo puedan encomendarse a determinadas personas naturales | H84: LA PRESTACIÓN DE SERVICIOS DE APOYO SECRETARIAL A LA JUNTA ADMINISTRADORA LOCAL DE LA LOCALIDAD DE ENGATIVÁ | I84: Inversión | J84: Un nuevo contrato social y ambiental para la Bogotá del Siglo XXI | K84: 57 | L84: =IF(ISERROR(VLOOKUP(K84,Proposito_programa!$C$2:$E$59,2,FALSE))," ",VLOOKUP(K84,Proposito_programa!$C$2:$E$59,2,FALSE)) -> Gestión pública local | M84: =IF(ISERROR(VLOOKUP(K84,Proposito_programa!$C$2:$E$59,3,FALSE))," ",VLOOKUP(K84,Proposito_programa!$C$2:$E$59,3,FALSE)) -> Propósito 5: Construir Bogotá - Región con gobierno abierto, transparente y ciudadanía consciente | N84: 1623 | O84: 1 | P84: 51730617 | Q84: MARIA DEL PILAR MORALES SANTODOMINGO | R84: Persona Natural | W84: 22500000 | Y84: 1 | Z84: 7500000 | AA84: 30000000 | AB84: 30000001 | AC84: 2023-02-13 | AD84: 2023-02-14 | AE84: 2024-02-13 | AF84: 360 | AG84: 1 | AH84: 90 | AM84: En ejecución | AN84: 1.000000033
A85: 076 | B85: 2023 | C85: FDLE-CD-076-2023 | D85: https://community.secop.gov.co/Public/Tendering/OpportunityDetail/Index?noticeUID=CO1.NTC.3961967&isFromPublicArea=True&isModal=False | E85: Contratos de prestación de servicios | F85: Contratación directa | G85: Prestación de servicios profesionales y de apoyo a la gestión, o para la ejecución de trabajos artísticos que sólo puedan encomendarse a determinadas personas naturales | H85: LA PRESTACIÓN DE SERVICIOS DE APOYO AL ÁREA DE GESTIÓN DE DESARROLLO LOCAL EN LAS ACTIVIDADES DE MENSAJERÍA Y MANEJO DE CORRESPONDENCIA DE LA DOCUMENTACIÓN PROCEDENTE DEL ÁREA DE GESTION DE DESARROLLO Y ÁREA DE GESTION POLICIVA JURIDICA DE LA ALCALDÍA LOCAL, HACIA LAS DISTINTAS ENTIDADES PÚBLICAS, PRIVADAS Y A LA COMUNIDAD EN GENERAL | I85: Inversión | J85: Un nuevo contrato social y ambiental para la Bogotá del Siglo XXI | K85: 57 | L85: =IF(ISERROR(VLOOKUP(K85,Proposito_programa!$C$2:$E$59,2,FALSE))," ",VLOOKUP(K85,Proposito_programa!$C$2:$E$59,2,FALSE)) -> Gestión pública local | M85: =IF(ISERROR(VLOOKUP(K85,Proposito_programa!$C$2:$E$59,3,FALSE))," ",VLOOKUP(K85,Proposito_programa!$C$2:$E$59,3,FALSE)) -> Propósito 5: Construir Bogotá - Región con gobierno abierto, transparente y ciudadanía consciente | N85: 1623 | O85: 2 | P85: 79826672 | Q85: REYNALDO ROJAS LEIVA | R85: Persona Natural | W85: 22500000 | Y85: 1 | Z85: 11083333 | AA85: 33583333 | AB85: 33583334 | AC85: 2023-02-08 | AD85: 2023-02-09 | AE85: 2024-03-21 | AF85: 403 | AG85: 1 | AH85: 133 | AM85: En ejecución | AN85: 1.00000003
A86: 077 | B86: 2023 | C86: FDLE-CD-077-2023 | D86: https://community.secop.gov.co/Public/Tendering/OpportunityDetail/Index?noticeUID=CO1.NTC.3962254&isFromPublicArea=True&isModal=False | E86: Contratos de prestación de servicios | F86: Contratación directa | G86: Prestación de servicios profesionales y de apoyo a la gestión, o para la ejecución de trabajos artísticos que sólo puedan encomendarse a determinadas personas naturales | H86: LA PRESTACIÓN DE SERVICIOS DE APOYO AL ÁREA DE GESTIÓN DE DESARROLLO LOCAL EN LAS ACTIVIDADES DE MENSAJERÍA Y MANEJO DE CORRESPONDENCIA DE LA DOCUMENTACIÓN PROCEDENTE DEL ÁREA DE GESTION DE DESARROLLO Y ÁREA DE GESTION POLICIVA JURIDICA DE LA ALCALDÍA LOCAL, HACIA LAS DISTINTAS ENTIDADES PÚBLICAS, PRIVADAS Y A LA COMUNIDAD EN GENERAL | I86: Inversión | J86: Un nuevo contrato social y ambiental para la Bogotá del Siglo XXI | K86: 57 | L86: =IF(ISERROR(VLOOKUP(K86,Proposito_programa!$C$2:$E$59,2,FALSE))," ",VLOOKUP(K86,Proposito_programa!$C$2:$E$59,2,FALSE)) -> Gestión pública local | M86: =IF(ISERROR(VLOOKUP(K86,Proposito_programa!$C$2:$E$59,3,FALSE))," ",VLOOKUP(K86,Proposito_programa!$C$2:$E$59,3,FALSE)) -> Propósito 5: Construir Bogotá - Región con gobierno abierto, transparente y ciudadanía consciente | N86: 1623 | O86: 9 | P86: 1014211396 | Q86: EDWIN ALBERTO VELASQUEZ BOTIVA | R86: Persona Natural | W86: 22500000 | Y86: 1 | Z86: 7500000 | AA86: 30000000 | AB86: 30000001 | AC86: 2023-02-08 | AD86: 2023-02-09 | AE86: 2024-02-08 | AF86: 360 | AG86: 1 | AH86: 90 | AM86: En ejecución | AN86: 1.000000033
A87: 078 | B87: 2023 | C87: FDLE-CD-078-2023 | D87: https://community.secop.gov.co/Public/Tendering/OpportunityDetail/Index?noticeUID=CO1.NTC.3969074&isFromPublicArea=True&isModal=False | E87: Contratos de prestación de servicios | F87: Contratación directa | G87: Prestación de servicios profesionales y de apoyo a la gestión, o para la ejecución de trabajos artísticos que sólo puedan encomendarse a determinadas personas naturales | H87: LA PRESTACIÓN DE SERVICIOS DE APOYO AL ÁREA DE GESTIÓN DE DESARROLLO LOCAL EN LAS ACTIVIDADES DE MENSAJERÍA Y MANEJO DE CORRESPONDENCIA DE LA DOCUMENTACIÓN PROCEDENTE DEL ÁREA DE GESTION DE DESARROLLO Y ÁREA DE GESTION POLICIVA JURIDICA DE LA ALCALDÍA LOCAL, HACIA LAS DISTINTAS ENTIDADES PÚBLICAS, PRIVADAS Y A LA COMUNIDAD EN GENERAL | I87: Inversión | J87: Un nuevo contrato social y ambiental para la Bogotá del Siglo XXI | K87: 57 | L87: =IF(ISERROR(VLOOKUP(K87,Proposito_programa!$C$2:$E$59,2,FALSE))," ",VLOOKUP(K87,Proposito_programa!$C$2:$E$59,2,FALSE)) -> Gestión pública local | M87: =IF(ISERROR(VLOOKUP(K87,Proposito_programa!$C$2:$E$59,3,FALSE))," ",VLOOKUP(K87,Proposito_programa!$C$2:$E$59,3,FALSE)) -> Propósito 5: Construir Bogotá - Región con gobierno abierto, transparente y ciudadanía consciente | N87: 1623 | O87: 6 | P87: 19438849 | Q87: OSWALDO MAXIMILIANO CIFUENTES | R87: Persona Natural | W87: 22500000 | Y87: 1 | Z87: 7500000 | AA87: 30000000 | AB87: 30000001 | AC87: 2023-02-10 | AD87: 2023-02-13 | AE87: 2024-02-12 | AF87: 360 | AG87: 1 | AH87: 90 | AM87: En ejecución | AN87: 1.000000033
A88: 079 | B88: 2023 | C88: FDLE-CD-079-2023 | D88: https://community.secop.gov.co/Public/Tendering/OpportunityDetail/Index?noticeUID=CO1.NTC.3856889&isFromPublicArea=True&isModal=False | E88: Contratos de prestación de servicios | F88: Contratación directa | G88: Prestación de servicios profesionales y de apoyo a la gestión, o para la ejecución de trabajos artísticos que sólo puedan encomendarse a determinadas personas naturales | H88: LA PRESTACIÓN DE SERVICIOS DE APOYO AL ÁREA DE GESTIÓN DE DESARROLLO LOCAL EN LAS ACTIVIDADES DE MENSAJERÍA Y MANEJO DE CORRESPONDENCIA DE LA DOCUMENTACIÓN PROCEDENTE DEL ÁREA DE GESTION DE DESARROLLO Y ÁREA DE GESTION POLICIVA JURIDICA DE LA ALCALDÍA LOCAL, HACIA LAS DISTINTAS ENTIDADES PÚBLICAS, PRIVADAS Y A LA COMUNIDAD EN GENERAL | I88: Inversión | J88: Un nuevo contrato social y ambiental para la Bogotá del Siglo XXI | K88: 57 | L88: =IF(ISERROR(VLOOKUP(K88,Proposito_programa!$C$2:$E$59,2,FALSE))," ",VLOOKUP(K88,Proposito_programa!$C$2:$E$59,2,FALSE)) -> Gestión pública local | M88: =IF(ISERROR(VLOOKUP(K88,Proposito_programa!$C$2:$E$59,3,FALSE))," ",VLOOKUP(K88,Proposito_programa!$C$2:$E$59,3,FALSE)) -> Propósito 5: Construir Bogotá - Región con gobierno abierto, transparente y ciudadanía consciente | N88: 1623 | O88: 1 | P88: 1014283674 | Q88: RAFAEL RICARDO VERGARA ROMERO | R88: Persona Natural | W88: 22500000 | Y88: 1 | Z88: 7500000 | AA88: 30000000 | AB88: 30000001 | AC88: 2023-01-27 | AD88: 2023-01-30 | AE88: 2024-01-29 | AF88: 360 | AG88: 1 | AH88: 90 | AM88: En ejecución | AN88: 1.000000033
A89: 080 | B89: 2023 | C89: FDLE-CD-080-2023 | D89: https://community.secop.gov.co/Public/Tendering/OpportunityDetail/Index?noticeUID=CO1.NTC.4073737&isFromPublicArea=True&isModal=False | E89: Contratos de prestación de servicios | F89: Contratación directa | G89: Prestación de servicios profesionales y de apoyo a la gestión, o para la ejecución de trabajos artísticos que sólo puedan encomendarse a determinadas personas naturales | H89: PRESTAR LOS SERVICIOS DE APOYO A LA GESTIÓN LOCAL Y TERRITORIAL DE LOS TEMAS DE CONVIVENCIA CIUDADANA, DE CONFORMIDAD CON EL MARCO NORMATIVO APLICABLE PARA LA MATERIA. | I89: Inversión | J89: Un nuevo contrato social y ambiental para la Bogotá del Siglo XXI | K89: 43 | L89: =IF(ISERROR(VLOOKUP(K89,Proposito_programa!$C$2:$E$59,2,FALSE))," ",VLOOKUP(K89,Proposito_programa!$C$2:$E$59,2,FALSE)) -> Cultura ciudadana para la confianza, la convivencia y la participación desde la vida cotidiana | M89: =IF(ISERROR(VLOOKUP(K89,Proposito_programa!$C$2:$E$59,3,FALSE))," ",VLOOKUP(K89,Proposito_programa!$C$2:$E$59,3,FALSE)) -> Propósito 3: Inspirar confianza y legitimidad para vivir sin miedo y ser epicentro de cultura ciudadana, paz y reconciliación | N89: 1617 | O89: 5 | P89: 1003968711 | Q89: JAMES CIFUENTES CASTAÑEDA | R89: Persona Natural | W89: 20700000 | Y89: 1 | Z89: 2300000 | AA89: 23000000 | AB89: 23000001 | AC89: 2023-02-24 | AD89: 2023-02-28 | AE89: 2023-12-27 | AF89: 300 | AG89: 1 | AH89: 30 | AI89: 1003968711 | AJ89: JAMES CIFUENTES CASTAÑEDA | AK89: 2023-08-16 | AL89: 10043333 | AM89: Terminado | AN89: 1.000000043
A90: 082 | B90: 2023 | C90: FDLE-CD-082-2023 | D90: https://community.secop.gov.co/Public/Tendering/OpportunityDetail/Index?noticeUID=CO1.NTC.3954044&isFromPublicArea=True&isModal=False | E90: Contratos de prestación de servicios | F90: Contratación directa | G90: Prestación de servicios profesionales y de apoyo a la gestión, o para la ejecución de trabajos artísticos que sólo puedan encomendarse a determinadas personas naturales | H90: LA PRESTACIÓN DE SERVICIOS AUXILIARES DE APOYO A LA GESTIÓN AL ÁREA DE GESTIÓN DE DESARROLLO LOCAL EN LA EJECUCIÓN DEL PROCESO DE CORRESPONDENCIA QUE SE GENERA EN CDI DE LA ALCALDÍA LOCAL DE ENGATIVÁ | I90: Inversión | J90: Un nuevo contrato social y ambiental para la Bogotá del Siglo XXI | K90: 57 | L90: =IF(ISERROR(VLOOKUP(K90,Proposito_programa!$C$2:$E$59,2,FALSE))," ",VLOOKUP(K90,Proposito_programa!$C$2:$E$59,2,FALSE)) -> Gestión pública local | M90: =IF(ISERROR(VLOOKUP(K90,Proposito_programa!$C$2:$E$59,3,FALSE))," ",VLOOKUP(K90,Proposito_programa!$C$2:$E$59,3,FALSE)) -> Propósito 5: Construir Bogotá - Región con gobierno abierto, transparente y ciudadanía consciente | N90: 1623 | O90: 5 | P90: 1010186649 | Q90: CATALINA REYES FORERO | R90: Persona Natural | W90: 22500000 | Y90: 1 | Z90: 7500000 | AA90: 30000000 | AB90: 30000001 | AC90: 2023-02-07 | AD90: 2023-02-08 | AE90: 2024-02-07 | AF90: 360 | AG90: 1 | AH90: 90 | AM90: En ejecución | AN90: 1.000000033
A91: 083 | B91: 2023 | C91: FDLE-CD-083-2023 | D91: https://community.secop.gov.co/Public/Tendering/OpportunityDetail/Index?noticeUID=CO1.NTC.3983765&isFromPublicArea=True&isModal=False | E91: Contratos de prestación de servicios | F91: Contratación directa | G91: Prestación de servicios profesionales y de apoyo a la gestión, o para la ejecución de trabajos artísticos que sólo puedan encomendarse a determinadas personas naturales | H91: LA PRESTACIÓN DE SERVICIOS AUXILIARES DE APOYO A LA GESTIÓN AL ÁREA DE GESTIÓN DE DESARROLLO LOCAL EN LA EJECUCIÓN DEL PROCESO DE CORRESPONDENCIA QUE SE GENERA EN CDI DE LA ALCALDÍA LOCAL DE ENGATIVÁ | I91: Inversión | J91: Un nuevo contrato social y ambiental para la Bogotá del Siglo XXI | K91: 57 | L91: =IF(ISERROR(VLOOKUP(K91,Proposito_programa!$C$2:$E$59,2,FALSE))," ",VLOOKUP(K91,Proposito_programa!$C$2:$E$59,2,FALSE)) -> Gestión pública local | M91: =IF(ISERROR(VLOOKUP(K91,Proposito_programa!$C$2:$E$59,3,FALSE))," ",VLOOKUP(K91,Proposito_programa!$C$2:$E$59,3,FALSE)) -> Propósito 5: Construir Bogotá - Región con gobierno abierto, transparente y ciudadanía consciente | N91: 1623 | O91: 1 | P91: 1094267461 | Q91: OSCAR DAVID MENDOZA FLOREZ | R91: Persona Natural | W91: 22500000 | Y91: 1 | Z91: 11166667 | AA91: 33666667 | AB91: 33666668 | AC91: 2023-02-16 | AD91: 2023-02-20 | AE91: 2024-04-03 | AF91: 405 | AG91: 1 | AH91: 135 | AM91: En ejecución | AN91: 1.00000003
A92: 084 | B92: 2023 | C92: FDLE-CD-084-2023 | D92: https://community.secop.gov.co/Public/Tendering/OpportunityDetail/Index?noticeUID=CO1.NTC.3983844&isFromPublicArea=True&isModal=False | E92: Contratos de prestación de servicios | F92: Contratación directa | G92: Prestación de servicios profesionales y de apoyo a la gestión, o para la ejecución de trabajos artísticos que sólo puedan encomendarse a determinadas personas naturales | H92: LA PRESTACIÓN DE SERVICIOS AUXILIARES DE APOYO A LA GESTIÓN AL ÁREA DE GESTIÓN DE DESARROLLO LOCAL EN LA EJECUCIÓN DEL PROCESO DE CORRESPONDENCIA QUE SE GENERA EN CDI DE LA ALCALDÍA LOCAL DE ENGATIVÁ | I92: Inversión | J92: Un nuevo contrato social y ambiental para la Bogotá del Siglo XXI | K92: 57 | L92: =IF(ISERROR(VLOOKUP(K92,Proposito_programa!$C$2:$E$59,2,FALSE))," ",VLOOKUP(K92,Proposito_programa!$C$2:$E$59,2,FALSE)) -> Gestión pública local | M92: =IF(ISERROR(VLOOKUP(K92,Proposito_programa!$C$2:$E$59,3,FALSE))," ",VLOOKUP(K92,Proposito_programa!$C$2:$E$59,3,FALSE)) -> Propósito 5: Construir Bogotá - Región con gobierno abierto, transparente y ciudadanía consciente | N92: 1623 | O92: 6 | P92: 80775248 | Q92: HENRY FABIAN BEJARANO HERRERA | R92: Persona Natural | W92: 22500000 | Y92: 1 | Z92: 7500000 | AA92: 30000000 | AB92: 30000001 | AC92: 2023-02-14 | AD92: 2023-02-15 | AE92: 2024-02-14 | AF92: 360 | AG92: 1 | AH92: 90 | AM92: En ejecución | AN92: 1.000000033
A93: 085 | B93: 2023 | C93: FDLE-CD-085-2023 | D93: https://community.secop.gov.co/Public/Tendering/OpportunityDetail/Index?noticeUID=CO1.NTC.3861227&isFromPublicArea=True&isModal=False | E93: Contratos de prestación de servicios | F93: Contratación directa | G93: Prestación de servicios profesionales y de apoyo a la gestión, o para la ejecución de trabajos artísticos que sólo puedan encomendarse a determinadas personas naturales | H93: LA PRESTACIÓN DE SERVICIOS AUXILIARES DE APOYO A LA GESTIÓN AL ÁREA DE GESTIÓN DE DESARROLLO LOCAL EN LA EJECUCIÓN DEL PROCESO DE CORRESPONDENCIA QUE SE GENERA EN CDI DE LA ALCALDÍA LOCAL DE ENGATIVÁ | I93: Inversión | J93: Un nuevo contrato social y ambiental para la Bogotá del Siglo XXI | K93: 57 | L93: =IF(ISERROR(VLOOKUP(K93,Proposito_programa!$C$2:$E$59,2,FALSE))," ",VLOOKUP(K93,Proposito_programa!$C$2:$E$59,2,FALSE)) -> Gestión pública local | M93: =IF(ISERROR(VLOOKUP(K93,Proposito_programa!$C$2:$E$59,3,FALSE))," ",VLOOKUP(K93,Proposito_programa!$C$2:$E$59,3,FALSE)) -> Propósito 5: Construir Bogotá - Región con gobierno abierto, transparente y ciudadanía consciente | N93: 1623 | O93: 5 | P93: 1014258979 | Q93: CARMEN ELENA GARCIA RIVERA | R93: Persona Natural | W93: 22500000 | Y93: 1 | Z93: 7500000 | AA93: 30000000 | AB93: 30000001 | AC93: 2023-01-27 | AD93: 2023-01-30 | AE93: 2024-02-29 | AF93: 390 | AG93: 1 | AH93: 90 | AM93: En ejecución | AN93: 1.000000033
A94: 086 | B94: 2023 | C94: FDLE-CD-086-2023 | D94: https://community.secop.gov.co/Public/Tendering/OpportunityDetail/Index?noticeUID=CO1.NTC.3954125&isFromPublicArea=True&isModal=False | E94: Contratos de prestación de servicios | F94: Contratación directa | G94: Prestación de servicios profesionales y de apoyo a la gestión, o para la ejecución de trabajos artísticos que sólo puedan encomendarse a determinadas personas naturales | H94: LA PRESTACIÓN DE SERVICIOS AUXILIARES DE APOYO A LA GESTIÓN AL ÁREA DE GESTIÓN DE DESARROLLO LOCAL EN LA EJECUCIÓN DEL PROCESO DE CORRESPONDENCIA QUE SE GENERA EN CDI DE LA ALCALDÍA LOCAL DE ENGATIVÁ | I94: Inversión | J94: Un nuevo contrato social y ambiental para la Bogotá del Siglo XXI | K94: 57 | L94: =IF(ISERROR(VLOOKUP(K94,Proposito_programa!$C$2:$E$59,2,FALSE))," ",VLOOKUP(K94,Proposito_programa!$C$2:$E$59,2,FALSE)) -> Gestión pública local | M94: =IF(ISERROR(VLOOKUP(K94,Proposito_programa!$C$2:$E$59,3,FALSE))," ",VLOOKUP(K94,Proposito_programa!$C$2:$E$59,3,FALSE)) -> Propósito 5: Construir Bogotá - Región con gobierno abierto, transparente y ciudadanía consciente | N94: 1623 | O94: 1 | P94: 80814494 | Q94: EBER YECID CUEVAS RINCON | R94: Persona Natural | W94: 22500000 | Y94: 1 | Z94: 7500000 | AA94: 30000000 | AB94: 30000001 | AC94: 2023-02-07 | AD94: 2023-02-08 | AE94: 2024-02-07 | AF94: 360 | AG94: 1 | AH94: 90 | AM94: En ejecución | AN94: 1.000000033
A95: 087 | B95: 2023 | C95: FDLE-CD-087-2023 | D95: https://community.secop.gov.co/Public/Tendering/OpportunityDetail/Index?noticeUID=CO1.NTC.3864141&isFromPublicArea=True&isModal=False | E95: Contratos de prestación de servicios | F95: Contratación directa | G95: Prestación de servicios profesionales y de apoyo a la gestión, o para la ejecución de trabajos artísticos que sólo puedan encomendarse a determinadas personas naturales | H95: APOYAR TÉCNICAMENTE A LA ALCALDÍA LOCAL EN EL ADECUADO MANEJO DE LOS DOCUMENTOS OFICIALES, MEDIANTE LA SOCIALIZACIÓN, IMPLEMENTACIÓN, MONITOREO Y SEGUIMIENTO AL APLICATIVO ORFEO, EN LAS DIFERENTES DEPENDENCIAS, CON ÉNFASIS EN EL CDI DEL AREA DE GESTION DE DESARROLLO LOCAL | I95: Inversión | J95: Un nuevo contrato social y ambiental para la Bogotá del Siglo XXI | K95: 57 | L95: =IF(ISERROR(VLOOKUP(K95,Proposito_programa!$C$2:$E$59,2,FALSE))," ",VLOOKUP(K95,Proposito_programa!$C$2:$E$59,2,FALSE)) -> Gestión pública local | M95: =IF(ISERROR(VLOOKUP(K95,Proposito_programa!$C$2:$E$59,3,FALSE))," ",VLOOKUP(K95,Proposito_programa!$C$2:$E$59,3,FALSE)) -> Propósito 5: Construir Bogotá - Región con gobierno abierto, transparente y ciudadanía consciente | N95: 1623 | O95: 2 | P95: 1015997680 | Q95: LORENA HERNANDEZ LINARES | R95: Persona Natural | W95: 28782000 | Y95: 1 | Z95: 14177800 | AA95: 42959800 | AB95: 42959801 | AC95: 2023-01-30 | AD95: 2023-01-31 | AE95: 2024-03-13 | AF95: 403 | AG95: 1 | AH95: 133 | AM95: En ejecución | AN95: 1.000000023
A96: 088 | B96: 2023 | C96: FDLE-CD-088-2023 | D96: https://community.secop.gov.co/Public/Tendering/OpportunityDetail/Index?noticeUID=CO1.NTC.3969459&isFromPublicArea=True&isModal=False | E96: Contratos de prestación de servicios | F96: Contratación directa | G96: Prestación de servicios profesionales y de apoyo a la gestión, o para la ejecución de trabajos artísticos que sólo puedan encomendarse a determinadas personas naturales | H96: LA PRESTACIÓN DE SERVICIOS DE APOYO TÉCNICO AL ÁREA DE GESTIÓN DE DESARROLLO LOCAL, EN LAS LABORES ADMINISTRATIVAS Y OPERATIVAS DE ALMACÉN QUE ALLÍ SE REQUIERAN. | I96: Inversión | J96: Un nuevo contrato social y ambiental para la Bogotá del Siglo XXI | K96: 57 | L96: =IF(ISERROR(VLOOKUP(K96,Proposito_programa!$C$2:$E$59,2,FALSE))," ",VLOOKUP(K96,Proposito_programa!$C$2:$E$59,2,FALSE)) -> Gestión pública local | M96: =IF(ISERROR(VLOOKUP(K96,Proposito_programa!$C$2:$E$59,3,FALSE))," ",VLOOKUP(K96,Proposito_programa!$C$2:$E$59,3,FALSE)) -> Propósito 5: Construir Bogotá - Región con gobierno abierto, transparente y ciudadanía consciente | N96: 1623 | O96: 2 | P96: 80865061 | Q96: JHON JAIRO OSPINA HENAO | R96: Persona Natural | W96: 28782000 | Y96: 1 | Z96: 9594000 | AA96: 38376000 | AB96: 38376001 | AC96: 2023-02-09 | AD96: 2023-02-13 | AE96: 2024-02-12 | AF96: 360 | AG96: 1 | AH96: 90 | AM96: En ejecución | AN96: 1.000000026
A97: 089 | B97: 2023 | C97: FDLE-CD-089-2023 | D97: https://community.secop.gov.co/Public/Tendering/OpportunityDetail/Index?noticeUID=CO1.NTC.3969716&isFromPublicArea=True&isModal=False | E97: Contratos de prestación de servicios | F97: Contratación directa | G97: Prestación de servicios profesionales y de apoyo a la gestión, o para la ejecución de trabajos artísticos que sólo puedan encomendarse a determinadas personas naturales | H97: LA PRESTACIÓN DE SERVICIOS DE APOYO TÉCNICO AL ÁREA DE GESTIÓN DE DESARROLLO LOCAL, EN LAS LABORES ADMINISTRATIVAS Y OPERATIVAS DE ALMACÉN QUE ALLÍ SE REQUIERAN. | I97: Inversión | J97: Un nuevo contrato social y ambiental para la Bogotá del Siglo XXI | K97: 57 | L97: =IF(ISERROR(VLOOKUP(K97,Proposito_programa!$C$2:$E$59,2,FALSE))," ",VLOOKUP(K97,Proposito_programa!$C$2:$E$59,2,FALSE)) -> Gestión pública local | M97: =IF(ISERROR(VLOOKUP(K97,Proposito_programa!$C$2:$E$59,3,FALSE))," ",VLOOKUP(K97,Proposito_programa!$C$2:$E$59,3,FALSE)) -> Propósito 5: Construir Bogotá - Región con gobierno abierto, transparente y ciudadanía consciente | N97: 1623 | O97: 7 | P97: 80227893 | Q97: JOSE ALEXANDER HERRERA BERDUGO | R97: Persona Natural | W97: 28782000 | Y97: 1 | Z97: 9594000 | AA97: 38376000 | AB97: 38376001 | AC97: 2023-02-10 | AD97: 2023-02-10 | AE97: 2024-02-09 | AF97: 360 | AG97: 1 | AH97: 90 | AM97: En ejecución | AN97: 1.000000026
A98: 090 | B98: 2023 | C98: FDLE-CD-090-2023 | D98: https://community.secop.gov.co/Public/Tendering/OpportunityDetail/Index?noticeUID=CO1.NTC.3983293&isFromPublicArea=True&isModal=False | E98: Contratos de prestación de servicios | F98: Contratación directa | G98: Prestación de servicios profesionales y de apoyo a la gestión, o para la ejecución de trabajos artísticos que sólo puedan encomendarse a determinadas personas naturales | H98: LA PRESTACIÓN DE SERVICIOS DE APOYO TÉCNICO AL ÁREA DE GESTIÓN DE DESARROLLO LOCAL, EN LAS LABORES ADMINISTRATIVAS Y OPERATIVAS DE ALMACÉN QUE ALLÍ SE REQUIERAN. | I98: Inversión | J98: Un nuevo contrato social y ambiental para la Bogotá del Siglo XXI | K98: 57 | L98: =IF(ISERROR(VLOOKUP(K98,Proposito_programa!$C$2:$E$59,2,FALSE))," ",VLOOKUP(K98,Proposito_programa!$C$2:$E$59,2,FALSE)) -> Gestión pública local | M98: =IF(ISERROR(VLOOKUP(K98,Proposito_programa!$C$2:$E$59,3,FALSE))," ",VLOOKUP(K98,Proposito_programa!$C$2:$E$59,3,FALSE)) -> Propósito 5: Construir Bogotá - Región con gobierno abierto, transparente y ciudadanía consciente | N98: 1623 | O98: 9 | P98: 1014214211 | Q98: LUIS FERNANDO FORERO BELTRAN | R98: Persona Natural | W98: 35178000 | Y98: 1 | Z98: 15990000 | AA98: 51168000 | AB98: 51168001 | AC98: 2023-02-13 | AD98: 2023-02-14 | AE98: 2024-06-13 | AF98: 480 | AG98: 1 | AH98: 150 | AI98: 1014214211 | AJ98: LUIS FERNANDO FORERO BELTRAN | AK98: 2023-05-17 | AL98: 36162800 | AM98: En ejecución | AN98: 1.00000002
A99: 091 | B99: 2023 | C99: FDLE-CD-091-2023 | D99: https://community.secop.gov.co/Public/Tendering/OpportunityDetail/Index?noticeUID=CO1.NTC.3983847&isFromPublicArea=True&isModal=False | E99: Contratos de prestación de servicios | F99: Contratación directa | G99: Prestación de servicios profesionales y de apoyo a la gestión, o para la ejecución de trabajos artísticos que sólo puedan encomendarse a determinadas personas naturales | H99: LA PRESTACIÓN DE SERVICIOS DE APOYO PROFESIONAL AL ÁREA DE GESTIÓN DE DESARROLLO LOCAL, EN LAS LABORES DE ALMACÉN QUE ALLÍ SE REQUIERAN. | I99: Inversión | J99: Un nuevo contrato social y ambiental para la Bogotá del Siglo XXI | K99: 57 | L99: =IF(ISERROR(VLOOKUP(K99,Proposito_programa!$C$2:$E$59,2,FALSE))," ",VLOOKUP(K99,Proposito_programa!$C$2:$E$59,2,FALSE)) -> Gestión pública local | M99: =IF(ISERROR(VLOOKUP(K99,Proposito_programa!$C$2:$E$59,3,FALSE))," ",VLOOKUP(K99,Proposito_programa!$C$2:$E$59,3,FALSE)) -> Propósito 5: Construir Bogotá - Región con gobierno abierto, transparente y ciudadanía consciente | N99: 1623 | O99: 4 | P99: 79484752 | Q99: DIEGO FERNANDO ANGULO VILLALBA | R99: Persona Natural | W99: 41130000 | Y99: 1 | Z99: 13710000 | AA99: 54840000 | AB99: 54840001 | AC99: 2023-02-16 | AD99: 2023-02-20 | AE99: 2024-02-19 | AF99: 360 | AG99: 1 | AH99: 90 | AM99: En ejecución | AN99: 1.000000018
A100: 092 | B100: 2023 | C100: FDLE-CD-092-2023 | D100: https://community.secop.gov.co/Public/Tendering/OpportunityDetail/Index?noticeUID=CO1.NTC.3961838&isFromPublicArea=True&isModal=False | E100: Contratos de prestación de servicios | F100: Contratación directa | G100: Prestación de servicios profesionales y de apoyo a la gestión, o para la ejecución de trabajos artísticos que sólo puedan encomendarse a determinadas personas naturales | H100: PRESTAR SUS SERVICIOS PROFESIONALES PARA LA IMPLEMENTACIÓN DE LAS ACCIONES Y LINEAMIENTOS TÉCNICOS SURTIDOS DEL PROGRAMA DE GESTIÓN DOCUMENTAL Y DEMÁS INSTRUMENTOS TÉCNICOS ARCHIVÍSTICOS. | I100: Inversión | J100: Un nuevo contrato social y ambiental para la Bogotá del Siglo XXI | K100: 57 | L100: =IF(ISERROR(VLOOKUP(K100,Proposito_programa!$C$2:$E$59,2,FALSE))," ",VLOOKUP(K100,Proposito_programa!$C$2:$E$59,2,FALSE)) -> Gestión pública local | M100: =IF(ISERROR(VLOOKUP(K100,Proposito_programa!$C$2:$E$59,3,FALSE))," ",VLOOKUP(K100,Proposito_programa!$C$2:$E$59,3,FALSE)) -> Propósito 5: Construir Bogotá - Región con gobierno abierto, transparente y ciudadanía consciente | N100: 1623 | O100: 1 | P100: 80757114 | Q100: DIEGO ARMANDO PINZON ACOSTA | R100: Persona Natural | W100: 49500000 | Y100: 1 | Z100: 24383333 | AA100: 73883333 | AB100: 73883334 | AC100: 2023-02-08 | AD100: 2023-02-09 | AE100: 2024-03-21 | AF100: 403 | AG100: 1 | AH100: 133 | AI100: 80757114 | AJ100: DIEGO ARMANDO PINZON ACOSTA | AK100: 2023-09-13 | AL100: 34650000 | AM100: En ejecución | AN100: 1.000000014
A101: 093 | B101: 2023 | C101: FDLE-CD-093-2023 | D101: https://community.secop.gov.co/Public/Tendering/OpportunityDetail/Index?noticeUID=CO1.NTC.3983288&isFromPublicArea=True&isModal=False | E101: Contratos de prestación de servicios | F101: Contratación directa | G101: Prestación de servicios profesionales y de apoyo a la gestión, o para la ejecución de trabajos artísticos que sólo puedan encomendarse a determinadas personas naturales | H101: APOYAR EN LAS TAREAS OPERATIVAS DE CARÁCTER ARCHIVÍSTICO DESARROLLADAS EN LA ALCALDÍA LOCAL PARA GARANTIZAR LA APLICACIÓN CORRECTA DE LOS PROCEDIMIENTOS TÉCNICOS. | I101: Inversión | J101: Un nuevo contrato social y ambiental para la Bogotá del Siglo XXI | K101: 57 | L101: =IF(ISERROR(VLOOKUP(K101,Proposito_programa!$C$2:$E$59,2,FALSE))," ",VLOOKUP(K101,Proposito_programa!$C$2:$E$59,2,FALSE)) -> Gestión pública local | M101: =IF(ISERROR(VLOOKUP(K101,Proposito_programa!$C$2:$E$59,3,FALSE))," ",VLOOKUP(K101,Proposito_programa!$C$2:$E$59,3,FALSE)) -> Propósito 5: Construir Bogotá - Región con gobierno abierto, transparente y ciudadanía consciente | N101: 1623 | O101: 1 | P101: 39812835 | Q101: LUDERLY YINETH DIAZ CRUZ | R101: Persona Natural | W101: 29700000 | Y101: 1 | Z101: 14740000 | AA101: 44440000 | AB101: 44440001 | AC101: 2023-02-15 | AD101: 2023-02-20 | AE101: 2024-04-03 | AF101: 405 | AG101: 1 | AH101: 135 | AM101: En ejecución | AN101: 1.000000023
A102: 094 | B102: 2023 | C102: FDLE-CD-094-2023 | D102: https://community.secop.gov.co/Public/Tendering/OpportunityDetail/Index?noticeUID=CO1.NTC.3983464&isFromPublicArea=True&isModal=False | E102: Contratos de prestación de servicios | F102: Contratación directa | G102: Prestación de servicios profesionales y de apoyo a la gestión, o para la ejecución de trabajos artísticos que sólo puedan encomendarse a determinadas personas naturales | H102: APOYAR EN LAS TAREAS OPERATIVAS DE CARÁCTER ARCHIVÍSTICO DESARROLLADAS EN LA ALCALDÍA LOCAL PARA GARANTIZAR LA APLICACIÓN CORRECTA DE LOS PROCEDIMIENTOS TÉCNICOS. | I102: Inversión | J102: Un nuevo contrato social y ambiental para la Bogotá del Siglo XXI | K102: 57 | L102: =IF(ISERROR(VLOOKUP(K102,Proposito_programa!$C$2:$E$59,2,FALSE))," ",VLOOKUP(K102,Proposito_programa!$C$2:$E$59,2,FALSE)) -> Gestión pública local | M102: =IF(ISERROR(VLOOKUP(K102,Proposito_programa!$C$2:$E$59,3,FALSE))," ",VLOOKUP(K102,Proposito_programa!$C$2:$E$59,3,FALSE)) -> Propósito 5: Construir Bogotá - Región con gobierno abierto, transparente y ciudadanía consciente | N102: 1623 | O102: 2 | P102: 51965051 | Q102: ALBA YANETH CASTAÑEDA CUBILLO | R102: Persona Natural | W102: 29700000 | Y102: 1 | Z102: 14740000 | AA102: 44440000 | AB102: 44440001 | AC102: 2023-02-15 | AD102: 2023-02-20 | AE102: 2024-04-03 | AF102: 405 | AG102: 1 | AH102: 135 | AM102: En ejecución | AN102: 1.000000023
A103: 095 | B103: 2023 | C103: FDLE-CD-095-2023 | D103: https://community.secop.gov.co/Public/Tendering/OpportunityDetail/Index?noticeUID=CO1.NTC.3983850&isFromPublicArea=True&isModal=False | E103: Contratos de prestación de servicios | F103: Contratación directa | G103: Prestación de servicios profesionales y de apoyo a la gestión, o para la ejecución de trabajos artísticos que sólo puedan encomendarse a determinadas personas naturales | H103: APOYAR EN LAS TAREAS OPERATIVAS DE CARÁCTER ARCHIVÍSTICO DESARROLLADAS EN LA ALCALDÍA LOCAL PARA GARANTIZAR LA APLICACIÓN CORRECTA DE LOS PROCEDIMIENTOS TÉCNICOS. | I103: Inversión | J103: Un nuevo contrato social y ambiental para la Bogotá del Siglo XXI | K103: 57 | L103: =IF(ISERROR(VLOOKUP(K103,Proposito_programa!$C$2:$E$59,2,FALSE))," ",VLOOKUP(K103,Proposito_programa!$C$2:$E$59,2,FALSE)) -> Gestión pública local | M103: =IF(ISERROR(VLOOKUP(K103,Proposito_programa!$C$2:$E$59,3,FALSE))," ",VLOOKUP(K103,Proposito_programa!$C$2:$E$59,3,FALSE)) -> Propósito 5: Construir Bogotá - Región con gobierno abierto, transparente y ciudadanía consciente | N103: 1623 | O103: 7 | P103: 1014190515 | Q103: RICARDO ALBERTO OSPINA FANDIÑO | R103: Persona Natural | W103: 29700000 | Y103: 1 | Z103: 14740000 | AA103: 44440000 | AB103: 44440001 | AC103: 2023-02-15 | AD103: 2023-02-20 | AE103: 2024-04-03 | AF103: 405 | AG103: 1 | AH103: 135 | AM103: En ejecución | AN103: 1.000000023
A104: 096 | B104: 2023 | C104: FDLE-CD-096-2023 | D104: https://community.secop.gov.co/Public/Tendering/OpportunityDetail/Index?noticeUID=CO1.NTC.3983283&isFromPublicArea=True&isModal=False | E104: Contratos de prestación de servicios | F104: Contratación directa | G104: Prestación de servicios profesionales y de apoyo a la gestión, o para la ejecución de trabajos artísticos que sólo puedan encomendarse a determinadas personas naturales | H104: APOYAR EN LAS TAREAS OPERATIVAS DE CARÁCTER ARCHIVÍSTICO DESARROLLADAS EN LA ALCALDÍA LOCAL PARA GARANTIZAR LA APLICACIÓN CORRECTA DE LOS PROCEDIMIENTOS TÉCNICOS. | I104: Inversión | J104: Un nuevo contrato social y ambiental para la Bogotá del Siglo XXI | K104: 57 | L104: =IF(ISERROR(VLOOKUP(K104,Proposito_programa!$C$2:$E$59,2,FALSE))," ",VLOOKUP(K104,Proposito_programa!$C$2:$E$59,2,FALSE)) -> Gestión pública local | M104: =IF(ISERROR(VLOOKUP(K104,Proposito_programa!$C$2:$E$59,3,FALSE))," ",VLOOKUP(K104,Proposito_programa!$C$2:$E$59,3,FALSE)) -> Propósito 5: Construir Bogotá - Región con gobierno abierto, transparente y ciudadanía consciente | N104: 1623 | O104: 9 | P104: 1016035783 | Q104: ALDO JOSEPH MARTIN RAMOS | R104: Persona Natural | W104: 36300000 | Y104: 1 | Z104: 18150000 | AA104: 54450000 | AB104: 54450001 | AC104: 2023-02-16 | AD104: 2023-02-20 | AE104: 2024-07-04 | AF104: 495 | AG104: 1 | AH104: 165 | AM104: En ejecución | AN104: 1.000000018
A105: 097 | B105: 2023 | C105: FDLE-CD-097-2023 | D105: https://community.secop.gov.co/Public/Tendering/OpportunityDetail/Index?noticeUID=CO1.NTC.3983286&isFromPublicArea=True&isModal=False | E105: Contratos de prestación de servicios | F105: Contratación directa | G105: Prestación de servicios profesionales y de apoyo a la gestión, o para la ejecución de trabajos artísticos que sólo puedan encomendarse a determinadas personas naturales | H105: PRESTAR LOS SERVICIOS TÉCNICOS AL ÁREA DE GESTIÓN POLICIVA JURÍDICA Y/O ÁREA DE GESTIÓN DE DESARROLLO LOCAL, EN TEMAS DE SEGURIDAD, PREVENCIÓN Y CONVIVENCIA CIUDADANA EN LA LOCALIDAD, DE CONFORMIDAD CON EL MARCO NORMATIVO APLICABLE PARA LA MATERIA. | I105: Inversión | J105: Un nuevo contrato social y ambiental para la Bogotá del Siglo XXI | K105: 43 | L105: =IF(ISERROR(VLOOKUP(K105,Proposito_programa!$C$2:$E$59,2,FALSE))," ",VLOOKUP(K105,Proposito_programa!$C$2:$E$59,2,FALSE)) -> Cultura ciudadana para la confianza, la convivencia y la participación desde la vida cotidiana | M105: =IF(ISERROR(VLOOKUP(K105,Proposito_programa!$C$2:$E$59,3,FALSE))," ",VLOOKUP(K105,Proposito_programa!$C$2:$E$59,3,FALSE)) -> Propósito 3: Inspirar confianza y legitimidad para vivir sin miedo y ser epicentro de cultura ciudadana, paz y reconciliación | N105: 1617 | O105: 3 | P105: 1096952886 | Q105: MARISOL ORTIZ RINCON | R105: Persona Natural | W105: 36000000 | AA105: 36000000 | AB105: 36000000 | AC105: 2023-02-13 | AD105: 2023-02-14 | AE105: 2023-11-13 | AF105: 270 | AM105: Terminado | AN105: 1
A106: 098 | B106: 2023 | C106: FDLE-CD-098-2023 | D106: https://community.secop.gov.co/Public/Tendering/OpportunityDetail/Index?noticeUID=CO1.NTC.3908011&isFromPublicArea=True&isModal=False | E106: Contratos de prestación de servicios | F106: Contratación directa | G106: Prestación de servicios profesionales y de apoyo a la gestión, o para la ejecución de trabajos artísticos que sólo puedan encomendarse a determinadas personas naturales | H106: APOYAR JURÍDICAMENTE A LA JUNTA ADMINISTRADORA LOCAL CON EL FIN DE CONTRIBUIR AL ADECUADO CUMPLIMIENTO DE LAS ATRIBUCIONES A SU CARGO | I106: Inversión | J106: Un nuevo contrato social y ambiental para la Bogotá del Siglo XXI | K106: 57 | L106: =IF(ISERROR(VLOOKUP(K106,Proposito_programa!$C$2:$E$59,2,FALSE))," ",VLOOKUP(K106,Proposito_programa!$C$2:$E$59,2,FALSE)) -> Gestión pública local | M106: =IF(ISERROR(VLOOKUP(K106,Proposito_programa!$C$2:$E$59,3,FALSE))," ",VLOOKUP(K106,Proposito_programa!$C$2:$E$59,3,FALSE)) -> Propósito 5: Construir Bogotá - Región con gobierno abierto, transparente y ciudadanía consciente | N106: 1623 | O106: 9 | P106: 79876545 | Q106: NELSON ENRIQUE RUEDA RODRIGUEZ | R106: Persona Natural | W106: 41130000 | Y106: 1 | Z106: 13710000 | AA106: 54840000 | AB106: 54840001 | AC106: 2023-02-02 | AD106: 2023-02-06 | AE106: 2024-02-05 | AF106: 360 | AG106: 1 | AH106: 90 | AM106: En ejecución | AN106: 1.000000018
A107: 099 | B107: 2023 | C107: FDLE-CD-099-2023 | D107: https://community.secop.gov.co/Public/Tendering/OpportunityDetail/Index?noticeUID=CO1.NTC.3879024&isFromPublicArea=True&isModal=False | E107: Contratos de prestación de servicios | F107: Contratación directa | G107: Prestación de servicios profesionales y de apoyo a la gestión, o para la ejecución de trabajos artísticos que sólo puedan encomendarse a determinadas personas naturales | H107: PRESTAR LOS SERVICIOS PROFESIONALES, PARA EL ACOMPAÑAMIENTO A LOS OPERATIVOS Y JORNADAS RELACIONADAS CON ASUNTOS DE SEGURIDAD CIUDADANA, CONVIVENCIA Y PREVENCIÓN DE CONFLICTIVIDADES PARA EL AREA DE GESTION POLICIVA DE LA ALCALDIA LOCAL DE ENGATIVÁ | I107: Inversión | J107: Un nuevo contrato social y ambiental para la Bogotá del Siglo XXI | K107: 43 | L107: =IF(ISERROR(VLOOKUP(K107,Proposito_programa!$C$2:$E$59,2,FALSE))," ",VLOOKUP(K107,Proposito_programa!$C$2:$E$59,2,FALSE)) -> Cultura ciudadana para la confianza, la convivencia y la participación desde la vida cotidiana | M107: =IF(ISERROR(VLOOKUP(K107,Proposito_programa!$C$2:$E$59,3,FALSE))," ",VLOOKUP(K107,Proposito_programa!$C$2:$E$59,3,FALSE)) -> Propósito 3: Inspirar confianza y legitimidad para vivir sin miedo y ser epicentro de cultura ciudadana, paz y reconciliación | N107: 1617 | O107: 8 | P107: 79431484 | Q107: OSCAR EDUARDO ROBAYO DIAZ | R107: Persona Natural | W107: 41130000 | AA107: 41130000 | AB107: 41130000 | AC107: 2023-01-30 | AD107: 2023-01-31 | AE107: 2023-10-30 | AF107: 270 | AM107: Terminado | AN107: 1
A108: 100 | B108: 2023 | C108: FDLE-CD-100-2023 | D108: https://community.secop.gov.co/Public/Tendering/OpportunityDetail/Index?noticeUID=CO1.NTC.4537777&isFromPublicArea=True&isModal=False | E108: Contratos de prestación de servicios | F108: Contratación directa | G108: Prestación de servicios profesionales y de apoyo a la gestión, o para la ejecución de trabajos artísticos que sólo puedan encomendarse a determinadas personas naturales | H108: LA PRESTACIÓN DE SERVICIOS DE APOYO TÉCNICO AL ÁREA DE GESTIÓN DE DESARROLLO LOCAL, EN LOS TRÁMITES ADMINISTRATIVOS DE CONTRATACIÓN QUE SE GENERAN EN EL FONDO DE DESARROLLO LOCAL DE ENGATIVÁ. | I108: Inversión | J108: Un nuevo contrato social y ambiental para la Bogotá del Siglo XXI | K108: 57 | L108: =IF(ISERROR(VLOOKUP(K108,Proposito_programa!$C$2:$E$59,2,FALSE))," ",VLOOKUP(K108,Proposito_programa!$C$2:$E$59,2,FALSE)) -> Gestión pública local | M108: =IF(ISERROR(VLOOKUP(K108,Proposito_programa!$C$2:$E$59,3,FALSE))," ",VLOOKUP(K108,Proposito_programa!$C$2:$E$59,3,FALSE)) -> Propósito 5: Construir Bogotá - Región con gobierno abierto, transparente y ciudadanía consciente | N108: 1623 | O108: 1 | P108: 1032396086 | Q108: MARGERY CÁRDENAS SERNA | R108: Persona Natural | W108: 22386000 | AA108: 22386000 | AB108: 22386000 | AC108: 2023-06-07 | AD108: 2023-06-13 | AE108: 2024-01-12 | AF108: 210 | AM108: En ejecución | AN108: 1
A109: 101 | B109: 2023 | C109: FDLE-CD-101-2023 | D109: https://community.secop.gov.co/Public/Tendering/OpportunityDetail/Index?noticeUID=CO1.NTC.4009359&isFromPublicArea=True&isModal=False | E109: Contratos de prestación de servicios | F109: Contratación directa | G109: Prestación de servicios profesionales y de apoyo a la gestión, o para la ejecución de trabajos artísticos que sólo puedan encomendarse a determinadas personas naturales | H109: PRESTAR LOS SERVICIOS PROFESIONALES, PARA EL ACOMPAÑAMIENTO A LOS OPERATIVOS Y JORNADAS RELACIONADAS CON ASUNTOS DE SEGURIDAD CIUDADANA, CONVIVENCIA Y PREVENCIÓN DE CONFLICTIVIDADES PARA EL AREA DE GESTION POLICIVA DE LA ALCALDIA LOCAL DE ENGATIVÁ | I109: Inversión | J109: Un nuevo contrato social y ambiental para la Bogotá del Siglo XXI | K109: 43 | L109: =IF(ISERROR(VLOOKUP(K109,Proposito_programa!$C$2:$E$59,2,FALSE))," ",VLOOKUP(K109,Proposito_programa!$C$2:$E$59,2,FALSE)) -> Cultura ciudadana para la confianza, la convivencia y la participación desde la vida cotidiana | M109: =IF(ISERROR(VLOOKUP(K109,Proposito_programa!$C$2:$E$59,3,FALSE))," ",VLOOKUP(K109,Proposito_programa!$C$2:$E$59,3,FALSE)) -> Propósito 3: Inspirar confianza y legitimidad para vivir sin miedo y ser epicentro de cultura ciudadana, paz y reconciliación | N109: 1617 | O109: 2 | P109: 19344795 | Q109: GERMAN CORTES BALLEN | R109: Persona Natural | W109: 41130000 | Y109: 1 | Z109: 4570000 | AA109: 45700000 | AB109: 45700001 | AC109: 2023-02-16 | AD109: 2023-02-20 | AE109: 2023-12-19 | AF109: 300 | AG109: 1 | AH109: 30 | AM109: Terminado | AN109: 1.000000022
A110: 102 | B110: 2023 | C110: FDLE-CD-102-2023 | D110: https://community.secop.gov.co/Public/Tendering/OpportunityDetail/Index?noticeUID=CO1.NTC.4073194&isFromPublicArea=True&isModal=False | E110: Contratos de prestación de servicios | F110: Contratación directa | G110: Prestación de servicios profesionales y de apoyo a la gestión, o para la ejecución de trabajos artísticos que sólo puedan encomendarse a determinadas personas naturales | H110: PRESTAR LOS SERVICIOS PROFESIONALES, PARA EL ACOMPAÑAMIENTO A LOS OPERATIVOS Y JORNADAS RELACIONADAS CON ASUNTOS DE SEGURIDAD CIUDADANA, CONVIVENCIA Y PREVENCIÓN DE CONFLICTIVIDADES PARA EL AREA DE GESTION POLICIVA DE LA ALCALDIA LOCAL DE ENGATIVÁ | I110: Inversión | J110: Un nuevo contrato social y ambiental para la Bogotá del Siglo XXI | K110: 43 | L110: =IF(ISERROR(VLOOKUP(K110,Proposito_programa!$C$2:$E$59,2,FALSE))," ",VLOOKUP(K110,Proposito_programa!$C$2:$E$59,2,FALSE)) -> Cultura ciudadana para la confianza, la convivencia y la participación desde la vida cotidiana | M110: =IF(ISERROR(VLOOKUP(K110,Proposito_programa!$C$2:$E$59,3,FALSE))," ",VLOOKUP(K110,Proposito_programa!$C$2:$E$59,3,FALSE)) -> Propósito 3: Inspirar confianza y legitimidad para vivir sin miedo y ser epicentro de cultura ciudadana, paz y reconciliación | N110: 1617 | O110: 8 | P110: 1098755733 | Q110: DANIELA ANTELIZ GOMEZ | R110: Persona Natural | W110: 41130000 | Y110: 1 | Z110: 4570000 | AA110: 45700000 | AB110: 45700001 | AC110: 2023-02-27 | AD110: 2023-02-28 | AE110: 2023-12-27 | AF110: 300 | AG110: 1 | AH110: 30 | AM110: Terminado | AN110: 1.000000022
A111: 103 | B111: 2023 | C111: FDLE-CD-103-2023 | D111: https://community.secop.gov.co/Public/Tendering/OpportunityDetail/Index?noticeUID=CO1.NTC.4001979&isFromPublicArea=True&isModal=False | E111: Contratos de prestación de servicios | F111: Contratación directa | G111: Prestación de servicios profesionales y de apoyo a la gestión, o para la ejecución de trabajos artísticos que sólo puedan encomendarse a determinadas personas naturales | H111: PRESTAR LOS SERVICIOS PROFESIONALES, PARA EL ACOMPAÑAMIENTO A LOS OPERATIVOS Y JORNADAS RELACIONADAS CON ASUNTOS DE SEGURIDAD CIUDADANA, CONVIVENCIA Y PREVENCIÓN DE CONFLICTIVIDADES PARA EL AREA DE GESTION POLICIVA DE LA ALCALDIA LOCAL DE ENGATIVÁ | I111: Inversión | J111: Un nuevo contrato social y ambiental para la Bogotá del Siglo XXI | K111: 43 | L111: =IF(ISERROR(VLOOKUP(K111,Proposito_programa!$C$2:$E$59,2,FALSE))," ",VLOOKUP(K111,Proposito_programa!$C$2:$E$59,2,FALSE)) -> Cultura ciudadana para la confianza, la convivencia y la participación desde la vida cotidiana | M111: =IF(ISERROR(VLOOKUP(K111,Proposito_programa!$C$2:$E$59,3,FALSE))," ",VLOOKUP(K111,Proposito_programa!$C$2:$E$59,3,FALSE)) -> Propósito 3: Inspirar confianza y legitimidad para vivir sin miedo y ser epicentro de cultura ciudadana, paz y reconciliación | N111: 1617 | O111: 1 | P111: 1001182158 | Q111: DIANA MARCELA SABOYA AUDOR | R111: Persona Natural | W111: 41130000 | Y111: 1 | Z111: 20412667 | AA111: 61542667 | AB111: 61542668 | AC111: 2023-02-14 | AD111: 2023-02-15 | AE111: 2024-03-28 | AF111: 404 | AG111: 1 | AH111: 134 | AM111: En ejecución | AN111: 1.000000016
A112: 104 | B112: 2023 | C112: FDLE-CD-104-2023 | D112: https://community.secop.gov.co/Public/Tendering/OpportunityDetail/Index?noticeUID=CO1.NTC.4207312&isFromPublicArea=True&isModal=False | E112: Contratos de prestación de servicios | F112: Contratación directa | G112: Prestación de servicios profesionales y de apoyo a la gestión, o para la ejecución de trabajos artísticos que sólo puedan encomendarse a determinadas personas naturales | H112: PRESTAR LOS SERVICIOS PROFESIONALES ÁREA DE GESTIÓN POLICIVA JURÍDICA Y/O ÁREA DE GESTIÓN DE DESARROLLO LOCAL, EN TEMAS DE VÍCTIMAS, DERECHOS HUMANOS, SEGURIDAD, PREVENCIÓN Y CONVIVENCIA CIUDADANA EN LA LOCALIDAD, DE CONFORMIDAD CON EL MARCO NORMATIVO APLICABLE | I112: Inversión | J112: Un nuevo contrato social y ambiental para la Bogotá del Siglo XXI | K112: 43 | L112: =IF(ISERROR(VLOOKUP(K112,Proposito_programa!$C$2:$E$59,2,FALSE))," ",VLOOKUP(K112,Proposito_programa!$C$2:$E$59,2,FALSE)) -> Cultura ciudadana para la confianza, la convivencia y la participación desde la vida cotidiana | M112: =IF(ISERROR(VLOOKUP(K112,Proposito_programa!$C$2:$E$59,3,FALSE))," ",VLOOKUP(K112,Proposito_programa!$C$2:$E$59,3,FALSE)) -> Propósito 3: Inspirar confianza y legitimidad para vivir sin miedo y ser epicentro de cultura ciudadana, paz y reconciliación | N112: 1617 | O112: 6 | P112: 1077968416 | Q112: JULLIETT JOHAN TRUJILLO MARQUEZ | R112: Persona Natural | W112: 36560000 | Y112: 1 | Z112: 4570000 | AA112: 41130000 | AB112: 41130001 | AC112: 2023-03-23 | AD112: 2023-03-27 | AE112: 2023-12-26 | AF112: 270 | AG112: 1 | AH112: 30 | AM112: Terminado | AN112: 1.000000024
A113: 105 | B113: 2023 | C113: FDLE-CD-105-2023 | D113: https://community.secop.gov.co/Public/Tendering/OpportunityDetail/Index?noticeUID=CO1.NTC.3970022&isFromPublicArea=True&isModal=False | E113: Contratos de prestación de servicios | F113: Contratación directa | G113: Prestación de servicios profesionales y de apoyo a la gestión, o para la ejecución de trabajos artísticos que sólo puedan encomendarse a determinadas personas naturales | H113: PRESTAR LOS SERVICIOS PROFESIONALES, PARA EL ACOMPAÑAMIENTO A LOS OPERATIVOS Y JORNADAS RELACIONADAS CON ASUNTOS DE SEGURIDAD CIUDADANA, CONVIVENCIA Y PREVENCIÓN DE CONFLICTIVIDADES PARA EL AREA DE GESTION POLICIVA DE LA ALCALDIA LOCAL DE ENGATIVÁ | I113: Inversión | J113: Un nuevo contrato social y ambiental para la Bogotá del Siglo XXI | K113: 43 | L113: =IF(ISERROR(VLOOKUP(K113,Proposito_programa!$C$2:$E$59,2,FALSE))," ",VLOOKUP(K113,Proposito_programa!$C$2:$E$59,2,FALSE)) -> Cultura ciudadana para la confianza, la convivencia y la participación desde la vida cotidiana | M113: =IF(ISERROR(VLOOKUP(K113,Proposito_programa!$C$2:$E$59,3,FALSE))," ",VLOOKUP(K113,Proposito_programa!$C$2:$E$59,3,FALSE)) -> Propósito 3: Inspirar confianza y legitimidad para vivir sin miedo y ser epicentro de cultura ciudadana, paz y reconciliación | N113: 1617 | O113: 8 | P113: 1072466895 | Q113: HUGO ALFREDO CIFUENTES CASALLAS | R113: Persona Natural | W113: 41130000 | Y113: 1 | Z113: 18280000 | AA113: 59410000 | AB113: 59410001 | AC113: 2023-02-10 | AD113: 2023-02-13 | AE113: 2024-03-12 | AF113: 390 | AG113: 1 | AH113: 120 | AM113: En ejecución | AN113: 1.000000017
A114: 106 | B114: 2023 | C114: FDLE-CD-106-2023 | D114: https://community.secop.gov.co/Public/Tendering/OpportunityDetail/Index?noticeUID=CO1.NTC.4000931&isFromPublicArea=True&isModal=False | E114: Contratos de prestación de servicios | F114: Contratación directa | G114: Prestación de servicios profesionales y de apoyo a la gestión, o para la ejecución de trabajos artísticos que sólo puedan encomendarse a determinadas personas naturales | H114: PRESTAR LOS SERVICIOS PROFESIONALES, PARA EL ACOMPAÑAMIENTO A LOS OPERATIVOS Y JORNADAS RELACIONADAS CON ASUNTOS DE SEGURIDAD CIUDADANA, CONVIVENCIA Y PREVENCIÓN DE CONFLICTIVIDADES PARA EL AREA DE GESTION POLICIVA DE LA ALCALDIA LOCAL DE ENGATIVÁ | I114: Inversión | J114: Un nuevo contrato social y ambiental para la Bogotá del Siglo XXI | K114: 43 | L114: =IF(ISERROR(VLOOKUP(K114,Proposito_programa!$C$2:$E$59,2,FALSE))," ",VLOOKUP(K114,Proposito_programa!$C$2:$E$59,2,FALSE)) -> Cultura ciudadana para la confianza, la convivencia y la participación desde la vida cotidiana | M114: =IF(ISERROR(VLOOKUP(K114,Proposito_programa!$C$2:$E$59,3,FALSE))," ",VLOOKUP(K114,Proposito_programa!$C$2:$E$59,3,FALSE)) -> Propósito 3: Inspirar confianza y legitimidad para vivir sin miedo y ser epicentro de cultura ciudadana, paz y reconciliación | N114: 1617 | O114: 6 | P114: 1014266232 | Q114: MAURICIO ALEJANDRO FERNANDEZ PRIETO | R114: Persona Natural | W114: 41130000 | Y114: 1 | Z114: 4570000 | AA114: 45700000 | AB114: 45700001 | AC114: 2023-02-15 | AD114: 2023-02-16 | AE114: 2023-12-15 | AF114: 300 | AG114: 1 | AH114: 30 | AM114: Terminado | AN114: 1.000000022
A115: 109 | B115: 2023 | C115: FDLE-CD-109-2023 | D115: https://community.secop.gov.co/Public/Tendering/OpportunityDetail/Index?noticeUID=CO1.NTC.4042295&isFromPublicArea=True&isModal=False | E115: Contratos de prestación de servicios | F115: Contratación directa | G115: Prestación de servicios profesionales y de apoyo a la gestión, o para la ejecución de trabajos artísticos que sólo puedan encomendarse a determinadas personas naturales | H115: LA PRESTACIÓN DE SERVICIOS PROFESIONALES AL ÁREA DE GESTIÓN DE DESARROLLO LOCAL, EN LA PROMOCIÓN, ARTICULACIÓN, ACOMPAÑAMIENTO Y SEGUIMIENTO PARA LA ATENCIÓN Y PROTECCIÓN DE LOS ANIMALES DOMÉSTICOS Y SILVESTRES DE LA LOCALIDAD DE ENGATIVÁ | I115: Inversión | J115: Un nuevo contrato social y ambiental para la Bogotá del Siglo XXI | K115: 34 | L115: =IF(ISERROR(VLOOKUP(K115,Proposito_programa!$C$2:$E$59,2,FALSE))," ",VLOOKUP(K115,Proposito_programa!$C$2:$E$59,2,FALSE)) -> Bogotá protectora de los animales | M115: =IF(ISERROR(VLOOKUP(K115,Proposito_programa!$C$2:$E$59,3,FALSE))," ",VLOOKUP(K115,Proposito_programa!$C$2:$E$59,3,FALSE)) -> Propósito 2 : Cambiar Nuestros Hábitos de Vida para Reverdecer a Bogotá y Adaptarnos y Mitigar la Crisis Climática | N115: 1613 | O115: 4 | P115: 1015441616 | Q115: EVAN SANTIAGO SARMIENTO JIMENEZ | R115: Persona Natural | W115: 41130000 | AA115: 41130000 | AB115: 41130000 | AC115: 2023-02-21 | AD115: 2023-02-22 | AE115: 2023-11-21 | AF115: 270 | AM115: Terminado | AN115: 1
A116: 110 | B116: 2023 | C116: FDLE-CD-110-2023 | D116: https://community.secop.gov.co/Public/Tendering/OpportunityDetail/Index?noticeUID=CO1.NTC.4042426&isFromPublicArea=True&isModal=False | E116: Contratos de prestación de servicios | F116: Contratación directa | G116: Prestación de servicios profesionales y de apoyo a la gestión, o para la ejecución de trabajos artísticos que sólo puedan encomendarse a determinadas personas naturales | H116: LA PRESTACIÓN DE SERVICIOS PROFESIONALES AL ÁREA DE GESTIÓN DE DESARROLLO LOCAL, EN LA PROMOCIÓN, ARTICULACIÓN, ACOMPAÑAMIENTO Y SEGUIMIENTO PARA LA ATENCIÓN Y PROTECCIÓN DE LOS ANIMALES DOMÉSTICOS Y SILVESTRES DE LA LOCALIDAD DE ENGATIVÁ | I116: Inversión | J116: Un nuevo contrato social y ambiental para la Bogotá del Siglo XXI | K116: 34 | L116: =IF(ISERROR(VLOOKUP(K116,Proposito_programa!$C$2:$E$59,2,FALSE))," ",VLOOKUP(K116,Proposito_programa!$C$2:$E$59,2,FALSE)) -> Bogotá protectora de los animales | M116: =IF(ISERROR(VLOOKUP(K116,Proposito_programa!$C$2:$E$59,3,FALSE))," ",VLOOKUP(K116,Proposito_programa!$C$2:$E$59,3,FALSE)) -> Propósito 2 : Cambiar Nuestros Hábitos de Vida para Reverdecer a Bogotá y Adaptarnos y Mitigar la Crisis Climática | N116: 1613 | O116: 1 | P116: 1019066849 | Q116: CLAUDIA FERNANDA RESTREPO BOTERO | R116: Persona Natural | W116: 41130000 | Y116: 1 | Z116: 4570000 | AA116: 45700000 | AB116: 45700001 | AC116: 2023-02-21 | AD116: 2023-02-22 | AE116: 2023-12-21 | AF116: 300 | AG116: 1 | AH116: 30 | AM116: Terminado | AN116: 1.000000022
A117: 111 | B117: 2023 | C117: FDLE-CD-111-2023 | D117: https://community.secop.gov.co/Public/Tendering/OpportunityDetail/Index?noticeUID=CO1.NTC.4049614&isFromPublicArea=True&isModal=False | E117: Contratos de prestación de servicios | F117: Contratación directa | G117: Prestación de servicios profesionales y de apoyo a la gestión, o para la ejecución de trabajos artísticos que sólo puedan encomendarse a determinadas personas naturales | H117: LA PRESTACIÓN DE SERVICIOS PROFESIONALES AL ÁREA DE GESTIÓN DE DESARROLLO LOCAL, EN LA PROMOCIÓN, ARTICULACIÓN, ACOMPAÑAMIENTO Y SEGUIMIENTO PARA LA ATENCIÓN Y PROTECCIÓN DE LOS ANIMALES DOMÉSTICOS Y SILVESTRES DE LA LOCALIDAD DE ENGATIVÁ | I117: Inversión | J117: Un nuevo contrato social y ambiental para la Bogotá del Siglo XXI | K117: 34 | L117: =IF(ISERROR(VLOOKUP(K117,Proposito_programa!$C$2:$E$59,2,FALSE))," ",VLOOKUP(K117,Proposito_programa!$C$2:$E$59,2,FALSE)) -> Bogotá protectora de los animales | M117: =IF(ISERROR(VLOOKUP(K117,Proposito_programa!$C$2:$E$59,3,FALSE))," ",VLOOKUP(K117,Proposito_programa!$C$2:$E$59,3,FALSE)) -> Propósito 2 : Cambiar Nuestros Hábitos de Vida para Reverdecer a Bogotá y Adaptarnos y Mitigar la Crisis Climática | N117: 1613 | O117: 2 | P117: 1019011907 | Q117: IVAN DARIO VELANDIA AGUILAR | R117: Persona Natural | W117: 41130000 | Y117: 1 | Z117: 18280000 | AA117: 59410000 | AB117: 59410001 | AC117: 2023-02-21 | AD117: 2023-02-22 | AE117: 2024-03-21 | AF117: 390 | AG117: 1 | AH117: 120 | AM117: En ejecución | AN117: 1.000000017
A118: 112 | B118: 2023 | C118: FDLE-CD-112-2023 | D118: https://community.secop.gov.co/Public/Tendering/ContractNoticePhases/View?PPI=CO1.PPI.23053851&isFromPublicArea=True&isModal=False | E118: Contratos de prestación de servicios | F118: Contratación directa | G118: Prestación de servicios profesionales y de apoyo a la gestión, o para la ejecución de trabajos artísticos que sólo puedan encomendarse a determinadas personas naturales | H118: PRESTAR LOS SERVICIOS DE APOYO A LA GESTIÓN LOCAL Y TERRITORIAL DE LOS TEMAS DE CONVIVENCIA CIUDADANA, DE CONFORMIDAD CON EL MARCO NORMATIVO APLICABLE PARA LA MATERIA. | I118: Inversión | J118: Un nuevo contrato social y ambiental para la Bogotá del Siglo XXI | K118: 43 | L118: =IF(ISERROR(VLOOKUP(K118,Proposito_programa!$C$2:$E$59,2,FALSE))," ",VLOOKUP(K118,Proposito_programa!$C$2:$E$59,2,FALSE)) -> Cultura ciudadana para la confianza, la convivencia y la participación desde la vida cotidiana | M118: =IF(ISERROR(VLOOKUP(K118,Proposito_programa!$C$2:$E$59,3,FALSE))," ",VLOOKUP(K118,Proposito_programa!$C$2:$E$59,3,FALSE)) -> Propósito 3: Inspirar confianza y legitimidad para vivir sin miedo y ser epicentro de cultura ciudadana, paz y reconciliación | N118: 1617 | O118: 7 | P118: 79403061 | Q118: FREDY BLADIMIR AGUDELO DELGADO | R118: Persona Natural | W118: 20700000 | Y118: 1 | Z118: 2300000 | AA118: 23000000 | AB118: 23000001 | AC118: 2023-02-07 | AD118: 2023-02-08 | AE118: 2023-12-07 | AF118: 300 | AG118: 1 | AH118: 30 | AM118: Terminado | AN118: 1.000000043
A119: 113 | B119: 2023 | C119: FDLE-CD-113-2023 | D119: https://community.secop.gov.co/Public/Tendering/OpportunityDetail/Index?noticeUID=CO1.NTC.3948185&isFromPublicArea=True&isModal=False | E119: Contratos de prestación de servicios | F119: Contratación directa | G119: Prestación de servicios profesionales y de apoyo a la gestión, o para la ejecución de trabajos artísticos que sólo puedan encomendarse a determinadas personas naturales | H119: APOYAR AL (LA) ALCALDE (SA) LOCAL EN LA PROMOCIÓN, ARTICULACIÓN, ACOMPAÑAMIENTO Y SEGUIMIENTO PARA LA ATENCIÓN Y PROTECCIÓN DE LOS ANIMALES DOMÉSTICOS Y SILVESTRES DE LA LOCALIDAD | I119: Inversión | J119: Un nuevo contrato social y ambiental para la Bogotá del Siglo XXI | K119: 34 | L119: =IF(ISERROR(VLOOKUP(K119,Proposito_programa!$C$2:$E$59,2,FALSE))," ",VLOOKUP(K119,Proposito_programa!$C$2:$E$59,2,FALSE)) -> Bogotá protectora de los animales | M119: =IF(ISERROR(VLOOKUP(K119,Proposito_programa!$C$2:$E$59,3,FALSE))," ",VLOOKUP(K119,Proposito_programa!$C$2:$E$59,3,FALSE)) -> Propósito 2 : Cambiar Nuestros Hábitos de Vida para Reverdecer a Bogotá y Adaptarnos y Mitigar la Crisis Climática | N119: 1613 | O119: 1 | P119: 3059398 | Q119: EDISSON ANDRES BELLO BARBOSA | R119: Persona Natural | W119: 77000000 | Y119: 1 | Z119: 35000000 | AA119: 112000000 | AB119: 112000001 | AC119: 2023-02-07 | AD119: 2023-02-08 | AE119: 2024-06-07 | AF119: 480 | AG119: 1 | AH119: 150 | AM119: En ejecución | AN119: 1.000000009
A120: 114 | B120: 2023 | C120: FDLE-CD-114-2023 | D120: https://community.secop.gov.co/Public/Tendering/OpportunityDetail/Index?noticeUID=CO1.NTC.3821337&isFromPublicArea=True&isModal=False | E120: Contratos de prestación de servicios | F120: Contratación directa | G120: Prestación de servicios profesionales y de apoyo a la gestión, o para la ejecución de trabajos artísticos que sólo puedan encomendarse a determinadas personas naturales | H120: LA PRESTACIÓN DE SERVICIOS PROFESIONALES DE APOYO EN LA PLANIFICACIÓN DE LOS PROCESOS DEPORTIVOS Y RECREO DEPORTIVOS Y EN EL ACOMPAÑAMIENTO DE LAS ESTRATEGIAS Y ACTIVIDADES QUE DE ALLÍ SE DERIVEN. | I120: Inversión | J120: Un nuevo contrato social y ambiental para la Bogotá del Siglo XXI | K120: 20 | L120: =IF(ISERROR(VLOOKUP(K120,Proposito_programa!$C$2:$E$59,2,FALSE))," ",VLOOKUP(K120,Proposito_programa!$C$2:$E$59,2,FALSE)) -> Bogotá, referente en cultura, deporte, recreación y actividad física, con parques para el desarrollo y la salud | M120: =IF(ISERROR(VLOOKUP(K120,Proposito_programa!$C$2:$E$59,3,FALSE))," ",VLOOKUP(K120,Proposito_programa!$C$2:$E$59,3,FALSE)) -> Propósito 1: Hacer un nuevo contrato social para incrementar la inclusión social, productiva y política | N120: 1594 | O120: 1 | P120: 1077972538 | Q120: JAVIER ANDRES JIMENEZ PALACIOS | R120: Persona Natural | W120: 41130000 | Y120: 1 | Z120: 18280000 | AA120: 59410000 | AB120: 59410001 | AC120: 2023-01-23 | AD120: 2023-01-25 | AE120: 2024-02-24 | AF120: 390 | AG120: 1 | AH120: 120 | AM120: En ejecución | AN120: 1.000000017
A121: 115 | B121: 2023 | C121: FDLE-CD-115-2023 | D121: https://community.secop.gov.co/Public/Tendering/OpportunityDetail/Index?noticeUID=CO1.NTC.3821248&isFromPublicArea=True&isModal=False | E121: Contratos de prestación de servicios | F121: Contratación directa | G121: Prestación de servicios profesionales y de apoyo a la gestión, o para la ejecución de trabajos artísticos que sólo puedan encomendarse a determinadas personas naturales | H121: LA PRESTACIÓN DE SERVICIOS PROFESIONALES AL ÁREA DE GESTIÓN DE DESARROLLO LOCAL, EN LAS ACTIVIDADES RELACIONADAS CON LA EJECUCIÓN, SEGUIMIENTO DE LOS PROYECTOS RELACIONADOS CON REACTIVACIÓN ECONÓMICA, EMPRENDIMIENTO, TURISMO Y PATRIMONIO DE LA LOCALIDAD DE ENGATIVÁ. | I121: Inversión | J121: Un nuevo contrato social y ambiental para la Bogotá del Siglo XXI | K121: 6 | L121: =IF(ISERROR(VLOOKUP(K121,Proposito_programa!$C$2:$E$59,2,FALSE))," ",VLOOKUP(K121,Proposito_programa!$C$2:$E$59,2,FALSE)) -> Sistema Distrital de Cuidado | M121: =IF(ISERROR(VLOOKUP(K121,Proposito_programa!$C$2:$E$59,3,FALSE))," ",VLOOKUP(K121,Proposito_programa!$C$2:$E$59,3,FALSE)) -> Propósito 1: Hacer un nuevo contrato social para incrementar la inclusión social, productiva y política | N121: 1598 | O121: 2 | P121: 1022430287 | Q121: PAULA ALEJANDRA ZAMUDIO VELASQUEZ | R121: Persona Natural | W121: 41130000 | Y121: 1 | Z121: 9140000 | AA121: 50270000 | AB121: 50270001 | AC121: 2023-01-23 | AD121: 2023-01-25 | AE121: 2023-12-24 | AF121: 330 | AG121: 1 | AH121: 60 | AM121: Terminado | AN121: 1.00000002
A122: 116 | B122: 2023 | C122: FDLE-CD-116-2023 | D122: https://community.secop.gov.co/Public/Tendering/OpportunityDetail/Index?noticeUID=CO1.NTC.3821328&isFromPublicArea=True&isModal=False | E122: Contratos de prestación de servicios | F122: Contratación directa | G122: Prestación de servicios profesionales y de apoyo a la gestión, o para la ejecución de trabajos artísticos que sólo puedan encomendarse a determinadas personas naturales | H122: LA PRESTACIÓN DE SERVICIOS PROFESIONALES AL ÁREA DE GESTIÓN DE DESARROLLO LOCAL, APOYANDO LAS ESTRATEGIAS Y ACTIVIDADES RELACIONADAS CON LA EJECUCIÓN Y SEGUIMIENTO DE PROCESO DE GESTIÓN AMBIENTAL EXTERNA, ENCAMINADAS A LA MITIGACIÓN DE LOS DIFERENTES IMPACTOS AMBIENTALES Y LA CONSERVACIÓN DE LOS RECURSOS NATURALES DE LA LOCALIDAD DE ENGATIVÁ. | I122: Inversión | J122: Un nuevo contrato social y ambiental para la Bogotá del Siglo XXI | K122: 24 | L122: =IF(ISERROR(VLOOKUP(K122,Proposito_programa!$C$2:$E$59,2,FALSE))," ",VLOOKUP(K122,Proposito_programa!$C$2:$E$59,2,FALSE)) -> Bogotá región emprendedora e innovadora | M122: =IF(ISERROR(VLOOKUP(K122,Proposito_programa!$C$2:$E$59,3,FALSE))," ",VLOOKUP(K122,Proposito_programa!$C$2:$E$59,3,FALSE)) -> Propósito 1: Hacer un nuevo contrato social para incrementar la inclusión social, productiva y política | N122: 1596 | O122: 0 | P122: 1004162840 | Q122: YOSELIN DANIELA GONZALEZ SERRANO | R122: Persona Natural | W122: 41130000 | Y122: 1 | Z122: 9140000 | AA122: 50270000 | AB122: 50270001 | AC122: 2023-01-23 | AD122: 2023-01-24 | AE122: 2024-02-08 | AF122: 422 | AG122: 1 | AH122: 60 | AM122: En ejecución | AN122: 1.00000002
A123: 117 | B123: 2023 | C123: FDLE-CD-117-2023 | D123: https://community.secop.gov.co/Public/Tendering/OpportunityDetail/Index?noticeUID=CO1.NTC.3895372&isFromPublicArea=True&isModal=False | E123: Contratos de prestación de servicios | F123: Contratación directa | G123: Prestación de servicios profesionales y de apoyo a la gestión, o para la ejecución de trabajos artísticos que sólo puedan encomendarse a determinadas personas naturales | H123: LA PRESTACIÓN DE SERVICIOS DE APOYO ASISTENCIAL AL ÁREA DE GESTIÓN DE DESARROLLO LOCAL, EN LAS ACTIVIDADES CULTURALES QUE SE REQUIERAN EN LA LOCALIDAD DE ENGATIVÁ. | I123: Inversión | J123: Un nuevo contrato social y ambiental para la Bogotá del Siglo XXI | K123: 21 | L123: =IF(ISERROR(VLOOKUP(K123,Proposito_programa!$C$2:$E$59,2,FALSE))," ",VLOOKUP(K123,Proposito_programa!$C$2:$E$59,2,FALSE)) -> Creación y vida cotidiana: Apropiación ciudadana del arte, la cultura y el patrimonio, para la democracia cultural | M123: =IF(ISERROR(VLOOKUP(K123,Proposito_programa!$C$2:$E$59,3,FALSE))," ",VLOOKUP(K123,Proposito_programa!$C$2:$E$59,3,FALSE)) -> Propósito 1: Hacer un nuevo contrato social para incrementar la inclusión social, productiva y política | N123: 1595 | O123: 8 | P123: 1014292617 | Q123: MARIA CAMILA CASTAÑO ORREGO | R123: Persona Natural | W123: 22500000 | Y123: 1 | Z123: 11250000 | AA123: 33750000 | AB123: 33750001 | AC123: 2023-02-06 | AD123: 2023-02-13 | AE123: 2024-03-27 | AF123: 405 | AG123: 1 | AH123: 135 | AM123: En ejecución | AN123: 1.00000003
A124: 118 | B124: 2023 | C124: FDLE-CD-118-2023 | D124: https://community.secop.gov.co/Public/Tendering/OpportunityDetail/Index?noticeUID=CO1.NTC.3956306&isFromPublicArea=True&isModal=False | E124: Contratos de prestación de servicios | F124: Contratación directa | G124: Prestación de servicios profesionales y de apoyo a la gestión, o para la ejecución de trabajos artísticos que sólo puedan encomendarse a determinadas personas naturales | H124: LA PRESTACIÓN DE SERVICIOS TÉCNICOS DE APOYO LOGÍSTICO AL ÁREA DE GESTIÓN DE DESARROLLO LOCAL, EN LOS EVENTOS Y DEMÁS ACTIVIDADES QUE SE REALICEN EN LA LOCALIDAD DE ENGATIVÁ | I124: Inversión | J124: Un nuevo contrato social y ambiental para la Bogotá del Siglo XXI | K124: 57 | L124: =IF(ISERROR(VLOOKUP(K124,Proposito_programa!$C$2:$E$59,2,FALSE))," ",VLOOKUP(K124,Proposito_programa!$C$2:$E$59,2,FALSE)) -> Gestión pública local | M124: =IF(ISERROR(VLOOKUP(K124,Proposito_programa!$C$2:$E$59,3,FALSE))," ",VLOOKUP(K124,Proposito_programa!$C$2:$E$59,3,FALSE)) -> Propósito 5: Construir Bogotá - Región con gobierno abierto, transparente y ciudadanía consciente | N124: 1623 | O124: 7 | P124: 1014204046 | Q124: ANDRES FELIPE ARAGON ARANGO | R124: Persona Natural | W124: 28782000 | Y124: 1 | Z124: 6396000 | AA124: 35178000 | AB124: 35178001 | AC124: 2023-02-08 | AD124: 2023-02-13 | AE124: 2024-01-12 | AF124: 330 | AG124: 1 | AH124: 60 | AM124: En ejecución | AN124: 1.000000028
A125: 119 | B125: 2023 | C125: FDLE-CD-119-2023 | D125: https://community.secop.gov.co/Public/Tendering/OpportunityDetail/Index?noticeUID=CO1.NTC.3959424&isFromPublicArea=True&isModal=False | E125: Contratos de prestación de servicios | F125: Contratación directa | G125: Prestación de servicios profesionales y de apoyo a la gestión, o para la ejecución de trabajos artísticos que sólo puedan encomendarse a determinadas personas naturales | H125: PRESTAR LOS SERVICIOS ASISTENCIALES DE APOYO, AL AREA DE GESTIÓN DE DESARROLLO LOCAL DE ENGATIVÁ, PARA EL DESARROLLO DE LAS ACTIVIDADES RELACIONADAS CON MUJER Y GENERO, EN CONCORDANCIA CON LAS METAS DE PLAN DE DESARROLLO. | I125: Inversión | J125: Un nuevo contrato social y ambiental para la Bogotá del Siglo XXI | K125: 40 | L125: =IF(ISERROR(VLOOKUP(K125,Proposito_programa!$C$2:$E$59,2,FALSE))," ",VLOOKUP(K125,Proposito_programa!$C$2:$E$59,2,FALSE)) -> Más mujeres viven una vida libre de violencias, se sienten seguras y acceden con confianza al sistema de justicia | M125: =IF(ISERROR(VLOOKUP(K125,Proposito_programa!$C$2:$E$59,3,FALSE))," ",VLOOKUP(K125,Proposito_programa!$C$2:$E$59,3,FALSE)) -> Propósito 3: Inspirar confianza y legitimidad para vivir sin miedo y ser epicentro de cultura ciudadana, paz y reconciliación | N125: 1616 | O125: 0 | P125: 1023977487 | Q125: JUAN CAMILO DUEÑAS QUEVEDO | R125: Persona Natural | W125: 22500000 | Y125: 1 | Z125: 2500000 | AA125: 25000000 | AB125: 25000001 | AC125: 2023-02-08 | AD125: 2023-02-15 | AE125: 2023-12-14 | AF125: 300 | AG125: 1 | AH125: 30 | AM125: Terminado | AN125: 1.00000004
A126: 120 | B126: 2023 | C126: FDLE-CD-120-2023 | D126: https://community.secop.gov.co/Public/Tendering/OpportunityDetail/Index?noticeUID=CO1.NTC.3964871&isFromPublicArea=True&isModal=False | E126: Contratos de prestación de servicios | F126: Contratación directa | G126: Prestación de servicios profesionales y de apoyo a la gestión, o para la ejecución de trabajos artísticos que sólo puedan encomendarse a determinadas personas naturales | H126: LA PRESTACIÓN DE SERVICIOS DE APOYO TÉCNICO, EN TODO LO RELACIONADO CON LA ATENCIÓN DE LAS INSTANCIAS DE COORDINACIÓN INTERINSTITUCIONALES Y LAS INSTANCIAS DE PARTICIPACIÓN LOCALES, ASÍ COMO LOS PROCESOS COMUNITARIOS EN LA LOCALIDAD. | I126: Inversión | J126: Un nuevo contrato social y ambiental para la Bogotá del Siglo XXI | K126: 6 | L126: =IF(ISERROR(VLOOKUP(K126,Proposito_programa!$C$2:$E$59,2,FALSE))," ",VLOOKUP(K126,Proposito_programa!$C$2:$E$59,2,FALSE)) -> Sistema Distrital de Cuidado | M126: =IF(ISERROR(VLOOKUP(K126,Proposito_programa!$C$2:$E$59,3,FALSE))," ",VLOOKUP(K126,Proposito_programa!$C$2:$E$59,3,FALSE)) -> Propósito 1: Hacer un nuevo contrato social para incrementar la inclusión social, productiva y política | N126: 1599 | O126: 6 | P126: 52210345 | Q126: ANGELICA MARIA RIVERA GOMEZ | R126: Persona Natural | W126: 28782000 | Y126: 1 | Z126: 12792000 | AA126: 41574000 | AB126: 41574001 | AC126: 2023-02-09 | AD126: 2023-02-14 | AE126: 2024-03-13 | AF126: 390 | AG126: 1 | AH126: 120 | AM126: En ejecución | AN126: 1.000000024
A127: 121 | B127: 2023 | C127: FDLE-CD-121-2023 | D127: https://community.secop.gov.co/Public/Tendering/OpportunityDetail/Index?noticeUID=CO1.NTC.3889600&isFromPublicArea=True&isModal=False | E127: Contratos de prestación de servicios | F127: Contratación directa | G127: Prestación de servicios profesionales y de apoyo a la gestión, o para la ejecución de trabajos artísticos que sólo puedan encomendarse a determinadas personas naturales | H127: LA PRESTACIÓN DE SERVICIOS DE APOYO AL DESPACHO, ÁREA DE GESTIÓN POLICIVA JURÍDICA Y AL ÁREA DE GESTIÓN DE DESARROLLO LOCAL EN LA CONDUCCIÓN DE LOS VEHÍCULOS DE PROPIEDAD Y/O TENENCIA DEL FONDO DE DESARROLLO LOCAL DE ENGATIVÁ. | I127: Inversión | J127: Un nuevo contrato social y ambiental para la Bogotá del Siglo XXI | K127: 57 | L127: =IF(ISERROR(VLOOKUP(K127,Proposito_programa!$C$2:$E$59,2,FALSE))," ",VLOOKUP(K127,Proposito_programa!$C$2:$E$59,2,FALSE)) -> Gestión pública local | M127: =IF(ISERROR(VLOOKUP(K127,Proposito_programa!$C$2:$E$59,3,FALSE))," ",VLOOKUP(K127,Proposito_programa!$C$2:$E$59,3,FALSE)) -> Propósito 5: Construir Bogotá - Región con gobierno abierto, transparente y ciudadanía consciente | N127: 1623 | O127: 0 | P127: 19300949 | Q127: JOSE JESUS JIMENEZ GIL | R127: Persona Natural | W127: 41800000 | Y127: 1 | Z127: 19000000 | AA127: 60800000 | AB127: 60800001 | AC127: 2023-02-01 | AD127: 2023-02-01 | AE127: 2024-05-31 | AF127: 480 | AG127: 1 | AH127: 150 | AM127: En ejecución | AN127: 1.000000016
A128: 122 | B128: 2023 | C128: FDLE-CD-122-2023 | D128: https://community.secop.gov.co/Public/Tendering/OpportunityDetail/Index?noticeUID=CO1.NTC.3890791&isFromPublicArea=True&isModal=False | E128: Contratos de prestación de servicios | F128: Contratación directa | G128: Prestación de servicios profesionales y de apoyo a la gestión, o para la ejecución de trabajos artísticos que sólo puedan encomendarse a determinadas personas naturales | H128: LA PRESTACIÓN DE SERVICIOS DE APOYO AL DESPACHO, ÁREA DE GESTIÓN POLICIVA JURÍDICA Y AL ÁREA DE GESTIÓN DE DESARROLLO LOCAL EN LA CONDUCCIÓN DE LOS VEHÍCULOS DE PROPIEDAD Y/O TENENCIA DEL FONDO DE DESARROLLO LOCAL DE ENGATIVÁ. | I128: Inversión | J128: Un nuevo contrato social y ambiental para la Bogotá del Siglo XXI | K128: 57 | L128: =IF(ISERROR(VLOOKUP(K128,Proposito_programa!$C$2:$E$59,2,FALSE))," ",VLOOKUP(K128,Proposito_programa!$C$2:$E$59,2,FALSE)) -> Gestión pública local | M128: =IF(ISERROR(VLOOKUP(K128,Proposito_programa!$C$2:$E$59,3,FALSE))," ",VLOOKUP(K128,Proposito_programa!$C$2:$E$59,3,FALSE)) -> Propósito 5: Construir Bogotá - Región con gobierno abierto, transparente y ciudadanía consciente | N128: 1623 | O128: 0 | P128: 83168199 | Q128: CIRO ALEXANDER PULIDO CASALLAS | R128: Persona Natural | W128: 41800000 | AA128: 41800000 | AB128: 41800000 | AC128: 2023-02-01 | AD128: 2023-02-01 | AE128: 2023-12-31 | AF128: 330 | AM128: Terminado | AN128: 1
A129: 123 | B129: 2023 | C129: FDLE-CD-123-2023 | D129: https://community.secop.gov.co/Public/Tendering/OpportunityDetail/Index?noticeUID=CO1.NTC.3980813&isFromPublicArea=True&isModal=False | E129: Contratos de prestación de servicios | F129: Contratación directa | G129: Prestación de servicios profesionales y de apoyo a la gestión, o para la ejecución de trabajos artísticos que sólo puedan encomendarse a determinadas personas naturales | H129: LA PRESTACIÓN DE SERVICIOS AUXILIARES DE APOYO AL ÁREA DE GESTIÓN DE DESARROLLO LOCAL, EN LAS LABORES ADMINISTRATIVAS, OPERATIVAS Y LOGISTICAS DE ALMACÉN QUE ALLÍ SE REQUIERAN | I129: Inversión | J129: Un nuevo contrato social y ambiental para la Bogotá del Siglo XXI | K129: 57 | L129: =IF(ISERROR(VLOOKUP(K129,Proposito_programa!$C$2:$E$59,2,FALSE))," ",VLOOKUP(K129,Proposito_programa!$C$2:$E$59,2,FALSE)) -> Gestión pública local | M129: =IF(ISERROR(VLOOKUP(K129,Proposito_programa!$C$2:$E$59,3,FALSE))," ",VLOOKUP(K129,Proposito_programa!$C$2:$E$59,3,FALSE)) -> Propósito 5: Construir Bogotá - Región con gobierno abierto, transparente y ciudadanía consciente | N129: 1623 | O129: 3 | P129: 80254495 | Q129: RICHARD FERNANDO CORONADO CORONADO | R129: Persona Natural | W129: 22500000 | Y129: 1 | Z129: 11250000 | AA129: 33750000 | AB129: 33750001 | AC129: 2023-02-13 | AD129: 2023-02-14 | AE129: 2024-03-28 | AF129: 405 | AG129: 1 | AH129: 135 | AM129: En ejecución | AN129: 1.00000003
A130: 124 | B130: 2023 | C130: FDLE-CD-124-2023 | D130: https://community.secop.gov.co/Public/Tendering/OpportunityDetail/Index?noticeUID=CO1.NTC.3979072&isFromPublicArea=True&isModal=False | E130: Contratos de prestación de servicios | F130: Contratación directa | G130: Prestación de servicios profesionales y de apoyo a la gestión, o para la ejecución de trabajos artísticos que sólo puedan encomendarse a determinadas personas naturales | H130: LA PRESTACIÓN DE SERVICIOS TÉCNICOS DE APOYO LOGÍSTICO AL ÁREA DE GESTIÓN DE DESARROLLO LOCAL, EN LOS EVENTOS Y DEMÁS ACTIVIDADES QUE SE REALICEN EN LA LOCALIDAD DE ENGATIVÁ | I130: Inversión | J130: Un nuevo contrato social y ambiental para la Bogotá del Siglo XXI | K130: 57 | L130: =IF(ISERROR(VLOOKUP(K130,Proposito_programa!$C$2:$E$59,2,FALSE))," ",VLOOKUP(K130,Proposito_programa!$C$2:$E$59,2,FALSE)) -> Gestión pública local | M130: =IF(ISERROR(VLOOKUP(K130,Proposito_programa!$C$2:$E$59,3,FALSE))," ",VLOOKUP(K130,Proposito_programa!$C$2:$E$59,3,FALSE)) -> Propósito 5: Construir Bogotá - Región con gobierno abierto, transparente y ciudadanía consciente | N130: 1623 | O130: 0 | P130: 1014230423 | Q130: JEISSON ANDRES RODRIGUEZ SANTAMARIA | R130: Persona Natural | W130: 28782000 | Y130: 1 | Z130: 6396000 | AA130: 35178000 | AB130: 35178001 | AC130: 2023-02-10 | AD130: 2023-02-14 | AE130: 2024-01-13 | AF130: 330 | AG130: 1 | AH130: 60 | AM130: En ejecución | AN130: 1.000000028
A131: 125 | B131: 2023 | C131: FDLE-CD-125-2023 | D131: https://community.secop.gov.co/Public/Tendering/OpportunityDetail/Index?noticeUID=CO1.NTC.3998974&isFromPublicArea=True&isModal=False | E131: Contratos de prestación de servicios | F131: Contratación directa | G131: Prestación de servicios profesionales y de apoyo a la gestión, o para la ejecución de trabajos artísticos que sólo puedan encomendarse a determinadas personas naturales | H131: LA PRESTACIÓN DE SERVICIOS TÉCNICOS DE APOYO LOGÍSTICO AL ÁREA DE GESTIÓN DE DESARROLLO LOCAL, EN LOS EVENTOS Y DEMÁS ACTIVIDADES QUE SE REALICEN EN LA LOCALIDAD DE ENGATIVÁ | I131: Inversión | J131: Un nuevo contrato social y ambiental para la Bogotá del Siglo XXI | K131: 57 | L131: =IF(ISERROR(VLOOKUP(K131,Proposito_programa!$C$2:$E$59,2,FALSE))," ",VLOOKUP(K131,Proposito_programa!$C$2:$E$59,2,FALSE)) -> Gestión pública local | M131: =IF(ISERROR(VLOOKUP(K131,Proposito_programa!$C$2:$E$59,3,FALSE))," ",VLOOKUP(K131,Proposito_programa!$C$2:$E$59,3,FALSE)) -> Propósito 5: Construir Bogotá - Región con gobierno abierto, transparente y ciudadanía consciente | N131: 1623 | O131: 3 | P131: 79976474 | Q131: EDGAR YAMITH CEPEDA MENDOZA | R131: Persona Natural | W131: 28782000 | Y131: 1 | Z131: 6396000 | AA131: 35178000 | AB131: 35178001 | AC131: 2023-02-14 | AD131: 2023-02-21 | AE131: 2024-01-20 | AF131: 330 | AG131: 1 | AH131: 60 | AM131: En ejecución | AN131: 1.000000028
A132: 126 | B132: 2023 | C132: FDLE-CD-126-2023 | D132: https://community.secop.gov.co/Public/Tendering/OpportunityDetail/Index?noticeUID=CO1.NTC.3920926&isFromPublicArea=True&isModal=False | E132: Contratos de prestación de servicios | F132: Contratación directa | G132: Prestación de servicios profesionales y de apoyo a la gestión, o para la ejecución de trabajos artísticos que sólo puedan encomendarse a determinadas personas naturales | H132: LA PRESTACIÓN DE SERVICIOS PROFESIONALES, AL ÁREA DE GESTIÓN DE DESARROLLO LOCAL, EN LAS ACTIVIDADES DE SEGUIMIENTO, REVISIÓN DE TRÁMITES ADMINISTRATIVOS, LOGÍSTICOS Y DEMÁS ACTIVIDADES QUE SE REQUIERAN PARA EL CORRECTO FUNCIONAMIENTO DE LA ALCALDÍA LOCAL DE ENGATIVÁ. | I132: Inversión | J132: Un nuevo contrato social y ambiental para la Bogotá del Siglo XXI | K132: 57 | L132: =IF(ISERROR(VLOOKUP(K132,Proposito_programa!$C$2:$E$59,2,FALSE))," ",VLOOKUP(K132,Proposito_programa!$C$2:$E$59,2,FALSE)) -> Gestión pública local | M132: =IF(ISERROR(VLOOKUP(K132,Proposito_programa!$C$2:$E$59,3,FALSE))," ",VLOOKUP(K132,Proposito_programa!$C$2:$E$59,3,FALSE)) -> Propósito 5: Construir Bogotá - Región con gobierno abierto, transparente y ciudadanía consciente | N132: 1623 | O132: 8 | P132: 1052384282 | Q132: ANDREA CATALINA ALVAREZ RINCON | R132: Persona Natural | W132: 60500000 | Y132: 1 | Z132: 27500000 | AA132: 88000000 | AB132: 88000001 | AC132: 2023-02-03 | AD132: 2023-02-03 | AE132: 2024-06-02 | AF132: 480 | AG132: 1 | AH132: 150 | AM132: En ejecución | AN132: 1.000000011
A133: 127 | B133: 2023 | C133: FDLE-CD-127-2023 | D133: https://community.secop.gov.co/Public/Tendering/OpportunityDetail/Index?noticeUID=CO1.NTC.3966189&isFromPublicArea=True&isModal=False | E133: Contratos de prestación de servicios | F133: Contratación directa | G133: Prestación de servicios profesionales y de apoyo a la gestión, o para la ejecución de trabajos artísticos que sólo puedan encomendarse a determinadas personas naturales | H133: LA PRESTACIÓN DE SERVICIOS PROFESIONALES AL ÁREA DE GESTIÓN DE DESARROLLO LOCAL, APOYANDO LAS ESTRATEGIAS DE PROMOCIÓN DE LA PARTICIPACIÓN DE LAS MUJERES Y DE LA EQUIDAD DE GÉNERO Y TRANSVERSALIZACIÓN DE LA POLÍTICA PÚBLICA DE MUJERES Y EQUIDAD DE GÉNERO - PPMyEG, EN LA LOCALIDAD DE ENGATIVÁ. | I133: Inversión | J133: Un nuevo contrato social y ambiental para la Bogotá del Siglo XXI | K133: 40 | L133: =IF(ISERROR(VLOOKUP(K133,Proposito_programa!$C$2:$E$59,2,FALSE))," ",VLOOKUP(K133,Proposito_programa!$C$2:$E$59,2,FALSE)) -> Más mujeres viven una vida libre de violencias, se sienten seguras y acceden con confianza al sistema de justicia | M133: =IF(ISERROR(VLOOKUP(K133,Proposito_programa!$C$2:$E$59,3,FALSE))," ",VLOOKUP(K133,Proposito_programa!$C$2:$E$59,3,FALSE)) -> Propósito 3: Inspirar confianza y legitimidad para vivir sin miedo y ser epicentro de cultura ciudadana, paz y reconciliación | N133: 1616 | O133: 7 | P133: 1026272391 | Q133: DIANA CAROLINA MESA MARTÍNEZ | R133: Persona Natural | W133: 41130000 | Y133: 1 | Z133: 4570000 | AA133: 45700000 | AB133: 45700001 | AC133: 2023-02-09 | AD133: 2023-02-13 | AE133: 2023-12-12 | AF133: 300 | AG133: 1 | AH133: 30 | AM133: Terminado | AN133: 1.000000022
A134: 128 | B134: 2023 | C134: FDLE-CD-128-2023 | D134: https://community.secop.gov.co/Public/Tendering/OpportunityDetail/Index?noticeUID=CO1.NTC.4039172&isFromPublicArea=True&isModal=False | E134: Contratos de prestación de servicios | F134: Contratación directa | G134: Prestación de servicios profesionales y de apoyo a la gestión, o para la ejecución de trabajos artísticos que sólo puedan encomendarse a determinadas personas naturales | H134: LA PRESTACIÓN DE SERVICIOS PROFESIONALES DE APOYO EN LA PLANIFICACIÓN DE LOS PROCESOS DEPORTIVOS Y RECREO DEPORTIVOS Y EN EL ACOMPAÑAMIENTO DE LAS ESTRATEGIAS Y ACTIVIDADES QUE DE ALLÍ SE DERIVEN. | I134: Inversión | J134: Un nuevo contrato social y ambiental para la Bogotá del Siglo XXI | K134: 20 | L134: =IF(ISERROR(VLOOKUP(K134,Proposito_programa!$C$2:$E$59,2,FALSE))," ",VLOOKUP(K134,Proposito_programa!$C$2:$E$59,2,FALSE)) -> Bogotá, referente en cultura, deporte, recreación y actividad física, con parques para el desarrollo y la salud | M134: =IF(ISERROR(VLOOKUP(K134,Proposito_programa!$C$2:$E$59,3,FALSE))," ",VLOOKUP(K134,Proposito_programa!$C$2:$E$59,3,FALSE)) -> Propósito 1: Hacer un nuevo contrato social para incrementar la inclusión social, productiva y política | N134: 1594 | O134: 6 | P134: 52790099 | Q134: YOHANNA MARCELA GARZON VERBEL | R134: Persona Natural | W134: 41130000 | Y134: 1 | Z134: 4570000 | AA134: 45700000 | AB134: 45700001 | AC134: 2023-02-20 | AD134: 2023-02-22 | AE134: 2023-12-21 | AF134: 300 | AG134: 1 | AH134: 30 | AM134: Terminado | AN134: 1.000000022
A135: 129 | B135: 2023 | C135: FDLE-CD-129-2023 | D135: https://community.secop.gov.co/Public/Tendering/OpportunityDetail/Index?noticeUID=CO1.NTC.3956298&isFromPublicArea=True&isModal=False | E135: Contratos de prestación de servicios | F135: Contratación directa | G135: Prestación de servicios profesionales y de apoyo a la gestión, o para la ejecución de trabajos artísticos que sólo puedan encomendarse a determinadas personas naturales | H135: PRESTAR LOS SERVICIOS PROFESIONALES PARA APOYAR A LA ALCALDESA LOCAL DE ENGATIVÁ, EN EL FORTALECIMIENTO E INCLUSIÓN DE LAS COMUNIDADES INDIGENAS EN EL MARCO DE LA POLITICA PUBLICA PARA LOS PUEBLOS INDIGENAS | I135: Inversión | J135: Un nuevo contrato social y ambiental para la Bogotá del Siglo XXI | K135: 6 | L135: =IF(ISERROR(VLOOKUP(K135,Proposito_programa!$C$2:$E$59,2,FALSE))," ",VLOOKUP(K135,Proposito_programa!$C$2:$E$59,2,FALSE)) -> Sistema Distrital de Cuidado | M135: =IF(ISERROR(VLOOKUP(K135,Proposito_programa!$C$2:$E$59,3,FALSE))," ",VLOOKUP(K135,Proposito_programa!$C$2:$E$59,3,FALSE)) -> Propósito 1: Hacer un nuevo contrato social para incrementar la inclusión social, productiva y política | N135: 1599 | O135: 1 | P135: 1016059398 | Q135: SERGIO DANIEL TUNTAQUIMBA MESA | R135: Persona Natural | W135: 41130000 | Y135: 1 | Z135: 4570000 | AA135: 45700000 | AB135: 45700001 | AC135: 2023-02-08 | AD135: 2023-02-14 | AE135: 2023-12-13 | AF135: 300 | AG135: 1 | AH135: 30 | AM135: Terminado | AN135: 1.000000022
A136: 130 | B136: 2023 | C136: FDLE-CD-130-2023 | D136: https://community.secop.gov.co/Public/Tendering/OpportunityDetail/Index?noticeUID=CO1.NTC.3969836&isFromPublicArea=True&isModal=False | E136: Contratos de prestación de servicios | F136: Contratación directa | G136: Prestación de servicios profesionales y de apoyo a la gestión, o para la ejecución de trabajos artísticos que sólo puedan encomendarse a determinadas personas naturales | H136: PRESTAR SUS SERVICIOS TÉCNICOS EN EL FORTALECIMIENTO E INCLUSIÓN DE LAS COMUNIDADES NEGRAS, AFROCOLOMBIANAS Y PALENQUERAS EN EL MARCO DE LA POLÍTICA PÚBLICA DISTRITAL AFRODESCENDIENTES Y LOS ESPACIOS DE PARTICIPACIÓN | I136: Inversión | J136: Un nuevo contrato social y ambiental para la Bogotá del Siglo XXI | K136: 6 | L136: =IF(ISERROR(VLOOKUP(K136,Proposito_programa!$C$2:$E$59,2,FALSE))," ",VLOOKUP(K136,Proposito_programa!$C$2:$E$59,2,FALSE)) -> Sistema Distrital de Cuidado | M136: =IF(ISERROR(VLOOKUP(K136,Proposito_programa!$C$2:$E$59,3,FALSE))," ",VLOOKUP(K136,Proposito_programa!$C$2:$E$59,3,FALSE)) -> Propósito 1: Hacer un nuevo contrato social para incrementar la inclusión social, productiva y política | N136: 1599 | O136: 5 | P136: 1076382909 | Q136: CLARIBETH VALOIS MOSQUERA | R136: Persona Natural | W136: 28782000 | Y136: 1 | Z136: 3198000 | AA136: 31980000 | AB136: 31980001 | AC136: 2023-02-09 | AD136: 2023-02-14 | AE136: 2023-12-13 | AF136: 300 | AG136: 1 | AH136: 30 | AM136: Terminado | AN136: 1.000000031
A137: 131 | B137: 2023 | C137: FDLE-CD-131-2023 | D137: https://community.secop.gov.co/Public/Tendering/OpportunityDetail/Index?noticeUID=CO1.NTC.3962524&isFromPublicArea=True&isModal=False | E137: Contratos de prestación de servicios | F137: Contratación directa | G137: Prestación de servicios profesionales y de apoyo a la gestión, o para la ejecución de trabajos artísticos que sólo puedan encomendarse a determinadas personas naturales | H137: PRESTAR SUS SERVICIOS TÉCNICOS EN EL FORTALECIMIENTO E INCLUSIÓN DE LAS COMUNIDADES NEGRAS, AFROCOLOMBIANAS Y PALENQUERAS EN EL MARCO DE LA POLÍTICA PÚBLICA DISTRITAL AFRODESCENDIENTES Y LOS ESPACIOS DE PARTICIPACIÓN | I137: Inversión | J137: Un nuevo contrato social y ambiental para la Bogotá del Siglo XXI | K137: 6 | L137: =IF(ISERROR(VLOOKUP(K137,Proposito_programa!$C$2:$E$59,2,FALSE))," ",VLOOKUP(K137,Proposito_programa!$C$2:$E$59,2,FALSE)) -> Sistema Distrital de Cuidado | M137: =IF(ISERROR(VLOOKUP(K137,Proposito_programa!$C$2:$E$59,3,FALSE))," ",VLOOKUP(K137,Proposito_programa!$C$2:$E$59,3,FALSE)) -> Propósito 1: Hacer un nuevo contrato social para incrementar la inclusión social, productiva y política | N137: 1599 | O137: 1 | P137: 59679175 | Q137: JENNY OLINDA ESCOBAR ANGULO | R137: Persona Natural | W137: 28782000 | Y137: 1 | Z137: 3198000 | AA137: 31980000 | AB137: 31980001 | AC137: 2023-02-08 | AD137: 2023-02-15 | AE137: 2023-12-14 | AF137: 300 | AG137: 1 | AH137: 30 | AM137: Terminado | AN137: 1.000000031
A138: 132 | B138: 2023 | C138: FDLE-CD-132-2023 | D138: https://community.secop.gov.co/Public/Tendering/OpportunityDetail/Index?noticeUID=CO1.NTC.3959717&isFromPublicArea=True&isModal=False | E138: Contratos de prestación de servicios | F138: Contratación directa | G138: Prestación de servicios profesionales y de apoyo a la gestión, o para la ejecución de trabajos artísticos que sólo puedan encomendarse a determinadas personas naturales | H138: LA PRESTACIÓN DE SERVICIOS PROFESIONALES DE APOYO AL ÁREA DE GESTIÓN DE DESARROLLO LOCAL, EN LA PLANIFICACIÓN DE LOS PROCESOS RELACIONADOS CON EL FORTALECIMIENTO E INCLUSIÓN DE LAS COMUNIDADES NEGRAS, AFROCOLOMBIANAS Y PALENQUERAS, RAIZALES Y RROM QUE HABITAN EN LA LOCALIDAD DE ENGATIVÁ EN EL MARCO DE LA POLÍTICA PÚBLICA DISTRITAL APLICABLE Y LOS ESPACIOS DE PARTICIPACIÓN. | I138: Inversión | J138: Un nuevo contrato social y ambiental para la Bogotá del Siglo XXI | K138: 6 | L138: =IF(ISERROR(VLOOKUP(K138,Proposito_programa!$C$2:$E$59,2,FALSE))," ",VLOOKUP(K138,Proposito_programa!$C$2:$E$59,2,FALSE)) -> Sistema Distrital de Cuidado | M138: =IF(ISERROR(VLOOKUP(K138,Proposito_programa!$C$2:$E$59,3,FALSE))," ",VLOOKUP(K138,Proposito_programa!$C$2:$E$59,3,FALSE)) -> Propósito 1: Hacer un nuevo contrato social para incrementar la inclusión social, productiva y política | N138: 1599 | O138: 8 | P138: 80062202 | Q138: CLAUDIO ALEJANDRO RODRIGUEZ CASTAÑEDA | R138: Persona Natural | W138: 47700000 | Y138: 1 | Z138: 5300000 | AA138: 53000000 | AB138: 53000001 | AC138: 2023-02-08 | AD138: 2023-02-14 | AE138: 2023-12-13 | AF138: 300 | AG138: 1 | AH138: 30 | AM138: Terminado | AN138: 1.000000019
A139: 133 | B139: 2023 | C139: FDLE-CD-133-2023 | D139: https://community.secop.gov.co/Public/Tendering/OpportunityDetail/Index?noticeUID=CO1.NTC.3960387&isFromPublicArea=True&isModal=False | E139: Contratos de prestación de servicios | F139: Contratación directa | G139: Prestación de servicios profesionales y de apoyo a la gestión, o para la ejecución de trabajos artísticos que sólo puedan encomendarse a determinadas personas naturales | H139: LA PRESTACIÓN DE SERVICIOS DE APOYO TÉCNICO, EN TODO LO RELACIONADO CON LA ATENCIÓN DE LAS INSTANCIAS DE COORDINACIÓN INTERINSTITUCIONALES Y LAS INSTANCIAS DE PARTICIPACIÓN LOCALES, ASÍ COMO LOS PROCESOS COMUNITARIOS EN LA LOCALIDAD. | I139: Inversión | J139: Un nuevo contrato social y ambiental para la Bogotá del Siglo XXI | K139: 6 | L139: =IF(ISERROR(VLOOKUP(K139,Proposito_programa!$C$2:$E$59,2,FALSE))," ",VLOOKUP(K139,Proposito_programa!$C$2:$E$59,2,FALSE)) -> Sistema Distrital de Cuidado | M139: =IF(ISERROR(VLOOKUP(K139,Proposito_programa!$C$2:$E$59,3,FALSE))," ",VLOOKUP(K139,Proposito_programa!$C$2:$E$59,3,FALSE)) -> Propósito 1: Hacer un nuevo contrato social para incrementar la inclusión social, productiva y política | N139: 1599 | O139: 0 | P139: 1014205772 | Q139: DAYANA ASTRID RINCON VELA | R139: Persona Natural | W139: 28782000 | Y139: 1 | Z139: 3198000 | AA139: 31980000 | AB139: 31980001 | AC139: 2023-02-08 | AD139: 2023-02-14 | AE139: 2023-12-13 | AF139: 300 | AG139: 1 | AH139: 30 | AM139: Terminado | AN139: 1.000000031
A140: 134 | B140: 2023 | C140: FDLE-CD-134-2023 | D140: https://community.secop.gov.co/Public/Tendering/OpportunityDetail/Index?noticeUID=CO1.NTC.3966426&isFromPublicArea=True&isModal=False | E140: Contratos de prestación de servicios | F140: Contratación directa | G140: Prestación de servicios profesionales y de apoyo a la gestión, o para la ejecución de trabajos artísticos que sólo puedan encomendarse a determinadas personas naturales | H140: LA PRESTACIÓN DE SERVICIOS DE APOYO TÉCNICO, EN TODO LO RELACIONADO CON LA ATENCIÓN DE LAS INSTANCIAS DE COORDINACIÓN INTERINSTITUCIONALES Y LAS INSTANCIAS DE PARTICIPACIÓN LOCALES, ASÍ COMO LOS PROCESOS COMUNITARIOS EN LA LOCALIDAD. | I140: Inversión | J140: Un nuevo contrato social y ambiental para la Bogotá del Siglo XXI | K140: 6 | L140: =IF(ISERROR(VLOOKUP(K140,Proposito_programa!$C$2:$E$59,2,FALSE))," ",VLOOKUP(K140,Proposito_programa!$C$2:$E$59,2,FALSE)) -> Sistema Distrital de Cuidado | M140: =IF(ISERROR(VLOOKUP(K140,Proposito_programa!$C$2:$E$59,3,FALSE))," ",VLOOKUP(K140,Proposito_programa!$C$2:$E$59,3,FALSE)) -> Propósito 1: Hacer un nuevo contrato social para incrementar la inclusión social, productiva y política | N140: 1599 | O140: 2 | P140: 1015455831 | Q140: WENDY GIBETH VERANO TORRES | R140: Persona Natural | W140: 28782000 | Y140: 1 | Z140: 3198000 | AA140: 31980000 | AB140: 31980001 | AC140: 2023-02-09 | AD140: 2023-02-14 | AE140: 2023-12-13 | AF140: 300 | AG140: 1 | AH140: 30 | AM140: Terminado | AN140: 1.000000031
A141: 135 | B141: 2023 | C141: FDLE-CD-135 -2023 | D141: https://community.secop.gov.co/Public/Tendering/OpportunityDetail/Index?noticeUID=CO1.NTC.3956469&isFromPublicArea=True&isModal=False | E141: Contratos de prestación de servicios | F141: Contratación directa | G141: Prestación de servicios profesionales y de apoyo a la gestión, o para la ejecución de trabajos artísticos que sólo puedan encomendarse a determinadas personas naturales | H141: LA PRESTACIÓN DE SERVICIOS PROFESIONALES AL ÁREA DE GESTIÓN DE DESARROLLO LOCAL, EN LAS LABORES RELACIONADAS CON EL SEGUIMIENTO Y CONTROL DEL PARQUE AUTOMOTOR PESADO Y LIVIANO DE LA ALCALDÍA DE ENGATIVÁ. | I141: Inversión | J141: Un nuevo contrato social y ambiental para la Bogotá del Siglo XXI | K141: 57 | L141: =IF(ISERROR(VLOOKUP(K141,Proposito_programa!$C$2:$E$59,2,FALSE))," ",VLOOKUP(K141,Proposito_programa!$C$2:$E$59,2,FALSE)) -> Gestión pública local | M141: =IF(ISERROR(VLOOKUP(K141,Proposito_programa!$C$2:$E$59,3,FALSE))," ",VLOOKUP(K141,Proposito_programa!$C$2:$E$59,3,FALSE)) -> Propósito 5: Construir Bogotá - Región con gobierno abierto, transparente y ciudadanía consciente | N141: 1623 | O141: 9 | P141: 1014283560 | Q141: JONATHAN STEEVEN ACOSTA ACEVEDO | R141: Persona Natural | W141: 41130000 | Y141: 1 | Z141: 13710000 | AA141: 54840000 | AB141: 54840001 | AC141: 2023-02-08 | AD141: 2023-02-08 | AE141: 2024-02-07 | AF141: 360 | AG141: 1 | AH141: 90 | AM141: En ejecución | AN141: 1.000000018
A142: 136 | B142: 2023 | C142: FDLE-CD-136-2023 | D142: https://community.secop.gov.co/Public/Tendering/OpportunityDetail/Index?noticeUID=CO1.NTC.3966706&isFromPublicArea=True&isModal=False | E142: Contratos de prestación de servicios | F142: Contratación directa | G142: Prestación de servicios profesionales y de apoyo a la gestión, o para la ejecución de trabajos artísticos que sólo puedan encomendarse a determinadas personas naturales | H142: PRESTAR SERVICIOS PROFESIONALES PARA APOYAR A COORDINAR LA ARTICULACIÓN, ASISTENCIA Y ACOMPAÑAMIENTO DE LOS PROCESOS DE PLANEACIÓN LOCAL, PARA LA PROMOCIÓN DE LA PARTICIPACIÓN DE LAS MUJERES Y DE LA EQUIDAD DE GÉNERO, PARA MATERIALIZAR EN LA LOCALIDAD LAS ESTRATEGIAS DE TERRITORIALIZACIÓN Y TRANSVERSALIZACIÓN DE LA POLÍTICA PUBLICA DE MUJERES Y EQUIDAD DE GÉNERO, PPMYEG. | I142: Inversión | J142: Un nuevo contrato social y ambiental para la Bogotá del Siglo XXI | K142: 40 | L142: =IF(ISERROR(VLOOKUP(K142,Proposito_programa!$C$2:$E$59,2,FALSE))," ",VLOOKUP(K142,Proposito_programa!$C$2:$E$59,2,FALSE)) -> Más mujeres viven una vida libre de violencias, se sienten seguras y acceden con confianza al sistema de justicia | M142: =IF(ISERROR(VLOOKUP(K142,Proposito_programa!$C$2:$E$59,3,FALSE))," ",VLOOKUP(K142,Proposito_programa!$C$2:$E$59,3,FALSE)) -> Propósito 3: Inspirar confianza y legitimidad para vivir sin miedo y ser epicentro de cultura ciudadana, paz y reconciliación | N142: 1616 | O142: 6 | P142: 1018461266 | Q142: MARIA ANGELICA ARDILA VIZCAINO | R142: Persona Natural | W142: 47700000 | Y142: 1 | Z142: 23850000 | AA142: =+W142+X142+Z142 -> 71550000 | AB142: =+X142+Y142+AA142 -> 71550001 | AC142: 2023-02-09 | AD142: 2023-02-14 | AE142: 2024-03-28 | AF142: 405 | AG142: 1 | AH142: 135 | AM142: En ejecución | AN142: =IF(ISERROR(AB142/AA142),"-",(AB142/AA142)) -> 1.000000014
A143: 137 | B143: 2023 | C143: FDLE-CD-137-2023 | D143: https://community.secop.gov.co/Public/Tendering/OpportunityDetail/Index?noticeUID=CO1.NTC.3917929&isFromPublicArea=True&isModal=False | E143: Contratos de prestación de servicios | F143: Contratación directa | G143: Prestación de servicios profesionales y de apoyo a la gestión, o para la ejecución de trabajos artísticos que sólo puedan encomendarse a determinadas personas naturales | H143: PRESTAR LOS SERVICIOS PROFESIONALES EL ÁREA DE GESTIÓN DEL DESARROLLO LOCAL EN TEMAS ADMINISTRATIVOS, APOYANDO EL SEGUIMIENTO DE LOS PROCESOS DE PARTICIPACIÓN SOCIAL DE LA LOCALIDAD DE ENGATIVÁ | I143: Inversión | J143: Un nuevo contrato social y ambiental para la Bogotá del Siglo XXI | K143: 55 | L143: =IF(ISERROR(VLOOKUP(K143,Proposito_programa!$C$2:$E$59,2,FALSE))," ",VLOOKUP(K143,Proposito_programa!$C$2:$E$59,2,FALSE)) -> Fortalecimiento de cultura ciudadana y su institucionalidad | M143: =IF(ISERROR(VLOOKUP(K143,Proposito_programa!$C$2:$E$59,3,FALSE))," ",VLOOKUP(K143,Proposito_programa!$C$2:$E$59,3,FALSE)) -> Propósito 5: Construir Bogotá - Región con gobierno abierto, transparente y ciudadanía consciente | N143: 1622 | O143: 2 | P143: 80100999 | Q143: JUAN CARLOS TORRES RODRIGUEZ | R143: Persona Natural | W143: 63000000 | Y143: 1 | Z143: 28000000 | AA143: 91000000 | AB143: 91000001 | AC143: 2023-02-03 | AD143: 2023-02-07 | AE143: 2024-03-06 | AF143: 390 | AG143: 1 | AH143: 120 | AM143: En ejecución | AN143: 1.000000011
A144: 138 | B144: 2023 | C144: FDLE-CD-138-2023 | D144: https://community.secop.gov.co/Public/Tendering/OpportunityDetail/Index?noticeUID=CO1.NTC.3975888&isFromPublicArea=True&isModal=False | E144: Contratos de prestación de servicios | F144: Contratación directa | G144: Prestación de servicios profesionales y de apoyo a la gestión, o para la ejecución de trabajos artísticos que sólo puedan encomendarse a determinadas personas naturales | H144: PRESTAR LOS SERVICIOS PROFESIONALES EL ÁREA DE GESTIÓN DEL DESARROLLO LOCAL EN TEMAS ADMINISTRATIVOS, APOYANDO EL SEGUIMIENTO DE LOS PROCESOS DE PARTICIPACIÓN SOCIAL DE LA LOCALIDAD DE ENGATIVÁ | I144: Inversión | J144: Un nuevo contrato social y ambiental para la Bogotá del Siglo XXI | K144: 55 | L144: =IF(ISERROR(VLOOKUP(K144,Proposito_programa!$C$2:$E$59,2,FALSE))," ",VLOOKUP(K144,Proposito_programa!$C$2:$E$59,2,FALSE)) -> Fortalecimiento de cultura ciudadana y su institucionalidad | M144: =IF(ISERROR(VLOOKUP(K144,Proposito_programa!$C$2:$E$59,3,FALSE))," ",VLOOKUP(K144,Proposito_programa!$C$2:$E$59,3,FALSE)) -> Propósito 5: Construir Bogotá - Región con gobierno abierto, transparente y ciudadanía consciente | N144: 1622 | O144: 8 | P144: 52654686 | Q144: SANDRA PATRICIA SUAREZ MOYA | R144: Persona Natural | W144: 63000000 | AA144: 63000000 | AB144: 63000000 | AC144: 2023-02-10 | AD144: 2023-02-14 | AE144: 2023-11-13 | AF144: 270 | AI144: 52654686 | AJ144: SANDRA PATRICIA SUAREZ MOYA | AK144: 2023-06-30 | AL144: 30800000 | AM144: Terminado | AN144: 1
A145: 139 | B145: 2023 | C145: FDLE-CD-139-2023 | D145: https://community.secop.gov.co/Public/Tendering/OpportunityDetail/Index?noticeUID=CO1.NTC.4021337&isFromPublicArea=True&isModal=False | E145: Contratos de prestación de servicios | F145: Contratación directa | G145: Prestación de servicios profesionales y de apoyo a la gestión, o para la ejecución de trabajos artísticos que sólo puedan encomendarse a determinadas personas naturales | H145: PRESTACIÓN DE SERVICIOS DE APOYO ASISTENCIAL AL ÁREA DE GESTIÓN POLICIVA JURÍDICA Y AL ÁREA DE GESTIÓN DE DESARROLLO LOCAL EN LA CONDUCCIÓN DE LOS VEHÍCULOS DE PROPIEDAD Y/O TENENCIA DEL FONDO DE DESARROLLO LOCAL DE ENGATIVÁ. | I145: Inversión | J145: Un nuevo contrato social y ambiental para la Bogotá del Siglo XXI | K145: 57 | L145: =IF(ISERROR(VLOOKUP(K145,Proposito_programa!$C$2:$E$59,2,FALSE))," ",VLOOKUP(K145,Proposito_programa!$C$2:$E$59,2,FALSE)) -> Gestión pública local | M145: =IF(ISERROR(VLOOKUP(K145,Proposito_programa!$C$2:$E$59,3,FALSE))," ",VLOOKUP(K145,Proposito_programa!$C$2:$E$59,3,FALSE)) -> Propósito 5: Construir Bogotá - Región con gobierno abierto, transparente y ciudadanía consciente | N145: 1623 | O145: 7 | P145: 19239137 | Q145: CARLOS EDUARDO MARTIN VELASQUEZ | R145: Persona Natural | W145: 22500000 | AA145: 22500000 | AB145: 22500000 | AC145: 2023-02-16 | AD145: 2023-02-21 | AE145: 2023-03-27 | AF145: 270 | AM145: Terminado | AN145: 1
A146: 140 | B146: 2023 | C146: FDLE-CD-140-2023 | D146: https://community.secop.gov.co/Public/Tendering/OpportunityDetail/Index?noticeUID=CO1.NTC.3967811&isFromPublicArea=True&isModal=False | E146: Contratos de prestación de servicios | F146: Contratación directa | G146: Prestación de servicios profesionales y de apoyo a la gestión, o para la ejecución de trabajos artísticos que sólo puedan encomendarse a determinadas personas naturales | H146: PRESTACIÓN DE SERVICIOS DE APOYO ASISTENCIAL AL ÁREA DE GESTIÓN POLICIVA JURÍDICA Y AL ÁREA DE GESTIÓN DE DESARROLLO LOCAL EN LA CONDUCCIÓN DE LOS VEHÍCULOS DE PROPIEDAD Y/O TENENCIA DEL FONDO DE DESARROLLO LOCAL DE ENGATIVÁ. | I146: Inversión | J146: Un nuevo contrato social y ambiental para la Bogotá del Siglo XXI | K146: 57 | L146: =IF(ISERROR(VLOOKUP(K146,Proposito_programa!$C$2:$E$59,2,FALSE))," ",VLOOKUP(K146,Proposito_programa!$C$2:$E$59,2,FALSE)) -> Gestión pública local | M146: =IF(ISERROR(VLOOKUP(K146,Proposito_programa!$C$2:$E$59,3,FALSE))," ",VLOOKUP(K146,Proposito_programa!$C$2:$E$59,3,FALSE)) -> Propósito 5: Construir Bogotá - Región con gobierno abierto, transparente y ciudadanía consciente | N146: 1623 | O146: 0 | P146: 5908991 | Q146: ALBERTO BARRETO ORTEGON | R146: Persona Natural | W146: 22500000 | Y146: 1 | Z146: 7500000 | AA146: 30000000 | AB146: 30000001 | AC146: 2023-02-10 | AD146: 2023-02-10 | AE146: 2024-02-09 | AF146: 360 | AG146: 1 | AH146: 90 | AM146: En ejecución | AN146: 1.000000033
A147: 141 | B147: 2023 | C147: FDLE-CD-141-2023 | D147: https://community.secop.gov.co/Public/Tendering/OpportunityDetail/Index?noticeUID=CO1.NTC.3968290&isFromPublicArea=True&isModal=False | E147: Contratos de prestación de servicios | F147: Contratación directa | G147: Prestación de servicios profesionales y de apoyo a la gestión, o para la ejecución de trabajos artísticos que sólo puedan encomendarse a determinadas personas naturales | H147: PRESTACIÓN DE SERVICIOS DE APOYO ASISTENCIAL AL ÁREA DE GESTIÓN POLICIVA JURÍDICA Y AL ÁREA DE GESTIÓN DE DESARROLLO LOCAL EN LA CONDUCCIÓN DE LOS VEHÍCULOS DE PROPIEDAD Y/O TENENCIA DEL FONDO DE DESARROLLO LOCAL DE ENGATIVÁ. | I147: Inversión | J147: Un nuevo contrato social y ambiental para la Bogotá del Siglo XXI | K147: 57 | L147: =IF(ISERROR(VLOOKUP(K147,Proposito_programa!$C$2:$E$59,2,FALSE))," ",VLOOKUP(K147,Proposito_programa!$C$2:$E$59,2,FALSE)) -> Gestión pública local | M147: =IF(ISERROR(VLOOKUP(K147,Proposito_programa!$C$2:$E$59,3,FALSE))," ",VLOOKUP(K147,Proposito_programa!$C$2:$E$59,3,FALSE)) -> Propósito 5: Construir Bogotá - Región con gobierno abierto, transparente y ciudadanía consciente | N147: 1623 | O147: 0 | P147: 1014213151 | Q147: CHAYAN SMITH MENESES MORENO | R147: Persona Natural | W147: 22500000 | Y147: 1 | Z147: 10000000 | AA147: 32500000 | AB147: 32500001 | AC147: 2023-02-09 | AD147: 2023-02-14 | AE147: 2024-03-13 | AF147: 390 | AG147: 1 | AH147: 120 | AM147: En ejecución | AN147: 1.000000031
A148: 142 | B148: 2023 | C148: FDLE-CD-142-2023 | D148: https://community.secop.gov.co/Public/Tendering/OpportunityDetail/Index?noticeUID=CO1.NTC.3967261&isFromPublicArea=True&isModal=False | E148: Contratos de prestación de servicios | F148: Contratación directa | G148: Prestación de servicios profesionales y de apoyo a la gestión, o para la ejecución de trabajos artísticos que sólo puedan encomendarse a determinadas personas naturales | H148: PRESTACIÓN DE SERVICIOS DE APOYO ASISTENCIAL AL ÁREA DE GESTIÓN POLICIVA JURÍDICA Y AL ÁREA DE GESTIÓN DE DESARROLLO LOCAL EN LA CONDUCCIÓN DE LOS VEHÍCULOS DE PROPIEDAD Y/O TENENCIA DEL FONDO DE DESARROLLO LOCAL DE ENGATIVÁ. | I148: Inversión | J148: Un nuevo contrato social y ambiental para la Bogotá del Siglo XXI | K148: 57 | L148: =IF(ISERROR(VLOOKUP(K148,Proposito_programa!$C$2:$E$59,2,FALSE))," ",VLOOKUP(K148,Proposito_programa!$C$2:$E$59,2,FALSE)) -> Gestión pública local | M148: =IF(ISERROR(VLOOKUP(K148,Proposito_programa!$C$2:$E$59,3,FALSE))," ",VLOOKUP(K148,Proposito_programa!$C$2:$E$59,3,FALSE)) -> Propósito 5: Construir Bogotá - Región con gobierno abierto, transparente y ciudadanía consciente | N148: 1623 | O148: 7 | P148: 79455692 | Q148: LIBERATO PINZON SUAREZ | R148: Persona Natural | W148: 22500000 | Y148: 1 | Z148: 10000000 | AA148: 32500000 | AB148: 32500001 | AC148: 2023-02-09 | AD148: 2023-02-13 | AE148: 2024-03-12 | AF148: 390 | AG148: 1 | AH148: 120 | AM148: En ejecución | AN148: 1.000000031
A149: 143 | B149: 2023 | C149: FDLE-CD-143-2023 | D149: https://community.secop.gov.co/Public/Tendering/OpportunityDetail/Index?noticeUID=CO1.NTC.3941998&isFromPublicArea=True&isModal=False | E149: Contratos de prestación de servicios | F149: Contratación directa | G149: Prestación de servicios profesionales y de apoyo a la gestión, o para la ejecución de trabajos artísticos que sólo puedan encomendarse a determinadas personas naturales | H149: PRESTACIÓN DE SERVICIOS DE APOYO ASISTENCIAL AL ÁREA DE GESTIÓN POLICIVA JURÍDICA Y AL ÁREA DE GESTIÓN DE DESARROLLO LOCAL EN LA CONDUCCIÓN DE LOS VEHÍCULOS DE PROPIEDAD Y/O TENENCIA DEL FONDO DE DESARROLLO LOCAL DE ENGATIVÁ. | I149: Inversión | J149: Un nuevo contrato social y ambiental para la Bogotá del Siglo XXI | K149: 57 | L149: =IF(ISERROR(VLOOKUP(K149,Proposito_programa!$C$2:$E$59,2,FALSE))," ",VLOOKUP(K149,Proposito_programa!$C$2:$E$59,2,FALSE)) -> Gestión pública local | M149: =IF(ISERROR(VLOOKUP(K149,Proposito_programa!$C$2:$E$59,3,FALSE))," ",VLOOKUP(K149,Proposito_programa!$C$2:$E$59,3,FALSE)) -> Propósito 5: Construir Bogotá - Región con gobierno abierto, transparente y ciudadanía consciente | N149: 1623 | O149: 0 | P149: 79622109 | Q149: ROBERTO ALONSO HERNANDEZ HERNANDEZ | R149: Persona Natural | W149: 22500000 | Y149: 1 | Z149: 7500000 | AA149: 30000000 | AB149: 30000001 | AC149: 2023-02-07 | AD149: 2023-02-14 | AE149: 2024-02-13 | AF149: 360 | AG149: 1 | AH149: 90 | AM149: En ejecución | AN149: 1.000000033
A150: 144 | B150: 2023 | C150: FDLE-CD-144-2023 | D150: https://community.secop.gov.co/Public/Tendering/OpportunityDetail/Index?noticeUID=CO1.NTC.3854302&isFromPublicArea=True&isModal=False | E150: Contratos de prestación de servicios | F150: Contratación directa | G150: Prestación de servicios profesionales y de apoyo a la gestión, o para la ejecución de trabajos artísticos que sólo puedan encomendarse a determinadas personas naturales | H150: PRESTAR SERVICIOS PROFESIONALES PARA APOYAR EL DESARROLLO DE OPERATIVOS Y ACCIONES DE GESTIÓN POLICIVA DE ACUERDO CON LOS LINEAMIENTOS IMPARTIDOS Y LA NORMATIVIDAD VIGENTE APLICABLE A LA MATERIA | I150: Inversión | J150: Un nuevo contrato social y ambiental para la Bogotá del Siglo XXI | K150: 57 | L150: =IF(ISERROR(VLOOKUP(K150,Proposito_programa!$C$2:$E$59,2,FALSE))," ",VLOOKUP(K150,Proposito_programa!$C$2:$E$59,2,FALSE)) -> Gestión pública local | M150: =IF(ISERROR(VLOOKUP(K150,Proposito_programa!$C$2:$E$59,3,FALSE))," ",VLOOKUP(K150,Proposito_programa!$C$2:$E$59,3,FALSE)) -> Propósito 5: Construir Bogotá - Región con gobierno abierto, transparente y ciudadanía consciente | N150: 1624 | O150: 4 | P150: 79576093 | Q150: RAUL ENRIQUE TOBARIA PACHECO | R150: Persona Natural | W150: 41130000 | Y150: 1 | Z150: 18280000 | AA150: 59410000 | AB150: 59410001 | AC150: 2023-01-27 | AD150: 2023-01-30 | AE150: 2024-02-29 | AF150: 390 | AG150: 1 | AH150: 120 | AI150: 79576093 | AJ150: RAUL ENRIQUE TOBARIA PACHECO | AK150: 2023-09-07 | AL150: 26049000 | AM150: En ejecución | AN150: 1.000000017
A151: 145 | B151: 2023 | C151: FDLE-CD-145-2023 | D151: https://community.secop.gov.co/Public/Tendering/OpportunityDetail/Index?noticeUID=CO1.NTC.3834948&isFromPublicArea=True&isModal=False | E151: Contratos de prestación de servicios | F151: Contratación directa | G151: Prestación de servicios profesionales y de apoyo a la gestión, o para la ejecución de trabajos artísticos que sólo puedan encomendarse a determinadas personas naturales | H151: APOYAR JURÍDICAMENTE LA EJECUCIÓN DE LAS ACCIONES REQUERIDAS PARA LA DEPURACIÓN DE LAS ACTUACIONES ADMINISTRATIVAS QUE CURSAN EN LA ALCALDÍA LOCAL. | I151: Inversión | J151: Un nuevo contrato social y ambiental para la Bogotá del Siglo XXI | K151: 57 | L151: =IF(ISERROR(VLOOKUP(K151,Proposito_programa!$C$2:$E$59,2,FALSE))," ",VLOOKUP(K151,Proposito_programa!$C$2:$E$59,2,FALSE)) -> Gestión pública local | M151: =IF(ISERROR(VLOOKUP(K151,Proposito_programa!$C$2:$E$59,3,FALSE))," ",VLOOKUP(K151,Proposito_programa!$C$2:$E$59,3,FALSE)) -> Propósito 5: Construir Bogotá - Región con gobierno abierto, transparente y ciudadanía consciente | N151: 1624 | O151: 8 | P151: 1032379239 | Q151: HANDRY FAYSURY HURTADO LOPEZ | R151: Persona Natural | W151: 41130000 | Y151: 1 | Z151: 9140000 | AA151: 50270000 | AB151: 50270001 | AC151: 2023-01-25 | AD151: 2023-01-30 | AE151: 2023-12-29 | AF151: 330 | AG151: 1 | AH151: 60 | AM151: Terminado | AN151: 1.00000002
A152: 146 | B152: 2023 | C152: FDLE-CD-146-2023 | D152: https://community.secop.gov.co/Public/Tendering/OpportunityDetail/Index?noticeUID=CO1.NTC.3853697&isFromPublicArea=True&isModal=False | E152: Contratos de prestación de servicios | F152: Contratación directa | G152: Prestación de servicios profesionales y de apoyo a la gestión, o para la ejecución de trabajos artísticos que sólo puedan encomendarse a determinadas personas naturales | H152: APOYAR JURÍDICAMENTE LA EJECUCIÓN DE LAS ACCIONES REQUERIDAS PARA LA DEPURACIÓN DE LAS ACTUACIONES ADMINISTRATIVAS QUE CURSAN EN LA ALCALDÍA LOCAL. | I152: Inversión | J152: Un nuevo contrato social y ambiental para la Bogotá del Siglo XXI | K152: 57 | L152: =IF(ISERROR(VLOOKUP(K152,Proposito_programa!$C$2:$E$59,2,FALSE))," ",VLOOKUP(K152,Proposito_programa!$C$2:$E$59,2,FALSE)) -> Gestión pública local | M152: =IF(ISERROR(VLOOKUP(K152,Proposito_programa!$C$2:$E$59,3,FALSE))," ",VLOOKUP(K152,Proposito_programa!$C$2:$E$59,3,FALSE)) -> Propósito 5: Construir Bogotá - Región con gobierno abierto, transparente y ciudadanía consciente | N152: 1624 | O152: 8 | P152: 80016532 | Q152: JHANN ALEXANDER OBANDO PULIDO | R152: Persona Natural | W152: 41130000 | Y152: 1 | Z152: 20412667 | AA152: 61542667 | AB152: 61542668 | AC152: 2023-01-27 | AD152: 2023-01-30 | AE152: 2024-03-14 | AF152: 404 | AG152: 1 | AH152: 134 | AM152: En ejecución | AN152: 1.000000016
A153: 147 | B153: 2023 | C153: FDLE-CD-147-2023 | D153: https://community.secop.gov.co/Public/Tendering/OpportunityDetail/Index?noticeUID=CO1.NTC.3887509&isFromPublicArea=True&isModal=False | E153: Contratos de prestación de servicios | F153: Contratación directa | G153: Prestación de servicios profesionales y de apoyo a la gestión, o para la ejecución de trabajos artísticos que sólo puedan encomendarse a determinadas personas naturales | H153: APOYAR JURÍDICAMENTE LA EJECUCIÓN DE LAS ACCIONES REQUERIDAS PARA LA DEPURACIÓN DE LAS ACTUACIONES ADMINISTRATIVAS QUE CURSAN EN LA ALCALDÍA LOCAL. | I153: Inversión | J153: Un nuevo contrato social y ambiental para la Bogotá del Siglo XXI | K153: 57 | L153: =IF(ISERROR(VLOOKUP(K153,Proposito_programa!$C$2:$E$59,2,FALSE))," ",VLOOKUP(K153,Proposito_programa!$C$2:$E$59,2,FALSE)) -> Gestión pública local | M153: =IF(ISERROR(VLOOKUP(K153,Proposito_programa!$C$2:$E$59,3,FALSE))," ",VLOOKUP(K153,Proposito_programa!$C$2:$E$59,3,FALSE)) -> Propósito 5: Construir Bogotá - Región con gobierno abierto, transparente y ciudadanía consciente | N153: 1624 | O153: 6 | P153: 1015435816 | Q153: JEFERSON ANDRES MOLANO BELTRAN | R153: Persona Natural | W153: 41130000 | AA153: 41130000 | AB153: 41130000 | AC153: 2023-02-28 | AD153: 2023-03-01 | AE153: 2023-11-30 | AF153: 270 | AM153: Terminado | AN153: 1
A154: 148 | B154: 2023 | C154: FDLE-CD-148-2023 | D154: https://community.secop.gov.co/Public/Tendering/OpportunityDetail/Index?noticeUID=CO1.NTC.3862095&isFromPublicArea=True&isModal=False | E154: Contratos de prestación de servicios | F154: Contratación directa | G154: Prestación de servicios profesionales y de apoyo a la gestión, o para la ejecución de trabajos artísticos que sólo puedan encomendarse a determinadas personas naturales | H154: APOYAR JURÍDICAMENTE LA EJECUCIÓN DE LAS ACCIONES REQUERIDAS PARA LA DEPURACIÓN DE LAS ACTUACIONES ADMINISTRATIVAS QUE CURSAN EN LA ALCALDÍA LOCAL. | I154: Inversión | J154: Un nuevo contrato social y ambiental para la Bogotá del Siglo XXI | K154: 57 | L154: =IF(ISERROR(VLOOKUP(K154,Proposito_programa!$C$2:$E$59,2,FALSE))," ",VLOOKUP(K154,Proposito_programa!$C$2:$E$59,2,FALSE)) -> Gestión pública local | M154: =IF(ISERROR(VLOOKUP(K154,Proposito_programa!$C$2:$E$59,3,FALSE))," ",VLOOKUP(K154,Proposito_programa!$C$2:$E$59,3,FALSE)) -> Propósito 5: Construir Bogotá - Región con gobierno abierto, transparente y ciudadanía consciente | N154: 1624 | O154: 5 | P154: 1091669339 | Q154: BRAWDON YHOSETH HERNANDEZ CARRASCAL | R154: Persona Natural | W154: 41130000 | Y154: 1 | Z154: 20412667 | AA154: 61542667 | AB154: 61542668 | AC154: 2023-01-27 | AD154: 2023-01-30 | AE154: 2024-03-14 | AF154: 404 | AG154: 1 | AH154: 134 | AM154: En ejecución | AN154: 1.000000016
A155: 149 | B155: 2023 | C155: FDLE-CD-149-2023 | D155: https://community.secop.gov.co/Public/Tendering/OpportunityDetail/Index?noticeUID=CO1.NTC.3821033&isFromPublicArea=True&isModal=False | E155: Contratos de prestación de servicios | F155: Contratación directa | G155: Prestación de servicios profesionales y de apoyo a la gestión, o para la ejecución de trabajos artísticos que sólo puedan encomendarse a determinadas personas naturales | H155: LA PRESTACIÓN DE SERVICIOS TÉCNICOS DE APOYO AL ÁREA DE GESTIÓN DE DESARROLLO LOCAL EN LOS TRÁMITES ADMINISTRATIVOS, TÉCNICOS Y DE HSEQ DE LOS PROYECTOS RELACIONADOS CON MALLA VIAL, ESPACIO PÚBLICO, PARQUES Y/O INFRAESTRUCTURA. | I155: Inversión | J155: Un nuevo contrato social y ambiental para la Bogotá del Siglo XXI | K155: 49 | L155: =IF(ISERROR(VLOOKUP(K155,Proposito_programa!$C$2:$E$59,2,FALSE))," ",VLOOKUP(K155,Proposito_programa!$C$2:$E$59,2,FALSE)) -> Movilidad segura, sostenible y accesible | M155: =IF(ISERROR(VLOOKUP(K155,Proposito_programa!$C$2:$E$59,3,FALSE))," ",VLOOKUP(K155,Proposito_programa!$C$2:$E$59,3,FALSE)) -> Propósito 4: Hacer de Bogotá Región un modelo de movilidad multimodal, incluyente y sostenible | N155: 1621 | O155: 2 | P155: 80281444 | Q155: CESAR AUGUSTO CASTRO RUIZ | R155: Persona Natural | W155: 28782000 | Y155: 1 | Z155: 12792000 | AA155: 41574000 | AB155: 41574001 | AC155: 2023-01-23 | AD155: 2023-01-30 | AE155: 2024-02-29 | AF155: 390 | AG155: 1 | AH155: 120 | AM155: En ejecución | AN155: 1.000000024
A156: 150 | B156: 2023 | C156: FDLE-CD-150-2023 | D156: https://community.secop.gov.co/Public/Tendering/OpportunityDetail/Index?noticeUID=CO1.NTC.3821257&isFromPublicArea=True&isModal=False | E156: Contratos de prestación de servicios | F156: Contratación directa | G156: Prestación de servicios profesionales y de apoyo a la gestión, o para la ejecución de trabajos artísticos que sólo puedan encomendarse a determinadas personas naturales | H156: PRESTACIÓN DE SERVICIOS DE APOYO EN LA EJECUCIÓN DE ACTIVIDADES AUXILIARES DE OBRA CIVIL, QUE CONLLEVEN AL MEJORAMIENTO Y ADECUACIÓN DEL ESPACIO PÚBLICO Y MALLA VIAL DE LA LOCALIDAD DE ENGATIVÁ | I156: Inversión | J156: Un nuevo contrato social y ambiental para la Bogotá del Siglo XXI | K156: 49 | L156: =IF(ISERROR(VLOOKUP(K156,Proposito_programa!$C$2:$E$59,2,FALSE))," ",VLOOKUP(K156,Proposito_programa!$C$2:$E$59,2,FALSE)) -> Movilidad segura, sostenible y accesible | M156: =IF(ISERROR(VLOOKUP(K156,Proposito_programa!$C$2:$E$59,3,FALSE))," ",VLOOKUP(K156,Proposito_programa!$C$2:$E$59,3,FALSE)) -> Propósito 4: Hacer de Bogotá Región un modelo de movilidad multimodal, incluyente y sostenible | N156: 1621 | O156: 1 | P156: 80206391 | Q156: HERNAN DARIO GOMEZ SALAZAR | R156: Persona Natural | W156: 22500000 | Y156: 1 | Z156: 7500000 | AA156: 30000000 | AB156: 30000001 | AC156: 2023-01-23 | AD156: 2023-01-30 | AE156: 2024-02-11 | AF156: 360 | AG156: 1 | AH156: 90 | AM156: En ejecución | AN156: 1.000000033
A157: 151 | B157: 2023 | C157: FDLE-CD-151-2023 | D157: https://community.secop.gov.co/Public/Tendering/OpportunityDetail/Index?noticeUID=CO1.NTC.3883370&isFromPublicArea=True&isModal=False | E157: Contratos de prestación de servicios | F157: Contratación directa | G157: Prestación de servicios profesionales y de apoyo a la gestión, o para la ejecución de trabajos artísticos que sólo puedan encomendarse a determinadas personas naturales | H157: APOYAR TÉCNICAMENTE LAS DISTINTAS ETAPAS DE LOS PROCESOS DE COMPETENCIA DE LA ALCALDÍA LOCAL PARA LA DEPURACIÓN DE ACTUACIONES ADMINISTRATIVAS. | I157: Inversión | J157: Un nuevo contrato social y ambiental para la Bogotá del Siglo XXI | K157: 57 | L157: =IF(ISERROR(VLOOKUP(K157,Proposito_programa!$C$2:$E$59,2,FALSE))," ",VLOOKUP(K157,Proposito_programa!$C$2:$E$59,2,FALSE)) -> Gestión pública local | M157: =IF(ISERROR(VLOOKUP(K157,Proposito_programa!$C$2:$E$59,3,FALSE))," ",VLOOKUP(K157,Proposito_programa!$C$2:$E$59,3,FALSE)) -> Propósito 5: Construir Bogotá - Región con gobierno abierto, transparente y ciudadanía consciente | N157: 1624 | O157: 9 | P157: 79738697 | Q157: LEONARDO CASTELBLANCO ARIZA | R157: Persona Natural | W157: 46620000 | Y157: 1 | Z157: 5180000 | AA157: 51800000 | AB157: 51800001 | AC157: 2023-01-31 | AD157: 2023-02-08 | AE157: 2023-12-07 | AF157: 300 | AG157: 1 | AH157: 30 | AM157: Terminado | AN157: 1.000000019
A158: 152 | B158: 2023 | C158: FDLE-CD-152-2023 | D158: https://community.secop.gov.co/Public/Tendering/OpportunityDetail/Index?noticeUID=CO1.NTC.3824003&isFromPublicArea=True&isModal=False | E158: Contratos de prestación de servicios | F158: Contratación directa | G158: Prestación de servicios profesionales y de apoyo a la gestión, o para la ejecución de trabajos artísticos que sólo puedan encomendarse a determinadas personas naturales | H158: PRESTACIÓN DE SERVICIOS DE APOYO EN LA EJECUCIÓN DE ACTIVIDADES AUXILIARES DE OBRA CIVIL, QUE CONLLEVEN AL MEJORAMIENTO Y ADECUACIÓN DEL ESPACIO PÚBLICO Y MALLA VIAL DE LA LOCALIDAD DE ENGATIVÁ | I158: Inversión | J158: Un nuevo contrato social y ambiental para la Bogotá del Siglo XXI | K158: 49 | L158: =IF(ISERROR(VLOOKUP(K158,Proposito_programa!$C$2:$E$59,2,FALSE))," ",VLOOKUP(K158,Proposito_programa!$C$2:$E$59,2,FALSE)) -> Movilidad segura, sostenible y accesible | M158: =IF(ISERROR(VLOOKUP(K158,Proposito_programa!$C$2:$E$59,3,FALSE))," ",VLOOKUP(K158,Proposito_programa!$C$2:$E$59,3,FALSE)) -> Propósito 4: Hacer de Bogotá Región un modelo de movilidad multimodal, incluyente y sostenible | N158: 1621 | O158: 0 | P158: 79841208 | Q158: OSVALDO MOLINA PEDRAZA | R158: Persona Natural | W158: 22500000 | Y158: 1 | Z158: 7500000 | AA158: 30000000 | AB158: 30000001 | AC158: 2023-01-23 | AD158: 2023-01-30 | AE158: 2024-01-29 | AF158: 360 | AG158: 1 | AH158: 90 | AM158: En ejecución | AN158: 1.000000033
A159: 153 | B159: 2023 | C159: FDLE-CD-153-2023 | D159: https://community.secop.gov.co/Public/Tendering/OpportunityDetail/Index?noticeUID=CO1.NTC.3835763&isFromPublicArea=True&isModal=False | E159: Contratos de prestación de servicios | F159: Contratación directa | G159: Prestación de servicios profesionales y de apoyo a la gestión, o para la ejecución de trabajos artísticos que sólo puedan encomendarse a determinadas personas naturales | H159: PRESTAR SERVICIOS PROFESIONALES PARA APOYAR LA GESTIÓN DEL RIESGO, QUE PROMUEVA LAS ACCIONES REQUERIDAS PARA LA PREVENCIÓN Y ATENCIÓN DE EMERGENCIAS EN LA LOCALIDAD DE ENGATIVÁ | I159: Inversión | J159: Un nuevo contrato social y ambiental para la Bogotá del Siglo XXI | K159: 30 | L159: =IF(ISERROR(VLOOKUP(K159,Proposito_programa!$C$2:$E$59,2,FALSE))," ",VLOOKUP(K159,Proposito_programa!$C$2:$E$59,2,FALSE)) -> Eficiencia en la atención de emergencias | M159: =IF(ISERROR(VLOOKUP(K159,Proposito_programa!$C$2:$E$59,3,FALSE))," ",VLOOKUP(K159,Proposito_programa!$C$2:$E$59,3,FALSE)) -> Propósito 2 : Cambiar Nuestros Hábitos de Vida para Reverdecer a Bogotá y Adaptarnos y Mitigar la Crisis Climática | N159: 1604 | O159: 1 | P159: 80283272 | Q159: JAVIER HERNANDO RIAÑO SANCHEZ | R159: Persona Natural | W159: 41130000 | AA159: 41130000 | AB159: 41130000 | AC159: 2023-01-25 | AD159: 2023-01-30 | AE159: 2023-10-29 | AF159: 270 | AM159: Terminado | AN159: 1
A160: 154 | B160: 2023 | C160: FDLE-CD-154-2023 | D160: https://community.secop.gov.co/Public/Tendering/OpportunityDetail/Index?noticeUID=CO1.NTC.3836521&isFromPublicArea=True&isModal=False | E160: Contratos de prestación de servicios | F160: Contratación directa | G160: Prestación de servicios profesionales y de apoyo a la gestión, o para la ejecución de trabajos artísticos que sólo puedan encomendarse a determinadas personas naturales | H160: PRESTAR SERVICIOS PROFESIONALES CON EL FIN DE APOYAR AL PROMOTOR DE LA MEJORA LOCAL EN LOS PROCESOS DE IMPLEMENTACIÓN DE HERRAMIENTAS DE GESTIÓN, SIGUIENDO LOS LINEAMIENTOS METODOLÓGICOS ESTABLECIDOS POR LA OFICINA ASESORA DE PLANEACIÓN DE LA SECRETARÍA DISTRITAL DE GOBIERNO, EN EL FONDO DE DESARROLLO LOCAL DE ENGATIVÁ | I160: Inversión | J160: Un nuevo contrato social y ambiental para la Bogotá del Siglo XXI | K160: 57 | L160: =IF(ISERROR(VLOOKUP(K160,Proposito_programa!$C$2:$E$59,2,FALSE))," ",VLOOKUP(K160,Proposito_programa!$C$2:$E$59,2,FALSE)) -> Gestión pública local | M160: =IF(ISERROR(VLOOKUP(K160,Proposito_programa!$C$2:$E$59,3,FALSE))," ",VLOOKUP(K160,Proposito_programa!$C$2:$E$59,3,FALSE)) -> Propósito 5: Construir Bogotá - Región con gobierno abierto, transparente y ciudadanía consciente | N160: 1623 | O160: 6 | P160: 1077972819 | Q160: YESICA PAOLA ROZO AREVALO | R160: Persona Natural | W160: 50270000 | Y160: 1 | Z160: 22850000 | AA160: 73120000 | AB160: 73120001 | AC160: 2023-01-25 | AD160: 2023-01-30 | AE160: 2024-05-29 | AF160: 480 | AG160: 1 | AH160: 150 | AM160: En ejecución | AN160: 1.000000014
A161: 155 | B161: 2023 | C161: FDLE-CD-155-2023 | D161: https://community.secop.gov.co/Public/Tendering/OpportunityDetail/Index?noticeUID=CO1.NTC.3894225&isFromPublicArea=True&isModal=False | E161: Contratos de prestación de servicios | F161: Contratación directa | G161: Prestación de servicios profesionales y de apoyo a la gestión, o para la ejecución de trabajos artísticos que sólo puedan encomendarse a determinadas personas naturales | H161: LA PRESTACIÓN DE SERVICIOS PROFESIONALES ESPECIALIZADOS AL ÁREA DE GESTIÓN DE DESARROLLO LOCAL, LIDERANDO LAS ACTIVIDADES DE PLANEACIÓN RELACIONADAS CON LA FORMULACIÓN DE ESTUDIOS DE MERCADO, TÉCNICOS Y ECONÓMICOS DE LOS PROYECTOS DEL PLAN DE DESARROLLO LOCAL 2021 -2024 “UN NUEVO CONTRATO SOCIAL Y AMBIENTAL PARA ENGATIVÁ" | I161: Inversión | J161: Un nuevo contrato social y ambiental para la Bogotá del Siglo XXI | K161: 57 | L161: =IF(ISERROR(VLOOKUP(K161,Proposito_programa!$C$2:$E$59,2,FALSE))," ",VLOOKUP(K161,Proposito_programa!$C$2:$E$59,2,FALSE)) -> Gestión pública local | M161: =IF(ISERROR(VLOOKUP(K161,Proposito_programa!$C$2:$E$59,3,FALSE))," ",VLOOKUP(K161,Proposito_programa!$C$2:$E$59,3,FALSE)) -> Propósito 5: Construir Bogotá - Región con gobierno abierto, transparente y ciudadanía consciente | N161: 1623 | O161: 5 | P161: 1016013233 | Q161: YENY PAOLA SAN MARTÍN RINCÓN | R161: Persona Natural | W161: 88000000 | Y161: 1 | Z161: 32000000 | AA161: 120000000 | AB161: 120000001 | AC161: 2023-02-01 | AD161: 2023-02-02 | AE161: 2024-05-01 | AF161: 450 | AG161: 1 | AH161: 120 | AM161: En ejecución | AN161: 1.000000008
A162: 156 | B162: 2023 | C162: FDLE-CD-156-2023 | D162: https://community.secop.gov.co/Public/Tendering/OpportunityDetail/Index?noticeUID=CO1.NTC.3992660&isFromPublicArea=True&isModal=False | E162: Contratos de prestación de servicios | F162: Contratación directa | G162: Prestación de servicios profesionales y de apoyo a la gestión, o para la ejecución de trabajos artísticos que sólo puedan encomendarse a determinadas personas naturales | H162: PRESTAR LOS SERVICIOS PROFESIONALES EN EL APOYO A DESPACHOS COMISORIOS RELACIONADO CON ATENCIÓN INTEGRAL DE LAS COMISIONES ORDENADAS POR LAS AUTORIDADES JURISDICCIONALES DE LA REPÚBLICA, INICIANDO Y/O DANDO IMPULSO A LAS ACTUACIONES ADMINISTRATIVAS PROCEDENTES, EN LA ALCALDIA LOCAL DE ENGATIVA | I162: Inversión | J162: Un nuevo contrato social y ambiental para la Bogotá del Siglo XXI | K162: 57 | L162: =IF(ISERROR(VLOOKUP(K162,Proposito_programa!$C$2:$E$59,2,FALSE))," ",VLOOKUP(K162,Proposito_programa!$C$2:$E$59,2,FALSE)) -> Gestión pública local | M162: =IF(ISERROR(VLOOKUP(K162,Proposito_programa!$C$2:$E$59,3,FALSE))," ",VLOOKUP(K162,Proposito_programa!$C$2:$E$59,3,FALSE)) -> Propósito 5: Construir Bogotá - Región con gobierno abierto, transparente y ciudadanía consciente | N162: 1624 | O162: 5 | P162: 80166167 | Q162: JUAN CARLOS GOMEZ GARCIA | R162: Persona Natural | W162: 45000000 | Y162: 1 | Z162: 20000000 | AA162: 65000000 | AB162: 65000001 | AC162: 2023-02-13 | AD162: 2023-02-14 | AE162: 2024-03-13 | AF162: 390 | AG162: 1 | AH162: 120 | AM162: En ejecución | AN162: 1.000000015
A163: 157 | B163: 2023 | C163: FDLE-CD-157-2023 | D163: https://community.secop.gov.co/Public/Tendering/OpportunityDetail/Index?noticeUID=CO1.NTC.3887499&isFromPublicArea=True&isModal=False | E163: Contratos de prestación de servicios | F163: Contratación directa | G163: Prestación de servicios profesionales y de apoyo a la gestión, o para la ejecución de trabajos artísticos que sólo puedan encomendarse a determinadas personas naturales | H163: PRESTAR LOS SERVICIOS PROFESIONAL PARA EL APOYO ADMINISTRATIVO EN LA ORGANIZACIÓN, DEPURACIÓN, CONSOLIDACIÓN, GESTIÓN Y ORGANIZACIÓN DE INFORMACIÓN, DOCUMENTOS Y LAS ACTIVIDADES QUE SE GENEREN EN EL PROCESO DE IMPULSO DE LAS ACTUACIONES ADMINISTRATIVAS EXISTENTES EN EL ÁREA DE GESTIÓN POLICIVA JURIDICA DE ENGATIVÁ | I163: Inversión | J163: Un nuevo contrato social y ambiental para la Bogotá del Siglo XXI | K163: 57 | L163: =IF(ISERROR(VLOOKUP(K163,Proposito_programa!$C$2:$E$59,2,FALSE))," ",VLOOKUP(K163,Proposito_programa!$C$2:$E$59,2,FALSE)) -> Gestión pública local | M163: =IF(ISERROR(VLOOKUP(K163,Proposito_programa!$C$2:$E$59,3,FALSE))," ",VLOOKUP(K163,Proposito_programa!$C$2:$E$59,3,FALSE)) -> Propósito 5: Construir Bogotá - Región con gobierno abierto, transparente y ciudadanía consciente | N163: 1624 | O163: 1 | P163: 1010232516 | Q163: DAVID STIVEN CASTRO MADRIGAL | R163: Persona Natural | W163: 50270000 | Y163: 1 | Z163: 22850000 | AA163: 73120000 | AB163: 73120001 | AC163: 2023-01-31 | AD163: 2023-02-01 | AE163: 2024-05-31 | AF163: 480 | AG163: 1 | AH163: 150 | AM163: En ejecución | AN163: 1.000000014
A164: 158 | B164: 2023 | C164: FDLE-CD-158-2023 | D164: https://community.secop.gov.co/Public/Tendering/OpportunityDetail/Index?noticeUID=CO1.NTC.3861779&isFromPublicArea=True&isModal=False | E164: Contratos de prestación de servicios | F164: Contratación directa | G164: Prestación de servicios profesionales y de apoyo a la gestión, o para la ejecución de trabajos artísticos que sólo puedan encomendarse a determinadas personas naturales | H164: APOYAR JURÍDICAMENTE LA EJECUCIÓN DE LAS ACCIONES REQUERIDAS PARA LA DEPURACIÓN DE LAS ACTUACIONES ADMINISTRATIVAS QUE CURSAN EN LA ALCALDÍA LOCAL. | I164: Inversión | J164: Un nuevo contrato social y ambiental para la Bogotá del Siglo XXI | K164: 57 | L164: =IF(ISERROR(VLOOKUP(K164,Proposito_programa!$C$2:$E$59,2,FALSE))," ",VLOOKUP(K164,Proposito_programa!$C$2:$E$59,2,FALSE)) -> Gestión pública local | M164: =IF(ISERROR(VLOOKUP(K164,Proposito_programa!$C$2:$E$59,3,FALSE))," ",VLOOKUP(K164,Proposito_programa!$C$2:$E$59,3,FALSE)) -> Propósito 5: Construir Bogotá - Región con gobierno abierto, transparente y ciudadanía consciente | N164: 1624 | O164: 0 | P164: 1077973582 | Q164: SANDRA MILENA BONILLA VELANDIA | R164: Persona Natural | W164: 41130000 | Y164: 1 | Z164: 9140000 | AA164: 50270000 | AB164: 50270001 | AC164: 2023-01-27 | AD164: 2023-01-30 | AE164: 2023-12-29 | AF164: 330 | AG164: 1 | AH164: 60 | AM164: Terminado | AN164: 1.00000002
A165: 159 | B165: 2023 | C165: FDLE-CD-159-2023 | D165: https://community.secop.gov.co/Public/Tendering/OpportunityDetail/Index?noticeUID=CO1.NTC.3998882&isFromPublicArea=True&isModal=False | E165: Contratos de prestación de servicios | F165: Contratación directa | G165: Prestación de servicios profesionales y de apoyo a la gestión, o para la ejecución de trabajos artísticos que sólo puedan encomendarse a determinadas personas naturales | H165: PRESTAR SERVICIOS DE APOYO A LA GESTIÓN DEL FONDO DE DESARROLLO LOCAL DE ENGATIVÁ EN LOS ASUNTOS OPERATIVOS RELACIONADOS CON LA SEGURIDAD, LA CONVIVENCIA Y EL DESARROLLO DE ACTIVIDAD ECONÓMICA EN LA LOCALIDAD, CON CONFORMIDAD CON EL MARCO NORMATIVO APLICABLE EN LA MATERIA | I165: Inversión | J165: Un nuevo contrato social y ambiental para la Bogotá del Siglo XXI | K165: 57 | L165: =IF(ISERROR(VLOOKUP(K165,Proposito_programa!$C$2:$E$59,2,FALSE))," ",VLOOKUP(K165,Proposito_programa!$C$2:$E$59,2,FALSE)) -> Gestión pública local | M165: =IF(ISERROR(VLOOKUP(K165,Proposito_programa!$C$2:$E$59,3,FALSE))," ",VLOOKUP(K165,Proposito_programa!$C$2:$E$59,3,FALSE)) -> Propósito 5: Construir Bogotá - Región con gobierno abierto, transparente y ciudadanía consciente | N165: 1624 | O165: 5 | P165: 80865163 | Q165: HECTOR FELIPE SOLANO ESPITIA | R165: Persona Natural | W165: 28782000 | AA165: 28782000 | AB165: 28782000 | AC165: 2023-02-17 | AD165: 2023-02-21 | AE165: 2023-11-20 | AF165: 270 | AI165: 80865163 | AJ165: HECTOR FELIPE SOLANO ESPITIA | AK165: 2023-07-17 | AL165: 13005200 | AM165: Terminado | AN165: 1
A166: 160 | B166: 2023 | C166: FDLE-CD-160-2023 | D166: https://community.secop.gov.co/Public/Tendering/OpportunityDetail/Index?noticeUID=CO1.NTC.3840828&isFromPublicArea=True&isModal=False | E166: Contratos de prestación de servicios | F166: Contratación directa | G166: Prestación de servicios profesionales y de apoyo a la gestión, o para la ejecución de trabajos artísticos que sólo puedan encomendarse a determinadas personas naturales | H166: LA PRESTACIÓN DE SERVICIOS PROFESIONALES, AL ÁREA DE GESTIÓN DE DESARROLLO LOCAL, REALIZANDO SEGUIMIENTO A LAS ACTIVIDADES RELACIONADAS CON EL APOYO A LA SUPERVISIÓN Y/O LIQUIDACION DE CONTRATOS Y/O CONVENIOS QUE LE SEAN DESIGNADOS Y DEMÁS ACTIVIDADES QUE SE REQUIERAN | I166: Inversión | J166: Un nuevo contrato social y ambiental para la Bogotá del Siglo XXI | K166: 57 | L166: =IF(ISERROR(VLOOKUP(K166,Proposito_programa!$C$2:$E$59,2,FALSE))," ",VLOOKUP(K166,Proposito_programa!$C$2:$E$59,2,FALSE)) -> Gestión pública local | M166: =IF(ISERROR(VLOOKUP(K166,Proposito_programa!$C$2:$E$59,3,FALSE))," ",VLOOKUP(K166,Proposito_programa!$C$2:$E$59,3,FALSE)) -> Propósito 5: Construir Bogotá - Región con gobierno abierto, transparente y ciudadanía consciente | N166: 1623 | O166: 6 | P166: 1069852573 | Q166: JORGE ANDRES ACOSTA ALFONSO | R166: Persona Natural | W166: 51300000 | AA166: 51300000 | AB166: 51300000 | AC166: 2023-01-25 | AD166: 2023-01-30 | AE166: 2023-03-30 | AF166: 270 | AM166: Terminado | AN166: 1
A167: 161 | B167: 2023 | C167: FDLE-CD-161-2023 | D167: https://community.secop.gov.co/Public/Tendering/OpportunityDetail/Index?noticeUID=CO1.NTC.4065322&isFromPublicArea=True&isModal=False | E167: Contratos de prestación de servicios | F167: Contratación directa | G167: Prestación de servicios profesionales y de apoyo a la gestión, o para la ejecución de trabajos artísticos que sólo puedan encomendarse a determinadas personas naturales | H167: LA PRESTACIÓN DE SERVICIOS AUXILIARES DE APOYO A LA GESTIÓN AL ÁREA DE GESTIÓN DE DESARROLLO LOCAL EN LA EJECUCIÓN DEL PROCESO DE CORRESPONDENCIA QUE SE GENERA EN CDI DE LA ALCALDÍA LOCAL DE ENGATIVÁ | I167: Inversión | J167: Un nuevo contrato social y ambiental para la Bogotá del Siglo XXI | K167: 57 | L167: =IF(ISERROR(VLOOKUP(K167,Proposito_programa!$C$2:$E$59,2,FALSE))," ",VLOOKUP(K167,Proposito_programa!$C$2:$E$59,2,FALSE)) -> Gestión pública local | M167: =IF(ISERROR(VLOOKUP(K167,Proposito_programa!$C$2:$E$59,3,FALSE))," ",VLOOKUP(K167,Proposito_programa!$C$2:$E$59,3,FALSE)) -> Propósito 5: Construir Bogotá - Región con gobierno abierto, transparente y ciudadanía consciente | N167: 1623 | O167: 3 | P167: 1101176034 | Q167: SAULO HAFID ANDRES PEÑA PEÑA | R167: Persona Natural | W167: 22500000 | Y167: 1 | Z167: 7500000 | AA167: 30000000 | AB167: 30000001 | AC167: 2023-02-23 | AD167: 2023-02-27 | AE167: 2024-02-26 | AF167: 360 | AG167: 1 | AH167: 90 | AI167: 1101176034 | AJ167: SAULO HAFID ANDRES PEÑA PEÑA | AK167: 2023-03-13 | AL167: 16000000 | AM167: En ejecución | AN167: 1.000000033
A168: 162 | B168: 2023 | C168: FDLE-CD-162-2023 | D168: https://community.secop.gov.co/Public/Tendering/ContractNoticePhases/View?PPI=CO1.PPI.22789777&isFromPublicArea=True&isModal=False | E168: Contratos de prestación de servicios | F168: Contratación directa | G168: Prestación de servicios profesionales y de apoyo a la gestión, o para la ejecución de trabajos artísticos que sólo puedan encomendarse a determinadas personas naturales | H168: LA PRESTACIÓN DE SERVICIOS PROFESIONALES AL ÁREA DE GESTIÓN DE DESARROLLO LOCAL, EN LAS ACTIVIDADES RELACIONADAS CON LA EJECUCIÓN, SEGUIMIENTO DE LOS PROYECTOS RELACIONADOS CON REACTIVACIÓN ECONÓMICA, EMPRENDIMIENTO, TURISMO Y PATRIMONIO DE LA LOCALIDAD DE ENGATIVÁ. | I168: Inversión | J168: Un nuevo contrato social y ambiental para la Bogotá del Siglo XXI | K168: 6 | L168: =IF(ISERROR(VLOOKUP(K168,Proposito_programa!$C$2:$E$59,2,FALSE))," ",VLOOKUP(K168,Proposito_programa!$C$2:$E$59,2,FALSE)) -> Sistema Distrital de Cuidado | M168: =IF(ISERROR(VLOOKUP(K168,Proposito_programa!$C$2:$E$59,3,FALSE))," ",VLOOKUP(K168,Proposito_programa!$C$2:$E$59,3,FALSE)) -> Propósito 1: Hacer un nuevo contrato social para incrementar la inclusión social, productiva y política | N168: 1598 | O168: 0 | P168: 79956137 | Q168: JULIAN ANDRES GARZON | R168: Persona Natural | W168: 41130000 | Y168: 1 | Z168: 9140000 | AA168: 50270000 | AB168: 50270001 | AC168: 2023-01-27 | AD168: 2023-01-30 | AE168: 2023-12-29 | AF168: 330 | AG168: 1 | AH168: 60 | AM168: Terminado | AN168: 1.00000002
A169: 163 | B169: 2023 | C169: FDLE-CD-163-2023 | D169: https://community.secop.gov.co/Public/Tendering/OpportunityDetail/Index?noticeUID=CO1.NTC.3863128&isFromPublicArea=True&isModal=False | E169: Contratos de prestación de servicios | F169: Contratación directa | G169: Prestación de servicios profesionales y de apoyo a la gestión, o para la ejecución de trabajos artísticos que sólo puedan encomendarse a determinadas personas naturales | H169: LA PRESTACIÓN DE SERVICIOS PROFESIONALES AL ÁREA DE GESTIÓN DE DESARROLLO LOCAL, EN LAS ACTIVIDADES RELACIONADAS CON LA EJECUCIÓN, SEGUIMIENTO DE LOS PROYECTOS RELACIONADOS CON REACTIVACIÓN ECONÓMICA, EMPRENDIMIENTO, TURISMO Y PATRIMONIO DE LA LOCALIDAD DE ENGATIVÁ. | I169: Inversión | J169: Un nuevo contrato social y ambiental para la Bogotá del Siglo XXI | K169: 6 | L169: =IF(ISERROR(VLOOKUP(K169,Proposito_programa!$C$2:$E$59,2,FALSE))," ",VLOOKUP(K169,Proposito_programa!$C$2:$E$59,2,FALSE)) -> Sistema Distrital de Cuidado | M169: =IF(ISERROR(VLOOKUP(K169,Proposito_programa!$C$2:$E$59,3,FALSE))," ",VLOOKUP(K169,Proposito_programa!$C$2:$E$59,3,FALSE)) -> Propósito 1: Hacer un nuevo contrato social para incrementar la inclusión social, productiva y política | N169: 1598 | O169: 8 | P169: 53049728 | Q169: NANCY JOHANNA ZUBIETA RODRIGUEZ | R169: Persona Natural | W169: 41130000 | Y169: 1 | Z169: 9140000 | AA169: 50270000 | AB169: 50270001 | AC169: 2023-01-30 | AD169: 2023-01-31 | AE169: 2023-12-30 | AF169: 330 | AG169: 1 | AH169: 60 | AM169: Terminado | AN169: 1.00000002
A170: 164 | B170: 2023 | C170: FDLE-CD-164-2023 | D170: https://community.secop.gov.co/Public/Tendering/OpportunityDetail/Index?noticeUID=CO1.NTC.3888611&isFromPublicArea=True&isModal=False | E170: Contratos de prestación de servicios | F170: Contratación directa | G170: Prestación de servicios profesionales y de apoyo a la gestión, o para la ejecución de trabajos artísticos que sólo puedan encomendarse a determinadas personas naturales | H170: LA PRESTACIÓN DE SERVICIOS PROFESIONALES AL ÁREA DE GESTIÓN DE DESARROLLO LOCAL, EN LAS ACTIVIDADES RELACIONADAS CON LA EJECUCIÓN, SEGUIMIENTO DE LOS PROYECTOS RELACIONADOS CON REACTIVACIÓN ECONÓMICA, EMPRENDIMIENTO, TURISMO Y PATRIMONIO DE LA LOCALIDAD DE ENGATIVÁ. | I170: Inversión | J170: Un nuevo contrato social y ambiental para la Bogotá del Siglo XXI | K170: 6 | L170: =IF(ISERROR(VLOOKUP(K170,Proposito_programa!$C$2:$E$59,2,FALSE))," ",VLOOKUP(K170,Proposito_programa!$C$2:$E$59,2,FALSE)) -> Sistema Distrital de Cuidado | M170: =IF(ISERROR(VLOOKUP(K170,Proposito_programa!$C$2:$E$59,3,FALSE))," ",VLOOKUP(K170,Proposito_programa!$C$2:$E$59,3,FALSE)) -> Propósito 1: Hacer un nuevo contrato social para incrementar la inclusión social, productiva y política | N170: 1598 | O170: 2 | P170: 11276768 | Q170: PEDRO ALEXANDER RINCON BELLO | R170: Persona Natural | W170: 41130000 | Y170: 1 | Z170: 4570000 | AA170: 45700000 | AB170: 45700001 | AC170: 2023-01-31 | AD170: 2023-02-01 | AE170: 2023-11-30 | AF170: 300 | AG170: 1 | AH170: 30 | AI170: 11276768 | AJ170: PEDRO ALEXANDER RINCON BELLO | AK170: 2023-09-01 | AL170: 13405333 | AM170: Terminado | AN170: 1.000000022
A171: 165 | B171: 2023 | C171: FDLE-CD-165-2023 | D171: https://community.secop.gov.co/Public/Tendering/OpportunityDetail/Index?noticeUID=CO1.NTC.3936018&isFromPublicArea=True&isModal=False | E171: Contratos de prestación de servicios | F171: Contratación directa | G171: Prestación de servicios profesionales y de apoyo a la gestión, o para la ejecución de trabajos artísticos que sólo puedan encomendarse a determinadas personas naturales | H171: LA PRESTACIÓN DE SERVICIOS PROFESIONALES DE APOYO JURIDICO AL SEGUIMIENTO DEL CUMPLIMIENTO DE LOS PROCESOS Y PROCEDIMIENTOS QUE SE DERIVEN DE LOS DISTINTOS PROCESOS CONTRACTUALES DEL FONDO DE DESARROLLO LOCAL DE ENGATIVÁ. | I171: Inversión | J171: Un nuevo contrato social y ambiental para la Bogotá del Siglo XXI | K171: 57 | L171: =IF(ISERROR(VLOOKUP(K171,Proposito_programa!$C$2:$E$59,2,FALSE))," ",VLOOKUP(K171,Proposito_programa!$C$2:$E$59,2,FALSE)) -> Gestión pública local | M171: =IF(ISERROR(VLOOKUP(K171,Proposito_programa!$C$2:$E$59,3,FALSE))," ",VLOOKUP(K171,Proposito_programa!$C$2:$E$59,3,FALSE)) -> Propósito 5: Construir Bogotá - Región con gobierno abierto, transparente y ciudadanía consciente | N171: 1623 | O171: 0 | P171: 40612921 | Q171: DIANA ANDREA CABRERA TIBAQUIRA | R171: Persona Natural | W171: 60500000 | Y171: 1 | Z171: 27500000 | AA171: 88000000 | AB171: 88000001 | AC171: 2023-02-07 | AD171: 2023-02-13 | AE171: 2024-06-12 | AF171: 480 | AG171: 1 | AH171: 150 | AM171: En ejecución | AN171: 1.000000011
A172: 166 | B172: 2023 | C172: FDLE-CD-166-2023 | D172: https://community.secop.gov.co/Public/Tendering/OpportunityDetail/Index?noticeUID=CO1.NTC.3854349&isFromPublicArea=True&isModal=False | E172: Contratos de prestación de servicios | F172: Contratación directa | G172: Prestación de servicios profesionales y de apoyo a la gestión, o para la ejecución de trabajos artísticos que sólo puedan encomendarse a determinadas personas naturales | H172: LA PRESTACIÓN DE SERVICIOS PROFESIONALES, AL ÁREA DE GESTIÓN DE DESARROLLO LOCAL, REALIZANDO SEGUIMIENTO A LAS ACTIVIDADES RELACIONADAS CON EL APOYO A LA SUPERVISIÓN Y/O LIQUIDACION DE CONTRATOS Y/O CONVENIOS QUE LE SEAN DESIGNADOS Y DEMÁS ACTIVIDADES QUE SE REQUIERAN | I172: Inversión | J172: Un nuevo contrato social y ambiental para la Bogotá del Siglo XXI | K172: 57 | L172: =IF(ISERROR(VLOOKUP(K172,Proposito_programa!$C$2:$E$59,2,FALSE))," ",VLOOKUP(K172,Proposito_programa!$C$2:$E$59,2,FALSE)) -> Gestión pública local | M172: =IF(ISERROR(VLOOKUP(K172,Proposito_programa!$C$2:$E$59,3,FALSE))," ",VLOOKUP(K172,Proposito_programa!$C$2:$E$59,3,FALSE)) -> Propósito 5: Construir Bogotá - Región con gobierno abierto, transparente y ciudadanía consciente | N172: 1623 | O172: 8 | P172: 1010174567 | Q172: ELIANA RODRIGUEZ GOMEZ | R172: Persona Natural | W172: 51300000 | Y172: 1 | Z172: 25650000 | AA172: 76950000 | AB172: 76950001 | AC172: 2023-02-06 | AD172: 2023-02-13 | AE172: 2024-03-27 | AF172: 405 | AG172: 1 | AH172: 135 | AM172: En ejecución | AN172: 1.000000013
A173: 167 | B173: 2023 | C173: FDLE-CD-167-2023 | D173: https://community.secop.gov.co/Public/Tendering/OpportunityDetail/Index?noticeUID=CO1.NTC.3934646&isFromPublicArea=True&isModal=False | E173: Contratos de prestación de servicios | F173: Contratación directa | G173: Prestación de servicios profesionales y de apoyo a la gestión, o para la ejecución de trabajos artísticos que sólo puedan encomendarse a determinadas personas naturales | H173: SERVICIOS PROFESIONALES PARA APOYAR AL ÁREA DE GESTIÓN POLICIVA JURÍDICA, EN LA DEBIDA EJECUCIÓN DE LOS TRÁMITES Y/O ACTUACIONES PERTINENTES RELACIONADOS CON EL COBRO PERSUASIVO DE LAS MULTAS IMPUESTAS POR LA ADMINISTRACIÓN LOCAL, ACUERDOS DE PAGO, CONCILIACIÓN DE CUENTAS EN CONTABILIDAD, EN LOS TÉRMINOS ESTABLECIDOS POR LA NORMATIVIDAD VIGENTE. | I173: Inversión | J173: Un nuevo contrato social y ambiental para la Bogotá del Siglo XXI | K173: 57 | L173: =IF(ISERROR(VLOOKUP(K173,Proposito_programa!$C$2:$E$59,2,FALSE))," ",VLOOKUP(K173,Proposito_programa!$C$2:$E$59,2,FALSE)) -> Gestión pública local | M173: =IF(ISERROR(VLOOKUP(K173,Proposito_programa!$C$2:$E$59,3,FALSE))," ",VLOOKUP(K173,Proposito_programa!$C$2:$E$59,3,FALSE)) -> Propósito 5: Construir Bogotá - Región con gobierno abierto, transparente y ciudadanía consciente | N173: 1624 | O173: 2 | P173: 1020777109 | Q173: JESUS RAMON CASTELLANOS IBAÑEZ | R173: Persona Natural | W173: 41130000 | Y173: 1 | Z173: 18280000 | AA173: 59410000 | AB173: 59410001 | AC173: 2023-02-06 | AD173: 2023-02-07 | AE173: 2024-03-06 | AF173: 390 | AG173: 1 | AH173: 120 | AM173: En ejecución | AN173: 1.000000017
A174: 168 | B174: 2023 | C174: FDLE-CD-168-2023 | D174: https://community.secop.gov.co/Public/Tendering/ContractNoticePhases/View?PPI=CO1.PPI.22769023&isFromPublicArea=True&isModal=False | E174: Contratos de prestación de servicios | F174: Contratación directa | G174: Prestación de servicios profesionales y de apoyo a la gestión, o para la ejecución de trabajos artísticos que sólo puedan encomendarse a determinadas personas naturales | H174: APOYAR JURÍDICAMENTE LA EJECUCIÓN DE LAS ACCIONES REQUERIDAS PARA LA DEPURACIÓN DE LAS ACTUACIONES ADMINISTRATIVAS QUE CURSAN EN LA ALCALDÍA LOCAL. | I174: Inversión | J174: Un nuevo contrato social y ambiental para la Bogotá del Siglo XXI | K174: 57 | L174: =IF(ISERROR(VLOOKUP(K174,Proposito_programa!$C$2:$E$59,2,FALSE))," ",VLOOKUP(K174,Proposito_programa!$C$2:$E$59,2,FALSE)) -> Gestión pública local | M174: =IF(ISERROR(VLOOKUP(K174,Proposito_programa!$C$2:$E$59,3,FALSE))," ",VLOOKUP(K174,Proposito_programa!$C$2:$E$59,3,FALSE)) -> Propósito 5: Construir Bogotá - Región con gobierno abierto, transparente y ciudadanía consciente | N174: 1624 | O174: 9 | P174: 1018489205 | Q174: JENNIFER STEPHANIE SUAVITA NIÑO | R174: Persona Natural | W174: 41130000 | Y174: 1 | Z174: 4570000 | AA174: 45700000 | AB174: 45700001 | AC174: 2023-02-08 | AD174: 2023-02-13 | AE174: 2023-12-12 | AF174: 300 | AG174: 1 | AH174: 30 | AI174: 1018489205 | AJ174: JENNIFER STEPHANIE SUAVITA NIÑO | AK174: 2023-10-25 | AL174: 7159667 | AM174: Terminado | AN174: 1.000000022
A175: 169 | B175: 2023 | C175: FDLE-CD-169-2023 | D175: https://community.secop.gov.co/Public/Tendering/OpportunityDetail/Index?noticeUID=CO1.NTC.3934795&isFromPublicArea=True&isModal=False | E175: Contratos de prestación de servicios | F175: Contratación directa | G175: Prestación de servicios profesionales y de apoyo a la gestión, o para la ejecución de trabajos artísticos que sólo puedan encomendarse a determinadas personas naturales | H175: APOYAR JURÍDICAMENTE LA EJECUCIÓN DE LAS ACCIONES REQUERIDAS PARA LA DEPURACIÓN DE LAS ACTUACIONES ADMINISTRATIVAS QUE CURSAN EN LA ALCALDÍA LOCAL. | I175: Inversión | J175: Un nuevo contrato social y ambiental para la Bogotá del Siglo XXI | K175: 57 | L175: =IF(ISERROR(VLOOKUP(K175,Proposito_programa!$C$2:$E$59,2,FALSE))," ",VLOOKUP(K175,Proposito_programa!$C$2:$E$59,2,FALSE)) -> Gestión pública local | M175: =IF(ISERROR(VLOOKUP(K175,Proposito_programa!$C$2:$E$59,3,FALSE))," ",VLOOKUP(K175,Proposito_programa!$C$2:$E$59,3,FALSE)) -> Propósito 5: Construir Bogotá - Región con gobierno abierto, transparente y ciudadanía consciente | N175: 1624 | O175: 1 | P175: 53160114 | Q175: NATHALIA MARIA RUIZ GUERRERO | R175: Persona Natural | W175: 41130000 | Y175: 1 | Z175: 4570000 | AA175: 45700000 | AB175: 45700001 | AC175: 2023-02-06 | AD175: 2023-02-07 | AE175: 2023-12-06 | AF175: 300 | AG175: 1 | AH175: 30 | AM175: Terminado | AN175: 1.000000022
A176: 170 | B176: 2023 | C176: FDLE-CD-170-2023 | D176: https://community.secop.gov.co/Public/Tendering/OpportunityDetail/Index?noticeUID=CO1.NTC.3935643&isFromPublicArea=True&isModal=False | E176: Contratos de prestación de servicios | F176: Contratación directa | G176: Prestación de servicios profesionales y de apoyo a la gestión, o para la ejecución de trabajos artísticos que sólo puedan encomendarse a determinadas personas naturales | H176: LA PRESTACIÓN DE SERVICIOS PROFESIONALES DE APOYO AL SEGUIMIENTO DEL CUMPLIMIENTO DE LOS PROCESOS Y PROCEDIMIENTOS QUE SE DERIVEN DE LOS DISTINTOS PROCESOS CONTRACTUALES DEL FONDO DE DESARROLLO LOCAL DE ENGATIVÁ. | I176: Inversión | J176: Un nuevo contrato social y ambiental para la Bogotá del Siglo XXI | K176: 57 | L176: =IF(ISERROR(VLOOKUP(K176,Proposito_programa!$C$2:$E$59,2,FALSE))," ",VLOOKUP(K176,Proposito_programa!$C$2:$E$59,2,FALSE)) -> Gestión pública local | M176: =IF(ISERROR(VLOOKUP(K176,Proposito_programa!$C$2:$E$59,3,FALSE))," ",VLOOKUP(K176,Proposito_programa!$C$2:$E$59,3,FALSE)) -> Propósito 5: Construir Bogotá - Región con gobierno abierto, transparente y ciudadanía consciente | N176: 1623 | O176: 1 | P176: 79580303 | Q176: HECTOR RINCON SALAZAR | R176: Persona Natural | W176: 49500000 | Y176: 1 | Z176: 24750000 | AA176: 74250000 | AB176: 74250001 | AC176: 2023-02-06 | AD176: 2023-02-13 | AE176: 2024-03-27 | AF176: 405 | AG176: 1 | AH176: 135 | AM176: En ejecución | AN176: 1.000000013
A177: 171 | B177: 2023 | C177: FDLE-CD-171-2023 | D177: https://community.secop.gov.co/Public/Tendering/OpportunityDetail/Index?noticeUID=CO1.NTC.3936451&isFromPublicArea=True&isModal=False | E177: Contratos de prestación de servicios | F177: Contratación directa | G177: Prestación de servicios profesionales y de apoyo a la gestión, o para la ejecución de trabajos artísticos que sólo puedan encomendarse a determinadas personas naturales | H177: LA PRESTACIÓN DE SERVICIOS PROFESIONALES ESPECIALIZADOS, AL ÁREA DE GESTIÓN DE DESARROLLO LOCAL, APOYANDO A LIDERAR LAS ESTRATEGIAS Y ACTIVIDADES RELACIONADAS CON LA SUPERVISIÓN Y LIQUIDACIÓN DE CONTRATOS Y/O CONVENIOS. | I177: Inversión | J177: Un nuevo contrato social y ambiental para la Bogotá del Siglo XXI | K177: 57 | L177: =IF(ISERROR(VLOOKUP(K177,Proposito_programa!$C$2:$E$59,2,FALSE))," ",VLOOKUP(K177,Proposito_programa!$C$2:$E$59,2,FALSE)) -> Gestión pública local | M177: =IF(ISERROR(VLOOKUP(K177,Proposito_programa!$C$2:$E$59,3,FALSE))," ",VLOOKUP(K177,Proposito_programa!$C$2:$E$59,3,FALSE)) -> Propósito 5: Construir Bogotá - Región con gobierno abierto, transparente y ciudadanía consciente | N177: 1623 | O177: 9 | P177: 52011159 | Q177: ALBA TERESA TRIANA RUBIANO | R177: Persona Natural | W177: 72000000 | Y177: 1 | Z177: 32000000 | AA177: 104000000 | AB177: 104000001 | AC177: 2023-02-06 | AD177: 2023-02-08 | AE177: 2024-03-07 | AF177: 390 | AG177: 1 | AH177: 120 | AM177: En ejecución | AN177: 1.00000001
A178: 172 | B178: 2023 | C178: FDLE-CD-172-2023 | D178: https://community.secop.gov.co/Public/Tendering/OpportunityDetail/Index?noticeUID=CO1.NTC.3941886&isFromPublicArea=True&isModal=False | E178: Contratos de prestación de servicios | F178: Contratación directa | G178: Prestación de servicios profesionales y de apoyo a la gestión, o para la ejecución de trabajos artísticos que sólo puedan encomendarse a determinadas personas naturales | H178: LA PRESTACIÓN DE SERVICIOS PROFESIONALES, AL ÁREA DE GESTIÓN DE DESARROLLO LOCAL, REALIZANDO SEGUIMIENTO A LAS ACTIVIDADES RELACIONADAS CON EL APOYO A LA SUPERVISIÓN Y/O LIQUIDACION DE CONTRATOS Y/O CONVENIOS QUE LE SEAN DESIGNADOS Y DEMÁS ACTIVIDADES QUE SE REQUIERAN | I178: Inversión | J178: Un nuevo contrato social y ambiental para la Bogotá del Siglo XXI | K178: 57 | L178: =IF(ISERROR(VLOOKUP(K178,Proposito_programa!$C$2:$E$59,2,FALSE))," ",VLOOKUP(K178,Proposito_programa!$C$2:$E$59,2,FALSE)) -> Gestión pública local | M178: =IF(ISERROR(VLOOKUP(K178,Proposito_programa!$C$2:$E$59,3,FALSE))," ",VLOOKUP(K178,Proposito_programa!$C$2:$E$59,3,FALSE)) -> Propósito 5: Construir Bogotá - Región con gobierno abierto, transparente y ciudadanía consciente | N178: 1623 | O178: 8 | P178: 52888092 | Q178: JOHANNA ANDREA MORA LOPEZ | R178: Persona Natural | W178: 51300000 | Y178: 1 | Z178: 25650000 | AA178: 76950000 | AB178: 76950001 | AC178: 2023-02-06 | AD178: 2023-02-13 | AE178: 2024-03-27 | AF178: 405 | AG178: 1 | AH178: 135 | AM178: En ejecución | AN178: 1.000000013
A179: 173 | B179: 2023 | C179: FDLE-CD-173-2023 | D179: https://community.secop.gov.co/Public/Tendering/OpportunityDetail/Index?noticeUID=CO1.NTC.3933520&isFromPublicArea=True&isModal=False | E179: Contratos de prestación de servicios | F179: Contratación directa | G179: Prestación de servicios profesionales y de apoyo a la gestión, o para la ejecución de trabajos artísticos que sólo puedan encomendarse a determinadas personas naturales | H179: LA PRESTACIÓN DE SERVICIOS PROFESIONALES, AL ÁREA DE GESTIÓN DE DESARROLLO LOCAL, REALIZANDO SEGUIMIENTO A LAS ACTIVIDADES RELACIONADAS CON EL APOYO A LA SUPERVISIÓN Y/O LIQUIDACION DE CONTRATOS Y/O CONVENIOS QUE LE SEAN DESIGNADOS Y DEMÁS ACTIVIDADES QUE SE REQUIERAN | I179: Inversión | J179: Un nuevo contrato social y ambiental para la Bogotá del Siglo XXI | K179: 57 | L179: =IF(ISERROR(VLOOKUP(K179,Proposito_programa!$C$2:$E$59,2,FALSE))," ",VLOOKUP(K179,Proposito_programa!$C$2:$E$59,2,FALSE)) -> Gestión pública local | M179: =IF(ISERROR(VLOOKUP(K179,Proposito_programa!$C$2:$E$59,3,FALSE))," ",VLOOKUP(K179,Proposito_programa!$C$2:$E$59,3,FALSE)) -> Propósito 5: Construir Bogotá - Región con gobierno abierto, transparente y ciudadanía consciente | N179: 1623 | O179: 7 | P179: 1077972238 | Q179: MIGUEL ANGEL ACOSTA PEREZ | R179: Persona Natural | W179: 51300000 | Y179: 1 | Z179: 25460000 | AA179: 76760000 | AB179: 76760001 | AC179: 2023-02-06 | AD179: 2023-02-08 | AE179: 2024-03-21 | AF179: 404 | AG179: 1 | AH179: 134 | AM179: En ejecución | AN179: 1.000000013
A180: 174 | B180: 2023 | C180: FDLE-CD-174-2023 | D180: https://community.secop.gov.co/Public/Tendering/OpportunityDetail/Index?noticeUID=CO1.NTC.3933226&isFromPublicArea=True&isModal=False | E180: Contratos de prestación de servicios | F180: Contratación directa | G180: Prestación de servicios profesionales y de apoyo a la gestión, o para la ejecución de trabajos artísticos que sólo puedan encomendarse a determinadas personas naturales | H180: LA PRESTACIÓN DE SERVICIOS PROFESIONALES, AL ÁREA DE GESTIÓN DE DESARROLLO LOCAL, REALIZANDO SEGUIMIENTO A LAS ACTIVIDADES RELACIONADAS CON EL APOYO A LA SUPERVISIÓN Y/O LIQUIDACION DE CONTRATOS Y/O CONVENIOS QUE LE SEAN DESIGNADOS Y DEMÁS ACTIVIDADES QUE SE REQUIERAN | I180: Inversión | J180: Un nuevo contrato social y ambiental para la Bogotá del Siglo XXI | K180: 57 | L180: =IF(ISERROR(VLOOKUP(K180,Proposito_programa!$C$2:$E$59,2,FALSE))," ",VLOOKUP(K180,Proposito_programa!$C$2:$E$59,2,FALSE)) -> Gestión pública local | M180: =IF(ISERROR(VLOOKUP(K180,Proposito_programa!$C$2:$E$59,3,FALSE))," ",VLOOKUP(K180,Proposito_programa!$C$2:$E$59,3,FALSE)) -> Propósito 5: Construir Bogotá - Región con gobierno abierto, transparente y ciudadanía consciente | N180: 1623 | O180: 1 | P180: 1032480238 | Q180: NATALIA MARCELA REINA SUAREZ | R180: Persona Natural | W180: 51300000 | Y180: 1 | Z180: 25460000 | AA180: 76760000 | AB180: 76760001 | AC180: 2023-02-06 | AD180: 2023-02-08 | AE180: 2024-03-21 | AF180: 404 | AG180: 1 | AH180: 134 | AM180: En ejecución | AN180: 1.000000013
A181: 175 | B181: 2023 | C181: FDLE-CD-175-2023 | D181: https://community.secop.gov.co/Public/Tendering/OpportunityDetail/Index?noticeUID=CO1.NTC.3906317&isFromPublicArea=True&isModal=False | E181: Contratos de prestación de servicios | F181: Contratación directa | G181: Prestación de servicios profesionales y de apoyo a la gestión, o para la ejecución de trabajos artísticos que sólo puedan encomendarse a determinadas personas naturales | H181: LA PRESTACIÓN DE SERVICIOS PROFESIONALES, AL ÁREA DE GESTIÓN DE DESARROLLO LOCAL, REALIZANDO SEGUIMIENTO A LAS ACTIVIDADES RELACIONADAS CON EL APOYO A LA SUPERVISIÓN Y/O LIQUIDACION DE CONTRATOS Y/O CONVENIOS QUE LE SEAN DESIGNADOS Y DEMÁS ACTIVIDADES QUE SE REQUIERAN | I181: Inversión | J181: Un nuevo contrato social y ambiental para la Bogotá del Siglo XXI | K181: 57 | L181: =IF(ISERROR(VLOOKUP(K181,Proposito_programa!$C$2:$E$59,2,FALSE))," ",VLOOKUP(K181,Proposito_programa!$C$2:$E$59,2,FALSE)) -> Gestión pública local | M181: =IF(ISERROR(VLOOKUP(K181,Proposito_programa!$C$2:$E$59,3,FALSE))," ",VLOOKUP(K181,Proposito_programa!$C$2:$E$59,3,FALSE)) -> Propósito 5: Construir Bogotá - Región con gobierno abierto, transparente y ciudadanía consciente | N181: 1623 | O181: 7 | P181: 52859225 | Q181: SANDRA MILENA RODRIGUEZ AMARILLO | R181: Persona Natural | W181: 51300000 | Y181: 1 | Z181: 25460000 | AA181: 76760000 | AB181: 76760001 | AC181: 2023-02-06 | AD181: 2023-02-08 | AE181: 2024-03-21 | AF181: 404 | AG181: 1 | AH181: 134 | AI181: 52859225 | AJ181: SANDRA MILENA RODRIGUEZ AMARILLO | AK181: 2023-12-05 | AL181: 19950000 | AM181: En ejecución | AN181: 1.000000013
A182: 176 | B182: 2023 | C182: FDLE-CD-176-2023 | D182: https://community.secop.gov.co/Public/Tendering/OpportunityDetail/Index?noticeUID=CO1.NTC.3942285&isFromPublicArea=True&isModal=False | E182: Contratos de prestación de servicios | F182: Contratación directa | G182: Prestación de servicios profesionales y de apoyo a la gestión, o para la ejecución de trabajos artísticos que sólo puedan encomendarse a determinadas personas naturales | H182: LA PRESTACIÓN DE SERVICIOS PROFESIONALES, AL ÁREA DE GESTIÓN DE DESARROLLO LOCAL, REALIZANDO SEGUIMIENTO A LAS ACTIVIDADES RELACIONADAS CON LA SUPERVISIÓN Y/O LIQUIDACION DE CONTRATOS Y/O CONVENIOS QUE LE SEAN DESIGNADOS Y DEMÁS ACTIVIDADES QUE SE REQUIERAN | I182: Inversión | J182: Un nuevo contrato social y ambiental para la Bogotá del Siglo XXI | K182: 57 | L182: =IF(ISERROR(VLOOKUP(K182,Proposito_programa!$C$2:$E$59,2,FALSE))," ",VLOOKUP(K182,Proposito_programa!$C$2:$E$59,2,FALSE)) -> Gestión pública local | M182: =IF(ISERROR(VLOOKUP(K182,Proposito_programa!$C$2:$E$59,3,FALSE))," ",VLOOKUP(K182,Proposito_programa!$C$2:$E$59,3,FALSE)) -> Propósito 5: Construir Bogotá - Región con gobierno abierto, transparente y ciudadanía consciente | N182: 1623 | O182: 5 | P182: 1020713778 | Q182: JEIMMY JULIETH VANEGAS MESA | R182: Persona Natural | W182: 62700000 | Y182: 1 | Z182: 28500000 | AA182: 91200000 | AB182: 91200001 | AC182: 2023-02-07 | AD182: 2023-02-13 | AE182: 2024-06-12 | AF182: 480 | AG182: 1 | AH182: 150 | AM182: En ejecución | AN182: 1.000000011
A183: 177 | B183: 2023 | C183: FDLE-CD-177-2023- | D183: https://community.secop.gov.co/Public/Tendering/OpportunityDetail/Index?noticeUID=CO1.NTC.3946537&isFromPublicArea=True&isModal=False | E183: Contratos de prestación de servicios | F183: Contratación directa | G183: Prestación de servicios profesionales y de apoyo a la gestión, o para la ejecución de trabajos artísticos que sólo puedan encomendarse a determinadas personas naturales | H183: PRESTAR LOS SERVICIOS PROFESIONALES ESPECIALIZADOS COMO ABOGADO (A) PARA APOYAR LA FORMULACIÓN DE PROYECTOS DE INVERSIÓN DEL PLAN DE DESARROLLO LOCAL 2021 - 2024 “UN NUEVO CONTRATO SOCIAL Y AMBIENTAL PARA ENGATIVÁ | I183: Inversión | J183: Un nuevo contrato social y ambiental para la Bogotá del Siglo XXI | K183: 57 | L183: =IF(ISERROR(VLOOKUP(K183,Proposito_programa!$C$2:$E$59,2,FALSE))," ",VLOOKUP(K183,Proposito_programa!$C$2:$E$59,2,FALSE)) -> Gestión pública local | M183: =IF(ISERROR(VLOOKUP(K183,Proposito_programa!$C$2:$E$59,3,FALSE))," ",VLOOKUP(K183,Proposito_programa!$C$2:$E$59,3,FALSE)) -> Propósito 5: Construir Bogotá - Región con gobierno abierto, transparente y ciudadanía consciente | N183: 1623 | O183: 5 | P183: 55301854 | Q183: SHADIA MARGARITA KUZMAR JASSIR | R183: Persona Natural | W183: 72000000 | Y183: 1 | Z183: 24000000 | AA183: 96000000 | AB183: 96000001 | AC183: 2023-02-07 | AD183: 2023-02-13 | AE183: 2024-02-12 | AF183: 360 | AG183: 1 | AH183: 90 | AM183: En ejecución | AN183: 1.00000001
A184: 178 | B184: 2023 | C184: FDLE-CD-178-2023 | D184: https://community.secop.gov.co/Public/Tendering/OpportunityDetail/Index?noticeUID=CO1.NTC.3877211&isFromPublicArea=True&isModal=False | E184: Contratos de prestación de servicios | F184: Contratación directa | G184: Prestación de servicios profesionales y de apoyo a la gestión, o para la ejecución de trabajos artísticos que sólo puedan encomendarse a determinadas personas naturales | H184: LA PRESTACIÓN DE SERVICIOS PROFESIONALES DE APOYO AL ÁREA DE GESTIÓN DE DESARROLLO LOCAL, EN LAS ACTIVIDADES RELACIONADAS CON LA EJECUCIÓN Y SEGUIMIENTO DE LOS PROYECTOS DESARROLLADOS EN ARTICULACIÓN CON EL SECTOR DE INTEGRACIÓN SOCIAL. | I184: Inversión | J184: Un nuevo contrato social y ambiental para la Bogotá del Siglo XXI | K184: 55 | L184: =IF(ISERROR(VLOOKUP(K184,Proposito_programa!$C$2:$E$59,2,FALSE))," ",VLOOKUP(K184,Proposito_programa!$C$2:$E$59,2,FALSE)) -> Fortalecimiento de cultura ciudadana y su institucionalidad | M184: =IF(ISERROR(VLOOKUP(K184,Proposito_programa!$C$2:$E$59,3,FALSE))," ",VLOOKUP(K184,Proposito_programa!$C$2:$E$59,3,FALSE)) -> Propósito 5: Construir Bogotá - Región con gobierno abierto, transparente y ciudadanía consciente | N184: 1622 | O184: 3 | P184: 1014235862 | Q184: CRISTHYAN CAMILO MOORE LOMBANA | R184: Persona Natural | W184: 41130000 | Y184: 1 | Z184: 18280000 | AA184: 59410000 | AB184: 59410001 | AC184: 2023-01-30 | AD184: 2023-02-01 | AE184: 2024-02-29 | AF184: 390 | AG184: 1 | AH184: 120 | AM184: En ejecución | AN184: 1.000000017
A185: 179 | B185: 2023 | C185: FDLE-CD-179-2023 | D185: https://community.secop.gov.co/Public/Tendering/OpportunityDetail/Index?noticeUID=CO1.NTC.3913888&isFromPublicArea=True&isModal=False | E185: Contratos de prestación de servicios | F185: Contratación directa | G185: Prestación de servicios profesionales y de apoyo a la gestión, o para la ejecución de trabajos artísticos que sólo puedan encomendarse a determinadas personas naturales | H185: APOYAR TÉCNICAMENTE LAS DISTINTAS ETAPAS DE LOS PROCESOS DE COMPETENCIA DE LA ALCALDÍA LOCAL PARA LA DEPURACIÓN DE ACTUACIONES ADMINISTRATIVAS. | I185: Inversión | J185: Un nuevo contrato social y ambiental para la Bogotá del Siglo XXI | K185: 57 | L185: =IF(ISERROR(VLOOKUP(K185,Proposito_programa!$C$2:$E$59,2,FALSE))," ",VLOOKUP(K185,Proposito_programa!$C$2:$E$59,2,FALSE)) -> Gestión pública local | M185: =IF(ISERROR(VLOOKUP(K185,Proposito_programa!$C$2:$E$59,3,FALSE))," ",VLOOKUP(K185,Proposito_programa!$C$2:$E$59,3,FALSE)) -> Propósito 5: Construir Bogotá - Región con gobierno abierto, transparente y ciudadanía consciente | N185: 1624 | O185: 4 | P185: 80865011 | Q185: ELKIN FREDDY BUSTOS GARCIA | R185: Persona Natural | W185: 46620000 | Y185: 1 | Z185: 20720000 | AA185: 67340000 | AB185: 67340001 | AC185: 2023-02-02 | AD185: 2023-02-08 | AE185: 2024-03-07 | AF185: 390 | AG185: 1 | AH185: 120 | AM185: En ejecución | AN185: 1.000000015
A186: 180 | B186: 2023 | C186: FDLE-CD-180-2023 | D186: https://community.secop.gov.co/Public/Tendering/OpportunityDetail/Index?noticeUID=CO1.NTC.3887643&isFromPublicArea=True&isModal=False | E186: Contratos de prestación de servicios | F186: Contratación directa | G186: Prestación de servicios profesionales y de apoyo a la gestión, o para la ejecución de trabajos artísticos que sólo puedan encomendarse a determinadas personas naturales | H186: APOYAR TÉCNICAMENTE A LOS RESPONSABLES E INTEGRANTES DE LOS PROCESOS EN LA IMPLEMENTACIÓN DE HERRAMIENTAS DE GESTIÓN, SIGUIENDO LOS LINEAMIENTOS METODOLÓGICOS ESTABLECIDOS POR LA OFICINA ASESORA DE PLANEACIÓN DE LA SECRETARÍA DISTRITAL DE GOBIERNO. | I186: Inversión | J186: Un nuevo contrato social y ambiental para la Bogotá del Siglo XXI | K186: 57 | L186: =IF(ISERROR(VLOOKUP(K186,Proposito_programa!$C$2:$E$59,2,FALSE))," ",VLOOKUP(K186,Proposito_programa!$C$2:$E$59,2,FALSE)) -> Gestión pública local | M186: =IF(ISERROR(VLOOKUP(K186,Proposito_programa!$C$2:$E$59,3,FALSE))," ",VLOOKUP(K186,Proposito_programa!$C$2:$E$59,3,FALSE)) -> Propósito 5: Construir Bogotá - Región con gobierno abierto, transparente y ciudadanía consciente | N186: 1623 | O186: 0 | P186: 2955609 | Q186: JAIME ENRIQUE TORRES GARZÓN | R186: Persona Natural | W186: 58500000 | Y186: 1 | Z186: 26000000 | AA186: 84500000 | AB186: 84500001 | AC186: 2023-02-08 | AD186: 2023-02-13 | AE186: 2024-03-12 | AF186: 390 | AG186: 1 | AH186: 120 | AM186: En ejecución | AN186: 1.000000012
A187: 181 | B187: 2023 | C187: FDLE-CD-181-2023 | D187: https://community.secop.gov.co/Public/Tendering/OpportunityDetail/Index?noticeUID=CO1.NTC.3887911&isFromPublicArea=True&isModal=False | E187: Contratos de prestación de servicios | F187: Contratación directa | G187: Prestación de servicios profesionales y de apoyo a la gestión, o para la ejecución de trabajos artísticos que sólo puedan encomendarse a determinadas personas naturales | H187: PRESTAR SERVICIOS PROFESIONALES CON EL FIN DE APOYAR AL PROMOTOR DE LA MEJORA LOCAL EN LOS PROCESOS DE IMPLEMENTACIÓN DE HERRAMIENTAS DE GESTIÓN, SIGUIENDO LOS LINEAMIENTOS METODOLÓGICOS ESTABLECIDOS POR LA OFICINA ASESORA DE PLANEACIÓN DE LA SECRETARÍA DISTRITAL DE GOBIERNO, EN EL FONDO DE DESARROLLO LOCAL DE ENGATIVÁ | I187: Inversión | J187: Un nuevo contrato social y ambiental para la Bogotá del Siglo XXI | K187: 57 | L187: =IF(ISERROR(VLOOKUP(K187,Proposito_programa!$C$2:$E$59,2,FALSE))," ",VLOOKUP(K187,Proposito_programa!$C$2:$E$59,2,FALSE)) -> Gestión pública local | M187: =IF(ISERROR(VLOOKUP(K187,Proposito_programa!$C$2:$E$59,3,FALSE))," ",VLOOKUP(K187,Proposito_programa!$C$2:$E$59,3,FALSE)) -> Propósito 5: Construir Bogotá - Región con gobierno abierto, transparente y ciudadanía consciente | N187: 1623 | O187: 6 | P187: 1015411039 | Q187: DAMIAN ALFREDO BELTRAN SIERRA | R187: Persona Natural | W187: 50270000 | Y187: 1 | Z187: 22850000 | AA187: 73120000 | AB187: 73120001 | AC187: 2023-02-08 | AD187: 2023-02-13 | AE187: 2024-06-12 | AF187: 480 | AG187: 1 | AH187: 150 | AM187: En ejecución | AN187: 1.000000014
A188: 182 | B188: 2023 | C188: FDLE-CD-182-2023 | D188: https://community.secop.gov.co/Public/Tendering/OpportunityDetail/Index?noticeUID=CO1.NTC.3886307&isFromPublicArea=True&isModal=False | E188: Contratos de prestación de servicios | F188: Contratación directa | G188: Prestación de servicios profesionales y de apoyo a la gestión, o para la ejecución de trabajos artísticos que sólo puedan encomendarse a determinadas personas naturales | H188: LA PRESTACIÓN DE SERVICIOS PROFESIONALES AL ÁREA DE GESTIÓN DE DESARROLLO LOCAL DE ENGATIVÁ, EN LOS TRÁMITES RELACIONADOS CON LOS PROCESOS PRECONTRACTUALES, CONTRACTUALES Y POS CONTRACTUALES Y EN LAS DEMÁS ACTIVIDADES QUE ALLÍ SE REQUIERAN | I188: Inversión | J188: Un nuevo contrato social y ambiental para la Bogotá del Siglo XXI | K188: 57 | L188: =IF(ISERROR(VLOOKUP(K188,Proposito_programa!$C$2:$E$59,2,FALSE))," ",VLOOKUP(K188,Proposito_programa!$C$2:$E$59,2,FALSE)) -> Gestión pública local | M188: =IF(ISERROR(VLOOKUP(K188,Proposito_programa!$C$2:$E$59,3,FALSE))," ",VLOOKUP(K188,Proposito_programa!$C$2:$E$59,3,FALSE)) -> Propósito 5: Construir Bogotá - Región con gobierno abierto, transparente y ciudadanía consciente | N188: 1623 | O188: 9 | P188: 80871240 | Q188: JOSE LUIS MENDIETA PAREDES | R188: Persona Natural | W188: 77000000 | Y188: 1 | Z188: 35000000 | AA188: 112000000 | AB188: 112000001 | AC188: 2023-02-01 | AD188: 2023-02-01 | AE188: 2024-05-31 | AF188: 480 | AG188: 1 | AH188: 150 | AM188: En ejecución | AN188: 1.000000009
A189: 183 | B189: 2023 | C189: FDLE-CD-183-2023- | D189: https://community.secop.gov.co/Public/Tendering/OpportunityDetail/Index?noticeUID=CO1.NTC.3950055&isFromPublicArea=True&isModal=False | E189: Contratos de prestación de servicios | F189: Contratación directa | G189: Prestación de servicios profesionales y de apoyo a la gestión, o para la ejecución de trabajos artísticos que sólo puedan encomendarse a determinadas personas naturales | H189: LA PRESTACIÓN DE SERVICIOS PROFESIONALES DE APOYO AL ÁREA DE GESTIÓN DE DESARROLLO LOCAL, EN LAS ACTIVIDADES DE CONTABILIDAD QUE ALLÍ SE GENEREN Y LE SEAN DESIGNADAS. | I189: Inversión | J189: Un nuevo contrato social y ambiental para la Bogotá del Siglo XXI | K189: 57 | L189: =IF(ISERROR(VLOOKUP(K189,Proposito_programa!$C$2:$E$59,2,FALSE))," ",VLOOKUP(K189,Proposito_programa!$C$2:$E$59,2,FALSE)) -> Gestión pública local | M189: =IF(ISERROR(VLOOKUP(K189,Proposito_programa!$C$2:$E$59,3,FALSE))," ",VLOOKUP(K189,Proposito_programa!$C$2:$E$59,3,FALSE)) -> Propósito 5: Construir Bogotá - Región con gobierno abierto, transparente y ciudadanía consciente | N189: 1623 | O189: 4 | P189: 52357442 | Q189: MARICELY JANNETH FUENTES VALBUENA | R189: Persona Natural | W189: 41130000 | Y189: 1 | Z189: 18280000 | AA189: 59410000 | AB189: 59410001 | AC189: 2023-02-28 | AD189: 2023-03-01 | AE189: 2024-03-31 | AF189: 390 | AG189: 1 | AH189: 120 | AM189: En ejecución | AN189: 1.000000017
A190: 184 | B190: 2023 | C190: FDLE-CD-184-2023 | D190: https://community.secop.gov.co/Public/Tendering/OpportunityDetail/Index?noticeUID=CO1.NTC.3863801&isFromPublicArea=True&isModal=False | E190: Contratos de prestación de servicios | F190: Contratación directa | G190: Prestación de servicios profesionales y de apoyo a la gestión, o para la ejecución de trabajos artísticos que sólo puedan encomendarse a determinadas personas naturales | H190: LA PRESTACIÓN DE SERVICIOS PROFESIONALES DE APOYO AL ÁREA DE GESTIÓN DE DESARROLLO LOCAL, EN LAS ACTIVIDADES DE CONTABILIDAD QUE ALLÍ SE GENEREN Y LE SEAN DESIGNADAS. | I190: Inversión | J190: Un nuevo contrato social y ambiental para la Bogotá del Siglo XXI | K190: 57 | L190: =IF(ISERROR(VLOOKUP(K190,Proposito_programa!$C$2:$E$59,2,FALSE))," ",VLOOKUP(K190,Proposito_programa!$C$2:$E$59,2,FALSE)) -> Gestión pública local | M190: =IF(ISERROR(VLOOKUP(K190,Proposito_programa!$C$2:$E$59,3,FALSE))," ",VLOOKUP(K190,Proposito_programa!$C$2:$E$59,3,FALSE)) -> Propósito 5: Construir Bogotá - Región con gobierno abierto, transparente y ciudadanía consciente | N190: 1623 | O190: 8 | P190: 1077971114 | Q190: DIANA ALEJANDRA MORERA SANCHEZ | R190: Persona Natural | W190: 41130000 | AA190: 41130000 | AB190: 41130000 | AC190: 2023-01-30 | AD190: 2023-02-01 | AE190: 2023-04-21 | AF190: 270 | AM190: Terminado | AN190: 1
A191: 185 | B191: 2023 | C191: FDLE-CD-185-2023 | D191: https://community.secop.gov.co/Public/Tendering/OpportunityDetail/Index?noticeUID=CO1.NTC.3889150&isFromPublicArea=True&isModal=False | E191: Contratos de prestación de servicios | F191: Contratación directa | G191: Prestación de servicios profesionales y de apoyo a la gestión, o para la ejecución de trabajos artísticos que sólo puedan encomendarse a determinadas personas naturales | H191: LA PRESTACIÓN DE SERVICIOS PROFESIONALES AL ÁREA DE GESTIÓN DE DESARROLLO LOCAL DE ENGATIVÁ, EN LOS TRÁMITES RELACIONADOS CON LOS PROCESOS PRECONTRACTUALES, CONTRACTUALES Y POS CONTRACTUALES Y EN LAS DEMÁS ACTIVIDADES QUE ALLÍ SE REQUIERAN | I191: Inversión | J191: Un nuevo contrato social y ambiental para la Bogotá del Siglo XXI | K191: 57 | L191: =IF(ISERROR(VLOOKUP(K191,Proposito_programa!$C$2:$E$59,2,FALSE))," ",VLOOKUP(K191,Proposito_programa!$C$2:$E$59,2,FALSE)) -> Gestión pública local | M191: =IF(ISERROR(VLOOKUP(K191,Proposito_programa!$C$2:$E$59,3,FALSE))," ",VLOOKUP(K191,Proposito_programa!$C$2:$E$59,3,FALSE)) -> Propósito 5: Construir Bogotá - Región con gobierno abierto, transparente y ciudadanía consciente | N191: 1623 | O191: 5 | P191: 33084299 | Q191: HEIDDY JHANETH PAYARES NAVARRO | R191: Persona Natural | W191: 77000000 | Y191: 1 | Z191: 35000000 | AA191: 112000000 | AB191: 112000001 | AC191: 2023-02-01 | AD191: 2023-02-01 | AE191: 2024-06-15 | AF191: 480 | AG191: 1 | AH191: 150 | AM191: En ejecución | AN191: 1.000000009
A192: 186 | B192: 2023 | C192: FDLE-CD-186-2023 | D192: https://community.secop.gov.co/Public/Tendering/OpportunityDetail/Index?noticeUID=CO1.NTC.3886736&isFromPublicArea=True&isModal=False | E192: Contratos de prestación de servicios | F192: Contratación directa | G192: Prestación de servicios profesionales y de apoyo a la gestión, o para la ejecución de trabajos artísticos que sólo puedan encomendarse a determinadas personas naturales | H192: LA PRESTACIÓN DE SERVICIOS DE APOYO TÉCNICO AL ÁREA DE GESTIÓN DE DESARROLLO LOCAL, EN LOS TRÁMITES ADMINISTRATIVOS DE CONTRATACIÓN QUE SE GENERAN EN EL FONDO DE DESARROLLO LOCAL DE ENGATIVÁ. | I192: Inversión | J192: Un nuevo contrato social y ambiental para la Bogotá del Siglo XXI | K192: 57 | L192: =IF(ISERROR(VLOOKUP(K192,Proposito_programa!$C$2:$E$59,2,FALSE))," ",VLOOKUP(K192,Proposito_programa!$C$2:$E$59,2,FALSE)) -> Gestión pública local | M192: =IF(ISERROR(VLOOKUP(K192,Proposito_programa!$C$2:$E$59,3,FALSE))," ",VLOOKUP(K192,Proposito_programa!$C$2:$E$59,3,FALSE)) -> Propósito 5: Construir Bogotá - Región con gobierno abierto, transparente y ciudadanía consciente | N192: 1623 | O192: 3 | P192: 80875088 | Q192: IVAN CAMILO RODRIGUEZ WILCHES | R192: Persona Natural | W192: 44000000 | Y192: 1 | Z192: 20000000 | AA192: 64000000 | AB192: 64000001 | AC192: 2023-02-01 | AD192: 2023-02-01 | AE192: 2024-05-31 | AF192: 480 | AG192: 1 | AH192: 150 | AM192: En ejecución | AN192: 1.000000016
A193: 187 | B193: 2023 | C193: FDLE-CD-187-2023 | D193: https://community.secop.gov.co/Public/Tendering/OpportunityDetail/Index?noticeUID=CO1.NTC.3905252&isFromPublicArea=True&isModal=False | E193: Contratos de prestación de servicios | F193: Contratación directa | G193: Prestación de servicios profesionales y de apoyo a la gestión, o para la ejecución de trabajos artísticos que sólo puedan encomendarse a determinadas personas naturales | H193: LA PRESTACIÓN DE SERVICIOS PROFESIONALES AL ÁREA DE GESTIÓN DE DESARROLLO LOCAL, EN LA FORMULACIÓN DE PROYECTOS DE INVERSIÓN DEL PLAN DE DESARROLLO LOCAL 2021 - 2024 “UN NUEVO CONTRATO SOCIAL Y AMBIENTAL PARA ENGATIVÁ” | I193: Inversión | J193: Un nuevo contrato social y ambiental para la Bogotá del Siglo XXI | K193: 57 | L193: =IF(ISERROR(VLOOKUP(K193,Proposito_programa!$C$2:$E$59,2,FALSE))," ",VLOOKUP(K193,Proposito_programa!$C$2:$E$59,2,FALSE)) -> Gestión pública local | M193: =IF(ISERROR(VLOOKUP(K193,Proposito_programa!$C$2:$E$59,3,FALSE))," ",VLOOKUP(K193,Proposito_programa!$C$2:$E$59,3,FALSE)) -> Propósito 5: Construir Bogotá - Región con gobierno abierto, transparente y ciudadanía consciente | N193: 1623 | O193: 8 | P193: 1140855703 | Q193: MARIA ALEJANDRA RIOS BARRIOS | R193: Persona Natural | W193: 60500000 | Y193: 1 | Z193: 27500000 | AA193: 88000000 | AB193: 88000001 | AC193: 2023-02-02 | AD193: 2023-02-02 | AE193: 2024-06-01 | AF193: 480 | AG193: 1 | AH193: 150 | AM193: En ejecución | AN193: 1.000000011
A194: 188 | B194: 2023 | C194: FDLE-CD-188-2023 | D194: https://community.secop.gov.co/Public/Tendering/OpportunityDetail/Index?noticeUID=CO1.NTC.3893764&isFromPublicArea=True&isModal=False | E194: Contratos de prestación de servicios | F194: Contratación directa | G194: Prestación de servicios profesionales y de apoyo a la gestión, o para la ejecución de trabajos artísticos que sólo puedan encomendarse a determinadas personas naturales | H194: LA PRESTACIÓN DE SERVICIOS PROFESIONALES ESPECIALIZADOS AL ÁREA DE GESTIÓN DE DESARROLLO LOCAL, LIDERANDO LAS ACTIVIDADES DE PLANEACIÓN RELACIONADAS CON LA FORMULACIÓN DE ESTUDIOS DE MERCADO, TÉCNICOS Y ECONÓMICOS DE LOS PROYECTOS DEL PLAN DE DESARROLLO LOCAL 2021 -2024 “UN NUEVO CONTRATO SOCIAL Y AMBIENTAL PARA ENGATIVÁ" | I194: Inversión | J194: Un nuevo contrato social y ambiental para la Bogotá del Siglo XXI | K194: 57 | L194: =IF(ISERROR(VLOOKUP(K194,Proposito_programa!$C$2:$E$59,2,FALSE))," ",VLOOKUP(K194,Proposito_programa!$C$2:$E$59,2,FALSE)) -> Gestión pública local | M194: =IF(ISERROR(VLOOKUP(K194,Proposito_programa!$C$2:$E$59,3,FALSE))," ",VLOOKUP(K194,Proposito_programa!$C$2:$E$59,3,FALSE)) -> Propósito 5: Construir Bogotá - Región con gobierno abierto, transparente y ciudadanía consciente | N194: 1623 | O194: 3 | P194: 1067855477 | Q194: LUIS FERNANDO VERGARA CARRIAZO | R194: Persona Natural | W194: 88000000 | Y194: 1 | Z194: 32000000 | AA194: 120000000 | AB194: 120000001 | AC194: 2023-02-01 | AD194: 2023-02-02 | AE194: 2024-05-01 | AF194: 450 | AG194: 1 | AH194: 120 | AI194: 79994659 | AJ194: JOHN FREDY GARCIA MARTINEZ | AM194: En ejecución | AN194: 1.000000008
A195: 189 | B195: 2023 | C195: FDLE-CD-189-2023 | D195: https://community.secop.gov.co/Public/Tendering/OpportunityDetail/Index?noticeUID=CO1.NTC.3868092&isFromPublicArea=True&isModal=False | E195: Contratos de prestación de servicios | F195: Contratación directa | G195: Prestación de servicios profesionales y de apoyo a la gestión, o para la ejecución de trabajos artísticos que sólo puedan encomendarse a determinadas personas naturales | H195: LA PRESTACIÓN DE SERVICIOS DE APOYO TÉCNICO AL ÁREA DE GESTIÓN DE DESARROLLO LOCAL, EN LAS ACTIVIDADES ADMINISTRATIVAS DE PLANEACION QUE SE REQUIERAN | I195: Inversión | J195: Un nuevo contrato social y ambiental para la Bogotá del Siglo XXI | K195: 57 | L195: =IF(ISERROR(VLOOKUP(K195,Proposito_programa!$C$2:$E$59,2,FALSE))," ",VLOOKUP(K195,Proposito_programa!$C$2:$E$59,2,FALSE)) -> Gestión pública local | M195: =IF(ISERROR(VLOOKUP(K195,Proposito_programa!$C$2:$E$59,3,FALSE))," ",VLOOKUP(K195,Proposito_programa!$C$2:$E$59,3,FALSE)) -> Propósito 5: Construir Bogotá - Región con gobierno abierto, transparente y ciudadanía consciente | N195: 1623 | O195: 6 | P195: 33101125 | Q195: KARINA SOFIA OVIEDO TORRES | R195: Persona Natural | W195: 35178000 | Y195: 1 | Z195: 15990000 | AA195: 51168000 | AB195: 51168001 | AC195: 2023-02-02 | AD195: 2023-02-03 | AE195: 2024-06-02 | AF195: 480 | AG195: 1 | AH195: 150 | AM195: En ejecución | AN195: 1.00000002
A196: 190 | B196: 2023 | C196: FDLE-CD-190-2023 | D196: https://community.secop.gov.co/Public/Tendering/OpportunityDetail/Index?noticeUID=CO1.NTC.4205209&isFromPublicArea=True&isModal=False | E196: Contratos de prestación de servicios | F196: Contratación directa | G196: Prestación de servicios profesionales y de apoyo a la gestión, o para la ejecución de trabajos artísticos que sólo puedan encomendarse a determinadas personas naturales | H196: LA PRESTACIÓN DE SERVICIOS PROFESIONALES DE APOYO AL SEGUIMIENTO DEL CUMPLIMIENTO DE LOS PROCESOS Y PROCEDIMIENTOS QUE SE DERIVEN DE LOS DISTINTOS PROCESOS CONTRACTUALES DEL FONDO DE DESARROLLO LOCAL DE ENGATIVÁ. | I196: Inversión | J196: Un nuevo contrato social y ambiental para la Bogotá del Siglo XXI | K196: 57 | L196: =IF(ISERROR(VLOOKUP(K196,Proposito_programa!$C$2:$E$59,2,FALSE))," ",VLOOKUP(K196,Proposito_programa!$C$2:$E$59,2,FALSE)) -> Gestión pública local | M196: =IF(ISERROR(VLOOKUP(K196,Proposito_programa!$C$2:$E$59,3,FALSE))," ",VLOOKUP(K196,Proposito_programa!$C$2:$E$59,3,FALSE)) -> Propósito 5: Construir Bogotá - Región con gobierno abierto, transparente y ciudadanía consciente | N196: 1623 | O196: 1 | P196: 1129500403 | Q196: LUDWING ALEXIS CUETO BUTRON | R196: Persona Natural | W196: 49500000 | Y196: 1 | Z196: 11000000 | AA196: 60500000 | AB196: 60500001 | AC196: 2023-03-23 | AD196: 2023-03-28 | AE196: 2024-02-27 | AF196: 330 | AG196: 1 | AH196: 60 | AM196: En ejecución | AN196: 1.000000017
A197: 191 | B197: 2023 | C197: FDLE-CD-191-2023 | D197: https://community.secop.gov.co/Public/Tendering/OpportunityDetail/Index?noticeUID=CO1.NTC.3923470&isFromPublicArea=True&isModal=False | E197: Contratos de prestación de servicios | F197: Contratación directa | G197: Prestación de servicios profesionales y de apoyo a la gestión, o para la ejecución de trabajos artísticos que sólo puedan encomendarse a determinadas personas naturales | H197: LA PRESTACIÓN DE SERVICIOS PROFESIONALES DE APOYO AL SEGUIMIENTO DEL CUMPLIMIENTO DE LOS PROCESOS Y PROCEDIMIENTOS QUE SE DERIVEN DE LOS DISTINTOS PROCESOS CONTRACTUALES DEL FONDO DE DESARROLLO LOCAL DE ENGATIVÁ. | I197: Inversión | J197: Un nuevo contrato social y ambiental para la Bogotá del Siglo XXI | K197: 57 | L197: =IF(ISERROR(VLOOKUP(K197,Proposito_programa!$C$2:$E$59,2,FALSE))," ",VLOOKUP(K197,Proposito_programa!$C$2:$E$59,2,FALSE)) -> Gestión pública local | M197: =IF(ISERROR(VLOOKUP(K197,Proposito_programa!$C$2:$E$59,3,FALSE))," ",VLOOKUP(K197,Proposito_programa!$C$2:$E$59,3,FALSE)) -> Propósito 5: Construir Bogotá - Región con gobierno abierto, transparente y ciudadanía consciente | N197: 1623 | O197: 7 | P197: 1023866994 | Q197: ZAYRA CATALINA BERNAL CABRERA | R197: Persona Natural | W197: 49500000 | Y197: 1 | Z197: 24750000 | AA197: 74250000 | AB197: 74250001 | AC197: 2023-02-03 | AD197: 2023-02-07 | AE197: 2024-03-21 | AF197: 405 | AG197: 1 | AH197: 135 | AM197: En ejecución | AN197: 1.000000013
A198: 192 | B198: 2023 | C198: FDLE-CD-192-2023 | D198: https://community.secop.gov.co/Public/Tendering/OpportunityDetail/Index?noticeUID=CO1.NTC.3960372&isFromPublicArea=True&isModal=False | E198: Contratos de prestación de servicios | F198: Contratación directa | G198: Prestación de servicios profesionales y de apoyo a la gestión, o para la ejecución de trabajos artísticos que sólo puedan encomendarse a determinadas personas naturales | H198: LA PRESTACIÓN DE SERVICIOS PROFESIONALES, AL ÁREA DE GESTIÓN DE DESARROLLO LOCAL, REALIZANDO SEGUIMIENTO A LAS ACTIVIDADES RELACIONADAS CON EL APOYO A LA SUPERVISIÓN Y/O LIQUIDACION DE CONTRATOS Y/O CONVENIOS QUE LE SEAN DESIGNADOS Y DEMÁS ACTIVIDADES QUE SE REQUIERAN | I198: Inversión | J198: Un nuevo contrato social y ambiental para la Bogotá del Siglo XXI | K198: 57 | L198: =IF(ISERROR(VLOOKUP(K198,Proposito_programa!$C$2:$E$59,2,FALSE))," ",VLOOKUP(K198,Proposito_programa!$C$2:$E$59,2,FALSE)) -> Gestión pública local | M198: =IF(ISERROR(VLOOKUP(K198,Proposito_programa!$C$2:$E$59,3,FALSE))," ",VLOOKUP(K198,Proposito_programa!$C$2:$E$59,3,FALSE)) -> Propósito 5: Construir Bogotá - Región con gobierno abierto, transparente y ciudadanía consciente | N198: 1623 | O198: 1 | P198: 52046781 | Q198: DEISY VILLALBA MORENO | R198: Persona Natural | W198: 51300000 | Y198: 1 | Z198: 22800000 | AA198: 74100000 | AB198: 74100001 | AC198: 2023-02-08 | AD198: 2023-02-13 | AE198: 2024-03-12 | AF198: 390 | AG198: 1 | AH198: 120 | AM198: En ejecución | AN198: 1.000000013
A199: 193 | B199: 2023 | C199: FDLE-CD-193-2023 | D199: https://community.secop.gov.co/Public/Tendering/OpportunityDetail/Index?noticeUID=CO1.NTC.3942060&isFromPublicArea=True&isModal=False | E199: Contratos de prestación de servicios | F199: Contratación directa | G199: Prestación de servicios profesionales y de apoyo a la gestión, o para la ejecución de trabajos artísticos que sólo puedan encomendarse a determinadas personas naturales | H199: LA PRESTACIÓN DE SERVICIOS PROFESIONALES, AL ÁREA DE GESTIÓN DE DESARROLLO LOCAL, REALIZANDO SEGUIMIENTO A LAS ACTIVIDADES RELACIONADAS CON EL APOYO A LA SUPERVISIÓN Y/O LIQUIDACION DE CONTRATOS Y/O CONVENIOS QUE LE SEAN DESIGNADOS Y DEMÁS ACTIVIDADES QUE SE REQUIERAN | I199: Inversión | J199: Un nuevo contrato social y ambiental para la Bogotá del Siglo XXI | K199: 57 | L199: =IF(ISERROR(VLOOKUP(K199,Proposito_programa!$C$2:$E$59,2,FALSE))," ",VLOOKUP(K199,Proposito_programa!$C$2:$E$59,2,FALSE)) -> Gestión pública local | M199: =IF(ISERROR(VLOOKUP(K199,Proposito_programa!$C$2:$E$59,3,FALSE))," ",VLOOKUP(K199,Proposito_programa!$C$2:$E$59,3,FALSE)) -> Propósito 5: Construir Bogotá - Región con gobierno abierto, transparente y ciudadanía consciente | N199: 1623 | O199: 8 | P199: 51937981 | Q199: ADRIANA SORAIDA DUARTE RODRIGUEZ | R199: Persona Natural | W199: 51300000 | Y199: 1 | Z199: 20140000 | AA199: 71440000 | AB199: 71440001 | AC199: 2023-02-07 | AD199: 2023-02-13 | AE199: 2024-02-28 | AF199: 376 | AG199: 1 | AH199: 106 | AI199: 51937981 | AJ199: ADRIANA SORAIDA DUARTE RODRIGUEZ | AK199: 2023-07-18 | AL199: 41610000 | AM199: En ejecución | AN199: 1.000000014
A200: 194 | B200: 2023 | C200: FDLE-CD-194-2023 | D200: https://community.secop.gov.co/Public/Tendering/OpportunityDetail/Index?noticeUID=CO1.NTC.3868386&isFromPublicArea=True&isModal=False | E200: Contratos de prestación de servicios | F200: Contratación directa | G200: Prestación de servicios profesionales y de apoyo a la gestión, o para la ejecución de trabajos artísticos que sólo puedan encomendarse a determinadas personas naturales | H200: LA PRESTACIÓN DE SERVICIOS PROFESIONALES, AL ÁREA DE GESTIÓN DE DESARROLLO LOCAL, REALIZANDO SEGUIMIENTO A LAS ACTIVIDADES RELACIONADAS CON EL APOYO A LA SUPERVISIÓN Y/O LIQUIDACION DE CONTRATOS Y/O CONVENIOS QUE LE SEAN DESIGNADOS Y DEMÁS ACTIVIDADES QUE SE REQUIERAN | I200: Inversión | J200: Un nuevo contrato social y ambiental para la Bogotá del Siglo XXI | K200: 57 | L200: =IF(ISERROR(VLOOKUP(K200,Proposito_programa!$C$2:$E$59,2,FALSE))," ",VLOOKUP(K200,Proposito_programa!$C$2:$E$59,2,FALSE)) -> Gestión pública local | M200: =IF(ISERROR(VLOOKUP(K200,Proposito_programa!$C$2:$E$59,3,FALSE))," ",VLOOKUP(K200,Proposito_programa!$C$2:$E$59,3,FALSE)) -> Propósito 5: Construir Bogotá - Región con gobierno abierto, transparente y ciudadanía consciente | N200: 1623 | O200: 7 | P200: 1023873719 | Q200: DEYANIRA LORENA INCHIMA CHANTRE | R200: Persona Natural | W200: 51300000 | AA200: 51300000 | AB200: 51300000 | AC200: 2023-01-30 | AD200: 2023-02-01 | AE200: 2023-05-30 | AF200: 270 | AM200: Terminado | AN200: 1
A201: 195 | B201: 2023 | C201: FDLE-CD-195-2023 | D201: https://community.secop.gov.co/Public/Tendering/OpportunityDetail/Index?noticeUID=CO1.NTC.3941694&isFromPublicArea=True&isModal=False | E201: Contratos de prestación de servicios | F201: Contratación directa | G201: Prestación de servicios profesionales y de apoyo a la gestión, o para la ejecución de trabajos artísticos que sólo puedan encomendarse a determinadas personas naturales | H201: LA PRESTACIÓN DE SERVICIOS PROFESIONALES, AL ÁREA DE GESTIÓN DE DESARROLLO LOCAL, REALIZANDO SEGUIMIENTO A LAS ACTIVIDADES RELACIONADAS CON EL APOYO A LA SUPERVISIÓN Y/O LIQUIDACION DE CONTRATOS Y/O CONVENIOS QUE LE SEAN DESIGNADOS Y DEMÁS ACTIVIDADES QUE SE REQUIERAN | I201: Inversión | J201: Un nuevo contrato social y ambiental para la Bogotá del Siglo XXI | K201: 57 | L201: =IF(ISERROR(VLOOKUP(K201,Proposito_programa!$C$2:$E$59,2,FALSE))," ",VLOOKUP(K201,Proposito_programa!$C$2:$E$59,2,FALSE)) -> Gestión pública local | M201: =IF(ISERROR(VLOOKUP(K201,Proposito_programa!$C$2:$E$59,3,FALSE))," ",VLOOKUP(K201,Proposito_programa!$C$2:$E$59,3,FALSE)) -> Propósito 5: Construir Bogotá - Región con gobierno abierto, transparente y ciudadanía consciente | N201: 1623 | O201: 3 | P201: 1032420884 | Q201: NORA CECILIA PEREZ | R201: Persona Natural | W201: 51300000 | Y201: 1 | Z201: 25460000 | AA201: 76760000 | AB201: 76760001 | AC201: 2023-02-13 | AD201: 2023-02-15 | AE201: 2024-03-28 | AF201: 404 | AG201: 1 | AH201: 134 | AM201: En ejecución | AN201: 1.000000013
A202: 196 | B202: 2023 | C202: FDLE-CD-196-2023- | D202: https://community.secop.gov.co/Public/Tendering/OpportunityDetail/Index?noticeUID=CO1.NTC.3941674&isFromPublicArea=True&isModal=False | E202: Contratos de prestación de servicios | F202: Contratación directa | G202: Prestación de servicios profesionales y de apoyo a la gestión, o para la ejecución de trabajos artísticos que sólo puedan encomendarse a determinadas personas naturales | H202: LA PRESTACIÓN DE SERVICIOS PROFESIONALES, AL ÁREA DE GESTIÓN DE DESARROLLO LOCAL, REALIZANDO SEGUIMIENTO A LAS ACTIVIDADES RELACIONADAS CON LA SUPERVISIÓN Y/O LIQUIDACION DE CONTRATOS Y/O CONVENIOS QUE LE SEAN DESIGNADOS Y DEMÁS ACTIVIDADES QUE SE REQUIERAN | I202: Inversión | J202: Un nuevo contrato social y ambiental para la Bogotá del Siglo XXI | K202: 57 | L202: =IF(ISERROR(VLOOKUP(K202,Proposito_programa!$C$2:$E$59,2,FALSE))," ",VLOOKUP(K202,Proposito_programa!$C$2:$E$59,2,FALSE)) -> Gestión pública local | M202: =IF(ISERROR(VLOOKUP(K202,Proposito_programa!$C$2:$E$59,3,FALSE))," ",VLOOKUP(K202,Proposito_programa!$C$2:$E$59,3,FALSE)) -> Propósito 5: Construir Bogotá - Región con gobierno abierto, transparente y ciudadanía consciente | N202: 1623 | O202: 5 | P202: 52664776 | Q202: YEIMMY ALEJANDRA CASTILLO GALINDO | R202: Persona Natural | W202: 62700000 | Y202: 1 | Z202: 28500000 | AA202: 91200000 | AB202: 91200001 | AC202: 2023-02-06 | AD202: 2023-02-13 | AE202: 2024-06-12 | AF202: 480 | AG202: 1 | AH202: 150 | AM202: En ejecución | AN202: 1.000000011
... 374 more rows

Sheet Proposito_programa
B2: PDD | C2: No. Programa | D2: Programa | E2: Propósito
A3: Acuerdo 761 2020 | B3: Un Nuevo Contrato Social y Ambiental para la Bogotá del Siglo XXI | C3: 1 | D3: Subsidios y transferencias para la equidad | E3: Propósito 1: Hacer un nuevo contrato social para incrementar la inclusión social, productiva y política
A4: Pag. 51 | B4: Un Nuevo Contrato Social y Ambiental para la Bogotá del Siglo XXI | C4: =+C3+1 -> 2 | D4: Igualdad de oportunidades y desarrollo de capacidades para las mujeres | E4: Propósito 1: Hacer un nuevo contrato social para incrementar la inclusión social, productiva y política
B5: Un Nuevo Contrato Social y Ambiental para la Bogotá del Siglo XXI | C5: =+C4+1 -> 3 | D5: Movilidad social integral | E5: Propósito 1: Hacer un nuevo contrato social para incrementar la inclusión social, productiva y política
B6: Un Nuevo Contrato Social y Ambiental para la Bogotá del Siglo XXI | C6: 4 | D6: Prevención de la exclusión por razones étnicas, religiosas, sociales, políticas y de orientación sexual | E6: Propósito 1: Hacer un nuevo contrato social para incrementar la inclusión social, productiva y política
B7: Un Nuevo Contrato Social y Ambiental para la Bogotá del Siglo XXI | C7: 5 | D7: Promoción de la igualdad, el desarrollo de capacidades y el reconocimiento de las mujeres | E7: Propósito 1: Hacer un nuevo contrato social para incrementar la inclusión social, productiva y política
B8: Un Nuevo Contrato Social y Ambiental para la Bogotá del Siglo XXI | C8: 6 | D8: Sistema Distrital de Cuidado | E8: Propósito 1: Hacer un nuevo contrato social para incrementar la inclusión social, productiva y política
B9: Un Nuevo Contrato Social y Ambiental para la Bogotá del Siglo XXI | C9: 7 | D9: Mejora de la gestión de instituciones de salud | E9: Propósito 1: Hacer un nuevo contrato social para incrementar la inclusión social, productiva y política
B10: Un Nuevo Contrato Social y Ambiental para la Bogotá del Siglo XXI | C10: 8 | D10: Prevención y atención de maternidad temprana | E10: Propósito 1: Hacer un nuevo contrato social para incrementar la inclusión social, productiva y política
B11: Un Nuevo Contrato Social y Ambiental para la Bogotá del Siglo XXI | C11: 9 | D11: Prevención y cambios para mejorar la salud de la población | E11: Propósito 1: Hacer un nuevo contrato social para incrementar la inclusión social, productiva y política
B12: Un Nuevo Contrato Social y Ambiental para la Bogotá del Siglo XXI | C12: 10 | D12: Salud para la vida y el bienestar | E12: Propósito 1: Hacer un nuevo contrato social para incrementar la inclusión social, productiva y política
B13: Un Nuevo Contrato Social y Ambiental para la Bogotá del Siglo XXI | C13: 11 | D13: Salud y bienestar para niñas y niños | E13: Propósito 1: Hacer un nuevo contrato social para incrementar la inclusión social, productiva y política
B14: Un Nuevo Contrato Social y Ambiental para la Bogotá del Siglo XXI | C14: 12 | D14: Educación inicial: Bases sólidas para la vida. | E14: Propósito 1: Hacer un nuevo contrato social para incrementar la inclusión social, productiva y política
B15: Un Nuevo Contrato Social y Ambiental para la Bogotá del Siglo XXI | C15: 13 | D15: Educación para todos y todas: acceso y permanencia con equidad y énfasis en educación rural | E15: Propósito 1: Hacer un nuevo contrato social para incrementar la inclusión social, productiva y política
B16: Un Nuevo Contrato Social y Ambiental para la Bogotá del Siglo XXI | C16: 14 | D16: Formación integral: más y mejor tiempo en los colegios | E16: Propósito 1: Hacer un nuevo contrato social para incrementar la inclusión social, productiva y política
B17: Un Nuevo Contrato Social y Ambiental para la Bogotá del Siglo XXI | C17: 15 | D17: Plan Distrital de Lectura, Escritura y Oralidad: "Leer para la vida" | E17: Propósito 1: Hacer un nuevo contrato social para incrementar la inclusión social, productiva y política
B18: Un Nuevo Contrato Social y Ambiental para la Bogotá del Siglo XXI | C18: 16 | D18: Transformación pedagógica y mejoramiento de la gestión educativa. Es con los maestros y maestras. | E18: Propósito 1: Hacer un nuevo contrato social para incrementar la inclusión social, productiva y política
B19: Un Nuevo Contrato Social y Ambiental para la Bogotá del Siglo XXI | C19: 17 | D19: Jóvenes con capacidades: Proyecto de vida para la ciudadanía, la innovación y el trabajo del siglo XXI | E19: Propósito 1: Hacer un nuevo contrato social para incrementar la inclusión social, productiva y política
B20: Un Nuevo Contrato Social y Ambiental para la Bogotá del Siglo XXI | C20: 18 | D20: Cierre de brechas para la inclusión productiva urbano rural | E20: Propósito 1: Hacer un nuevo contrato social para incrementar la inclusión social, productiva y política
B21: Un Nuevo Contrato Social y Ambiental para la Bogotá del Siglo XXI | C21: 19 | D21: Vivienda y entornos dignos en el territorio urbano y rural | E21: Propósito 1: Hacer un nuevo contrato social para incrementar la inclusión social, productiva y política
B22: Un Nuevo Contrato Social y Ambiental para la Bogotá del Siglo XXI | C22: 20 | D22: Bogotá, referente en cultura, deporte, recreación y actividad física, con parques para el desarrollo y la salud | E22: Propósito 1: Hacer un nuevo contrato social para incrementar la inclusión social, productiva y política
B23: Un Nuevo Contrato Social y Ambiental para la Bogotá del Siglo XXI | C23: 21 | D23: Creación y vida cotidiana: Apropiación ciudadana del arte, la cultura y el patrimonio, para la democracia cultural | E23: Propósito 1: Hacer un nuevo contrato social para incrementar la inclusión social, productiva y política
B24: Un Nuevo Contrato Social y Ambiental para la Bogotá del Siglo XXI | C24: 22 | D24: Transformación cultural para la conciencia ambiental y el cuidado de la fauna doméstica | E24: Propósito 1: Hacer un nuevo contrato social para incrementar la inclusión social, productiva y política
B25: Un Nuevo Contrato Social y Ambiental para la Bogotá del Siglo XXI | C25: 23 | D25: Bogotá rural | E25: Propósito 1: Hacer un nuevo contrato social para incrementar la inclusión social, productiva y política
B26: Un Nuevo Contrato Social y Ambiental para la Bogotá del Siglo XXI | C26: 24 | D26: Bogotá región emprendedora e innovadora | E26: Propósito 1: Hacer un nuevo contrato social para incrementar la inclusión social, productiva y política
B27: Un Nuevo Contrato Social y Ambiental para la Bogotá del Siglo XXI | C27: 25 | D27: Bogotá región productiva y competitiva | E27: Propósito 1: Hacer un nuevo contrato social para incrementar la inclusión social, productiva y política
B28: Un Nuevo Contrato Social y Ambiental para la Bogotá del Siglo XXI | C28: 26 | D28: Bogotá - región, el mejor destino para visitar | E28: Propósito 1: Hacer un nuevo contrato social para incrementar la inclusión social, productiva y política
B29: Un Nuevo Contrato Social y Ambiental para la Bogotá del Siglo XXI | C29: 27 | D29: Cambio cultural para la gestión de la crisis climática | E29: Propósito 2 : Cambiar Nuestros Hábitos de Vida para Reverdecer a Bogotá y Adaptarnos y Mitigar la Crisis Climática
B30: Un Nuevo Contrato Social y Ambiental para la Bogotá del Siglo XXI | C30: =+C29+1 -> 28 | D30: Bogotá protectora de sus recursos naturales | E30: Propósito 2 : Cambiar Nuestros Hábitos de Vida para Reverdecer a Bogotá y Adaptarnos y Mitigar la Crisis Climática
B31: Un Nuevo Contrato Social y Ambiental para la Bogotá del Siglo XXI | C31: =+C30+1 -> 29 | D31: Asentamientos y entornos protectores | E31: Propósito 2 : Cambiar Nuestros Hábitos de Vida para Reverdecer a Bogotá y Adaptarnos y Mitigar la Crisis Climática
B32: Un Nuevo Contrato Social y Ambiental para la Bogotá del Siglo XXI | C32: 30 | D32: Eficiencia en la atención de emergencias | E32: Propósito 2 : Cambiar Nuestros Hábitos de Vida para Reverdecer a Bogotá y Adaptarnos y Mitigar la Crisis Climática
B33: Un Nuevo Contrato Social y Ambiental para la Bogotá del Siglo XXI | C33: 31 | D33: Protección y valoración del patrimonio tangible e intangible en Bogotá y la región | E33: Propósito 2 : Cambiar Nuestros Hábitos de Vida para Reverdecer a Bogotá y Adaptarnos y Mitigar la Crisis Climática
B34: Un Nuevo Contrato Social y Ambiental para la Bogotá del Siglo XXI | C34: 32 | D34: Revitalización urbana para la competitividad | E34: Propósito 2 : Cambiar Nuestros Hábitos de Vida para Reverdecer a Bogotá y Adaptarnos y Mitigar la Crisis Climática
B35: Un Nuevo Contrato Social y Ambiental para la Bogotá del Siglo XXI | C35: 33 | D35: Más árboles y más y mejor espacio público | E35: Propósito 2 : Cambiar Nuestros Hábitos de Vida para Reverdecer a Bogotá y Adaptarnos y Mitigar la Crisis Climática
B36: Un Nuevo Contrato Social y Ambiental para la Bogotá del Siglo XXI | C36: 34 | D36: Bogotá protectora de los animales | E36: Propósito 2 : Cambiar Nuestros Hábitos de Vida para Reverdecer a Bogotá y Adaptarnos y Mitigar la Crisis Climática
B37: Un Nuevo Contrato Social y Ambiental para la Bogotá del Siglo XXI | C37: 35 | D37: Manejo y prevención de contaminación | E37: Propósito 2 : Cambiar Nuestros Hábitos de Vida para Reverdecer a Bogotá y Adaptarnos y Mitigar la Crisis Climática
B38: Un Nuevo Contrato Social y Ambiental para la Bogotá del Siglo XXI | C38: 36 | D38: Manejo y saneamiento de los cuerpos de agua | E38: Propósito 2 : Cambiar Nuestros Hábitos de Vida para Reverdecer a Bogotá y Adaptarnos y Mitigar la Crisis Climática
B39: Un Nuevo Contrato Social y Ambiental para la Bogotá del Siglo XXI | C39: 37 | D39: Provisión y mejoramiento de servicios públicos | E39: Propósito 2 : Cambiar Nuestros Hábitos de Vida para Reverdecer a Bogotá y Adaptarnos y Mitigar la Crisis Climática
B40: Un Nuevo Contrato Social y Ambiental para la Bogotá del Siglo XXI | C40: 38 | D40: Ecoeficiencia, reciclaje, manejo de residuos e inclusión de la población recicladora | E40: Propósito 2 : Cambiar Nuestros Hábitos de Vida para Reverdecer a Bogotá y Adaptarnos y Mitigar la Crisis Climática
B41: Un Nuevo Contrato Social y Ambiental para la Bogotá del Siglo XXI | C41: 39 | D41: Bogotá territorio de paz y atención integral a las víctimas del conflicto armado | E41: Propósito 3: Inspirar confianza y legitimidad para vivir sin miedo y ser epicentro de cultura ciudadana, paz y reconciliación
B42: Un Nuevo Contrato Social y Ambiental para la Bogotá del Siglo XXI | C42: =+C41+1 -> 40 | D42: Más mujeres viven una vida libre de violencias, se sienten seguras y acceden con confianza al sistema de justicia | E42: Propósito 3: Inspirar confianza y legitimidad para vivir sin miedo y ser epicentro de cultura ciudadana, paz y reconciliación
B43: Un Nuevo Contrato Social y Ambiental para la Bogotá del Siglo XXI | C43: =+C42+1 -> 41 | D43: Sin machismo ni violencias contra las mujeres, las niñas y los niños | E43: Propósito 3: Inspirar confianza y legitimidad para vivir sin miedo y ser epicentro de cultura ciudadana, paz y reconciliación
B44: Un Nuevo Contrato Social y Ambiental para la Bogotá del Siglo XXI | C44: 42 | D44: Conciencia y cultura ciudadana para la seguridad, la convivencia y la construcción de confianza | E44: Propósito 3: Inspirar confianza y legitimidad para vivir sin miedo y ser epicentro de cultura ciudadana, paz y reconciliación
B45: Un Nuevo Contrato Social y Ambiental para la Bogotá del Siglo XXI | C45: 43 | D45: Cultura ciudadana para la confianza, la convivencia y la participación desde la vida cotidiana | E45: Propósito 3: Inspirar confianza y legitimidad para vivir sin miedo y ser epicentro de cultura ciudadana, paz y reconciliación
B46: Un Nuevo Contrato Social y Ambiental para la Bogotá del Siglo XXI | C46: 44 | D46: Autoconciencia, respeto y cuidado en el espacio público | E46: Propósito 3: Inspirar confianza y legitimidad para vivir sin miedo y ser epicentro de cultura ciudadana, paz y reconciliación
B47: Un Nuevo Contrato Social y Ambiental para la Bogotá del Siglo XXI | C47: 45 | D47: Espacio público más seguro y construido colectivamente | E47: Propósito 3: Inspirar confianza y legitimidad para vivir sin miedo y ser epicentro de cultura ciudadana, paz y reconciliación
B48: Un Nuevo Contrato Social y Ambiental para la Bogotá del Siglo XXI | C48: 46 | D48: Atención a jóvenes y adultos infractores con impacto en su proyecto de vida | E48: Propósito 3: Inspirar confianza y legitimidad para vivir sin miedo y ser epicentro de cultura ciudadana, paz y reconciliación
B49: Un Nuevo Contrato Social y Ambiental para la Bogotá del Siglo XXI | C49: 47 | D49: Calidad de Vida y Derechos de la Población privada de la libertad | E49: Propósito 3: Inspirar confianza y legitimidad para vivir sin miedo y ser epicentro de cultura ciudadana, paz y reconciliación
B50: Un Nuevo Contrato Social y Ambiental para la Bogotá del Siglo XXI | C50: 48 | D50: Plataforma institucional para la seguridad y justicia | E50: Propósito 3: Inspirar confianza y legitimidad para vivir sin miedo y ser epicentro de cultura ciudadana, paz y reconciliación
B51: Un Nuevo Contrato Social y Ambiental para la Bogotá del Siglo XXI | C51: 49 | D51: Movilidad segura, sostenible y accesible | E51: Propósito 4: Hacer de Bogotá Región un modelo de movilidad multimodal, incluyente y sostenible
B52: Un Nuevo Contrato Social y Ambiental para la Bogotá del Siglo XXI | C52: =+C51+1 -> 50 | D52: Red de metros | E52: Propósito 4: Hacer de Bogotá Región un modelo de movilidad multimodal, incluyente y sostenible
